Publisher Label,Publisher URI,"Directorate code","Directorate","Service code","Service","Revenue or capital code","Revenue capital","Cost centre","Cost centre description","Bvsub Category","Bvsub description","Bvsum code","Bvsum description","Account code","Account description","Transaction No","Period","Transaction Date","Amount","Classification code","Classification description","Supplier ID","Supplier description","Company registration number","Company registration number Uri","VAT registration number"
"London Borough of Redbridge","http://opendatacommunities.org/doc/london-borough-council/redbridge","6BADULTSOCIA","Adult Social Care","6COLDINCMENT","Older People (65 or over) incl. Older Mentally Ill","REV","Revenue","R4391","OP Home Care","05-THIRD","Third Party Payments","05A","Independent units within the council","6502","Agency Homecare (Payments To Independent Units)","91004938","201908",09/11/2018 00:00:00,58.51,"43419","Home Care Services","REDACTED DATA","ASTHA LIMITED","4914301","http://opencorporates.com/companies/gb/4914301","882333810"
"London Borough of Redbridge","http://opendatacommunities.org/doc/london-borough-council/redbridge","6BADULTSOCIA","Adult Social Care","6COLDINCMENT","Older People (65 or over) incl. Older Mentally Ill","REV","Revenue","R4391","OP Home Care","05-THIRD","Third Party Payments","05A","Independent units within the council","6502","Agency Homecare (Payments To Independent Units)","91008808","201908",13/11/2018 00:00:00,488.38,"43419","Home Care Services","REDACTED DATA","LONDON CARE PLC","3117278","http://opencorporates.com/companies/gb/3117278",""
"London Borough of Redbridge","http://opendatacommunities.org/doc/london-borough-council/redbridge","6BADULTSOCIA","Adult Social Care","6COLDINCMENT","Older People (65 or over) incl. Older Mentally Ill","REV","Revenue","R4391","OP Home Care","05-THIRD","Third Party Payments","05A","Independent units within the council","6502","Agency Homecare (Payments To Independent Units)","91006004","201908",01/11/2018 00:00:00,168.49,"43419","Home Care Services","REDACTED DATA","RELINE CARE LTD","7728473","http://opencorporates.com/companies/gb/7728473",""
"London Borough of Redbridge","http://opendatacommunities.org/doc/london-borough-council/redbridge","6BADULTSOCIA","Adult Social Care","6COLDINCMENT","Older People (65 or over) incl. Older Mentally Ill","REV","Revenue","R4391","OP Home Care","05-THIRD","Third Party Payments","05A","Independent units within the council","6502","Agency Homecare (Payments To Independent Units)","91008772","201908",12/11/2018 00:00:00,119.22,"43419","Home Care Services","REDACTED DATA","LONDON CARE PLC","3117278","http://opencorporates.com/companies/gb/3117278",""
"London Borough of Redbridge","http://opendatacommunities.org/doc/london-borough-council/redbridge","6BADULTSOCIA","Adult Social Care","6COLDINCMENT","Older People (65 or over) incl. Older Mentally Ill","REV","Revenue","R4391","OP Home Care","05-THIRD","Third Party Payments","05A","Independent units within the council","6502","Agency Homecare (Payments To Independent Units)","91008773","201908",12/11/2018 00:00:00,149.98,"43419","Home Care Services","REDACTED DATA","LONDON CARE PLC","3117278","http://opencorporates.com/companies/gb/3117278",""
"London Borough of Redbridge","http://opendatacommunities.org/doc/london-borough-council/redbridge","6BADULTSOCIA","Adult Social Care","6COLDINCMENT","Older People (65 or over) incl. Older Mentally Ill","REV","Revenue","R4391","OP Home Care","05-THIRD","Third Party Payments","05A","Independent units within the council","6502","Agency Homecare (Payments To Independent Units)","91004936","201908",09/11/2018 00:00:00,179.27,"43419","Home Care Services","REDACTED DATA","ASTHA LIMITED","4914301","http://opencorporates.com/companies/gb/4914301","882333810"
"London Borough of Redbridge","http://opendatacommunities.org/doc/london-borough-council/redbridge","6BADULTSOCIA","Adult Social Care","6COLDINCMENT","Older People (65 or over) incl. Older Mentally Ill","REV","Revenue","R4391","OP Home Care","05-THIRD","Third Party Payments","05A","Independent units within the council","6502","Agency Homecare (Payments To Independent Units)","91004937","201908",09/11/2018 00:00:00,76.79,"43419","Home Care Services","REDACTED DATA","ASTHA LIMITED","4914301","http://opencorporates.com/companies/gb/4914301","882333810"
"London Borough of Redbridge","http://opendatacommunities.org/doc/london-borough-council/redbridge","6BADULTSOCIA","Adult Social Care","6COLDINCMENT","Older People (65 or over) incl. Older Mentally Ill","REV","Revenue","R4391","OP Home Care","05-THIRD","Third Party Payments","05A","Independent units within the council","6502","Agency Homecare (Payments To Independent Units)","91005421","201908",30/10/2018 00:00:00,59.34,"43419","Home Care Services","REDACTED DATA","ICARE RESOURCE LIMITED","9045427","http://opencorporates.com/companies/gb/9045427",""
"London Borough of Redbridge","http://opendatacommunities.org/doc/london-borough-council/redbridge","6BADULTSOCIA","Adult Social Care","6COLDINCMENT","Older People (65 or over) incl. Older Mentally Ill","REV","Revenue","R4391","OP Home Care","05-THIRD","Third Party Payments","05A","Independent units within the council","6502","Agency Homecare (Payments To Independent Units)","91010005","201908",08/11/2018 00:00:00,183.6,"43419","Home Care Services","REDACTED DATA","PROMPT HEALTHCARE STAFFING LTD","8453491","http://opencorporates.com/companies/gb/8453491",""
"London Borough of Redbridge","http://opendatacommunities.org/doc/london-borough-council/redbridge","6BADULTSOCIA","Adult Social Care","6COLDINCMENT","Older People (65 or over) incl. Older Mentally Ill","REV","Revenue","R4391","OP Home Care","05-THIRD","Third Party Payments","05A","Independent units within the council","6502","Agency Homecare (Payments To Independent Units)","91009963","201908",20/11/2018 00:00:00,20.64,"43419","Home Care Services","REDACTED DATA","RELINE CARE LTD","7728473","http://opencorporates.com/companies/gb/7728473",""
"London Borough of Redbridge","http://opendatacommunities.org/doc/london-borough-council/redbridge","6BADULTSOCIA","Adult Social Care","6COLDINCMENT","Older People (65 or over) incl. Older Mentally Ill","REV","Revenue","R4391","OP Home Care","05-THIRD","Third Party Payments","05A","Independent units within the council","6502","Agency Homecare (Payments To Independent Units)","91008767","201908",12/11/2018 00:00:00,119.22,"43419","Home Care Services","REDACTED DATA","LONDON CARE PLC","3117278","http://opencorporates.com/companies/gb/3117278",""
"London Borough of Redbridge","http://opendatacommunities.org/doc/london-borough-council/redbridge","6BADULTSOCIA","Adult Social Care","6COLDINCMENT","Older People (65 or over) incl. Older Mentally Ill","REV","Revenue","R4391","OP Home Care","05-THIRD","Third Party Payments","05A","Independent units within the council","6502","Agency Homecare (Payments To Independent Units)","91005976","201908",16/08/2018 00:00:00,-13.76,"43419","Home Care Services","REDACTED DATA","RELINE CARE LTD","7728473","http://opencorporates.com/companies/gb/7728473",""
"London Borough of Redbridge","http://opendatacommunities.org/doc/london-borough-council/redbridge","6BADULTSOCIA","Adult Social Care","6COLDINCMENT","Older People (65 or over) incl. Older Mentally Ill","REV","Revenue","R4391","OP Home Care","05-THIRD","Third Party Payments","05A","Independent units within the council","6502","Agency Homecare (Payments To Independent Units)","91005977","201908",17/10/2018 00:00:00,182.18,"43419","Home Care Services","REDACTED DATA","RELINE CARE LTD","7728473","http://opencorporates.com/companies/gb/7728473",""
"London Borough of Redbridge","http://opendatacommunities.org/doc/london-borough-council/redbridge","6BADULTSOCIA","Adult Social Care","6COLDINCMENT","Older People (65 or over) incl. Older Mentally Ill","REV","Revenue","R4391","OP Home Care","05-THIRD","Third Party Payments","05A","Independent units within the council","6502","Agency Homecare (Payments To Independent Units)","91009734","201908",20/11/2018 00:00:00,79.2,"43419","Home Care Services","REDACTED DATA","ICARE RESOURCE LIMITED","9045427","http://opencorporates.com/companies/gb/9045427",""
"London Borough of Redbridge","http://opendatacommunities.org/doc/london-borough-council/redbridge","6BADULTSOCIA","Adult Social Care","6COLDINCMENT","Older People (65 or over) incl. Older Mentally Ill","REV","Revenue","R4391","OP Home Care","05-THIRD","Third Party Payments","05A","Independent units within the council","6502","Agency Homecare (Payments To Independent Units)","91006016","201908",07/11/2018 00:00:00,110.01,"43419","Home Care Services","REDACTED DATA","RELINE CARE LTD","7728473","http://opencorporates.com/companies/gb/7728473",""
"London Borough of Redbridge","http://opendatacommunities.org/doc/london-borough-council/redbridge","6BADULTSOCIA","Adult Social Care","6COLDINCMENT","Older People (65 or over) incl. Older Mentally Ill","REV","Revenue","R4391","OP Home Care","05-THIRD","Third Party Payments","05A","Independent units within the council","6502","Agency Homecare (Payments To Independent Units)","91006017","201908",07/11/2018 00:00:00,48.16,"43419","Home Care Services","REDACTED DATA","RELINE CARE LTD","7728473","http://opencorporates.com/companies/gb/7728473",""
"London Borough of Redbridge","http://opendatacommunities.org/doc/london-borough-council/redbridge","6BADULTSOCIA","Adult Social Care","6COLDINCMENT","Older People (65 or over) incl. Older Mentally Ill","REV","Revenue","R4391","OP Home Care","05-THIRD","Third Party Payments","05A","Independent units within the council","6502","Agency Homecare (Payments To Independent Units)","91010321","201908",08/05/2018 00:00:00,-146.26,"43419","Home Care Services","REDACTED DATA","RELINE CARE LTD","7728473","http://opencorporates.com/companies/gb/7728473",""
"London Borough of Redbridge","http://opendatacommunities.org/doc/london-borough-council/redbridge","6BADULTSOCIA","Adult Social Care","6COLDINCMENT","Older People (65 or over) incl. Older Mentally Ill","REV","Revenue","R4391","OP Home Care","05-THIRD","Third Party Payments","05A","Independent units within the council","6502","Agency Homecare (Payments To Independent Units)","91009641","201908",26/11/2018 00:00:00,98.77,"43419","Home Care Services","REDACTED DATA","ASTHA LIMITED","4914301","http://opencorporates.com/companies/gb/4914301","882333810"
"London Borough of Redbridge","http://opendatacommunities.org/doc/london-borough-council/redbridge","6BADULTSOCIA","Adult Social Care","6COLDINCMENT","Older People (65 or over) incl. Older Mentally Ill","REV","Revenue","R4391","OP Home Care","05-THIRD","Third Party Payments","05A","Independent units within the council","6502","Agency Homecare (Payments To Independent Units)","91006668","201908",06/11/2018 00:00:00,432.18,"43419","Home Care Services","REDACTED DATA","ICARE RESOURCE LIMITED","9045427","http://opencorporates.com/companies/gb/9045427",""
"London Borough of Redbridge","http://opendatacommunities.org/doc/london-borough-council/redbridge","6BADULTSOCIA","Adult Social Care","6COLDINCMENT","Older People (65 or over) incl. Older Mentally Ill","REV","Revenue","R4391","OP Home Care","05-THIRD","Third Party Payments","05A","Independent units within the council","6502","Agency Homecare (Payments To Independent Units)","91008405","201908",06/11/2018 00:00:00,221.94,"43419","Home Care Services","REDACTED DATA","LONDON CARE PLC","3117278","http://opencorporates.com/companies/gb/3117278",""
"London Borough of Redbridge","http://opendatacommunities.org/doc/london-borough-council/redbridge","6BADULTSOCIA","Adult Social Care","6COLDINCMENT","Older People (65 or over) incl. Older Mentally Ill","REV","Revenue","R4391","OP Home Care","05-THIRD","Third Party Payments","05A","Independent units within the council","6502","Agency Homecare (Payments To Independent Units)","91006691","201908",09/11/2018 00:00:00,235.07,"43419","Home Care Services","REDACTED DATA","ICARE RESOURCE LIMITED","9045427","http://opencorporates.com/companies/gb/9045427",""
"London Borough of Redbridge","http://opendatacommunities.org/doc/london-borough-council/redbridge","6BADULTSOCIA","Adult Social Care","6COLDINCMENT","Older People (65 or over) incl. Older Mentally Ill","REV","Revenue","R4391","OP Home Care","05-THIRD","Third Party Payments","05A","Independent units within the council","6502","Agency Homecare (Payments To Independent Units)","91006747","201908",06/11/2018 00:00:00,497.62,"43419","Home Care Services","REDACTED DATA","ANNIE'S HEALTHCARE SERVICES CIC","5535051","http://opencorporates.com/companies/gb/5535051",""
"London Borough of Redbridge","http://opendatacommunities.org/doc/london-borough-council/redbridge","6BADULTSOCIA","Adult Social Care","6COLDINCMENT","Older People (65 or over) incl. Older Mentally Ill","REV","Revenue","R4391","OP Home Care","05-THIRD","Third Party Payments","05A","Independent units within the council","6502","Agency Homecare (Payments To Independent Units)","91011308","201908",31/10/2018 00:00:00,112.5,"43419","Home Care Services","REDACTED DATA","LONDON CARE PLC","3117278","http://opencorporates.com/companies/gb/3117278",""
"London Borough of Redbridge","http://opendatacommunities.org/doc/london-borough-council/redbridge","6BADULTSOCIA","Adult Social Care","6COLDINCMENT","Older People (65 or over) incl. Older Mentally Ill","REV","Revenue","R4391","OP Home Care","05-THIRD","Third Party Payments","05A","Independent units within the council","6502","Agency Homecare (Payments To Independent Units)","91011309","201908",13/11/2018 00:00:00,430.64,"43419","Home Care Services","REDACTED DATA","LONDON CARE PLC","3117278","http://opencorporates.com/companies/gb/3117278",""
"London Borough of Redbridge","http://opendatacommunities.org/doc/london-borough-council/redbridge","6BADULTSOCIA","Adult Social Care","6COLDINCMENT","Older People (65 or over) incl. Older Mentally Ill","REV","Revenue","R4391","OP Home Care","05-THIRD","Third Party Payments","05A","Independent units within the council","6502","Agency Homecare (Payments To Independent Units)","91010202","201908",26/11/2018 00:00:00,128.05,"43419","Home Care Services","REDACTED DATA","ASTHA LIMITED","4914301","http://opencorporates.com/companies/gb/4914301","882333810"
"London Borough of Redbridge","http://opendatacommunities.org/doc/london-borough-council/redbridge","6BADULTSOCIA","Adult Social Care","6COLDINCMENT","Older People (65 or over) incl. Older Mentally Ill","REV","Revenue","R4391","OP Home Care","05-THIRD","Third Party Payments","05A","Independent units within the council","6502","Agency Homecare (Payments To Independent Units)","91010203","201908",26/11/2018 00:00:00,420.65,"43419","Home Care Services","REDACTED DATA","ASTHA LIMITED","4914301","http://opencorporates.com/companies/gb/4914301","882333810"
"London Borough of Redbridge","http://opendatacommunities.org/doc/london-borough-council/redbridge","6BADULTSOCIA","Adult Social Care","6COLDINCMENT","Older People (65 or over) incl. Older Mentally Ill","REV","Revenue","R4391","OP Home Care","05-THIRD","Third Party Payments","05A","Independent units within the council","6502","Agency Homecare (Payments To Independent Units)","91009687","201908",14/11/2018 00:00:00,13.19,"43419","Home Care Services","REDACTED DATA","ICARE RESOURCE LIMITED","9045427","http://opencorporates.com/companies/gb/9045427",""
"London Borough of Redbridge","http://opendatacommunities.org/doc/london-borough-council/redbridge","6BADULTSOCIA","Adult Social Care","6COLDINCMENT","Older People (65 or over) incl. Older Mentally Ill","REV","Revenue","R4391","OP Home Care","05-THIRD","Third Party Payments","05A","Independent units within the council","6502","Agency Homecare (Payments To Independent Units)","91009688","201908",14/11/2018 00:00:00,46.2,"43419","Home Care Services","REDACTED DATA","ICARE RESOURCE LIMITED","9045427","http://opencorporates.com/companies/gb/9045427",""
"London Borough of Redbridge","http://opendatacommunities.org/doc/london-borough-council/redbridge","6BADULTSOCIA","Adult Social Care","6COLDINCMENT","Older People (65 or over) incl. Older Mentally Ill","REV","Revenue","R4391","OP Home Care","05-THIRD","Third Party Payments","05A","Independent units within the council","6502","Agency Homecare (Payments To Independent Units)","91005480","201908",09/11/2018 00:00:00,19.78,"43419","Home Care Services","REDACTED DATA","ICARE RESOURCE LIMITED","9045427","http://opencorporates.com/companies/gb/9045427",""
"London Borough of Redbridge","http://opendatacommunities.org/doc/london-borough-council/redbridge","6BADULTSOCIA","Adult Social Care","6COLDINCMENT","Older People (65 or over) incl. Older Mentally Ill","REV","Revenue","R4391","OP Home Care","05-THIRD","Third Party Payments","05A","Independent units within the council","6502","Agency Homecare (Payments To Independent Units)","91005481","201908",09/11/2018 00:00:00,13.19,"43419","Home Care Services","REDACTED DATA","ICARE RESOURCE LIMITED","9045427","http://opencorporates.com/companies/gb/9045427",""
"London Borough of Redbridge","http://opendatacommunities.org/doc/london-borough-council/redbridge","6BADULTSOCIA","Adult Social Care","6COLDINCMENT","Older People (65 or over) incl. Older Mentally Ill","REV","Revenue","R4391","OP Home Care","05-THIRD","Third Party Payments","05A","Independent units within the council","6502","Agency Homecare (Payments To Independent Units)","91006039","201908",07/11/2018 00:00:00,168.49,"43419","Home Care Services","REDACTED DATA","RELINE CARE LTD","7728473","http://opencorporates.com/companies/gb/7728473",""
"London Borough of Redbridge","http://opendatacommunities.org/doc/london-borough-council/redbridge","6BADULTSOCIA","Adult Social Care","6COLDINCMENT","Older People (65 or over) incl. Older Mentally Ill","REV","Revenue","R4391","OP Home Care","05-THIRD","Third Party Payments","05A","Independent units within the council","6502","Agency Homecare (Payments To Independent Units)","91006040","201908",07/11/2018 00:00:00,55.01,"43419","Home Care Services","REDACTED DATA","RELINE CARE LTD","7728473","http://opencorporates.com/companies/gb/7728473",""
"London Borough of Redbridge","http://opendatacommunities.org/doc/london-borough-council/redbridge","6BADULTSOCIA","Adult Social Care","6COLDINCMENT","Older People (65 or over) incl. Older Mentally Ill","REV","Revenue","R4391","OP Home Care","05-THIRD","Third Party Payments","05A","Independent units within the council","6502","Agency Homecare (Payments To Independent Units)","91006689","201908",09/11/2018 00:00:00,249.72,"43419","Home Care Services","REDACTED DATA","ICARE RESOURCE LIMITED","9045427","http://opencorporates.com/companies/gb/9045427",""
"London Borough of Redbridge","http://opendatacommunities.org/doc/london-borough-council/redbridge","6BADULTSOCIA","Adult Social Care","6COLDINCMENT","Older People (65 or over) incl. Older Mentally Ill","REV","Revenue","R4391","OP Home Care","05-THIRD","Third Party Payments","05A","Independent units within the council","6502","Agency Homecare (Payments To Independent Units)","91004967","201908",12/11/2018 00:00:00,179.26,"43419","Home Care Services","REDACTED DATA","ASTHA LIMITED","4914301","http://opencorporates.com/companies/gb/4914301","882333810"
"London Borough of Redbridge","http://opendatacommunities.org/doc/london-borough-council/redbridge","6BADULTSOCIA","Adult Social Care","6COLDINCMENT","Older People (65 or over) incl. Older Mentally Ill","REV","Revenue","R4391","OP Home Care","05-THIRD","Third Party Payments","05A","Independent units within the council","6502","Agency Homecare (Payments To Independent Units)","91008500","201908",13/11/2018 00:00:00,125.35,"43419","Home Care Services","REDACTED DATA","LONDON CARE PLC","3117278","http://opencorporates.com/companies/gb/3117278",""
"London Borough of Redbridge","http://opendatacommunities.org/doc/london-borough-council/redbridge","6BADULTSOCIA","Adult Social Care","6COLDINCMENT","Older People (65 or over) incl. Older Mentally Ill","REV","Revenue","R4391","OP Home Care","05-THIRD","Third Party Payments","05A","Independent units within the council","6502","Agency Homecare (Payments To Independent Units)","91008737","201908",06/11/2018 00:00:00,99.98,"43419","Home Care Services","REDACTED DATA","LONDON CARE PLC","3117278","http://opencorporates.com/companies/gb/3117278",""
"London Borough of Redbridge","http://opendatacommunities.org/doc/london-borough-council/redbridge","6BADULTSOCIA","Adult Social Care","6COLDINCMENT","Older People (65 or over) incl. Older Mentally Ill","REV","Revenue","R4391","OP Home Care","05-THIRD","Third Party Payments","05A","Independent units within the council","6502","Agency Homecare (Payments To Independent Units)","91005448","201908",07/11/2018 00:00:00,316.55,"43419","Home Care Services","REDACTED DATA","ICARE RESOURCE LIMITED","9045427","http://opencorporates.com/companies/gb/9045427",""
"London Borough of Redbridge","http://opendatacommunities.org/doc/london-borough-council/redbridge","6BADULTSOCIA","Adult Social Care","6COLDINCMENT","Older People (65 or over) incl. Older Mentally Ill","REV","Revenue","R4391","OP Home Care","05-THIRD","Third Party Payments","05A","Independent units within the council","6502","Agency Homecare (Payments To Independent Units)","91008431","201908",09/11/2018 00:00:00,102.48,"43419","Home Care Services","REDACTED DATA","LONDON CARE PLC","3117278","http://opencorporates.com/companies/gb/3117278",""
"London Borough of Redbridge","http://opendatacommunities.org/doc/london-borough-council/redbridge","6BADULTSOCIA","Adult Social Care","6COLDINCMENT","Older People (65 or over) incl. Older Mentally Ill","REV","Revenue","R4391","OP Home Care","05-THIRD","Third Party Payments","05A","Independent units within the council","6502","Agency Homecare (Payments To Independent Units)","91006690","201908",09/11/2018 00:00:00,221.13,"43419","Home Care Services","REDACTED DATA","ICARE RESOURCE LIMITED","9045427","http://opencorporates.com/companies/gb/9045427",""
"London Borough of Redbridge","http://opendatacommunities.org/doc/london-borough-council/redbridge","6BADULTSOCIA","Adult Social Care","6COLDINCMENT","Older People (65 or over) incl. Older Mentally Ill","REV","Revenue","R4391","OP Home Care","05-THIRD","Third Party Payments","05A","Independent units within the council","6502","Agency Homecare (Payments To Independent Units)","91005440","201908",06/11/2018 00:00:00,174.77,"43419","Home Care Services","REDACTED DATA","ICARE RESOURCE LIMITED","9045427","http://opencorporates.com/companies/gb/9045427",""
"London Borough of Redbridge","http://opendatacommunities.org/doc/london-borough-council/redbridge","1BCENTRALPUB","Central Services to the Public","1CLOCALTAXCO","Local Tax Collection","REV","Revenue","R5760","Local Tax Collection","04-SUPPLIES","Supplies And Services","04D","Printing, stationery and general office expenses","5710","Stationery","60388128","201908",30/10/2018 00:00:00,124,"61820","Printers' Services and Supplies","REDACTED DATA","Radclyffe Culross & Sproston LTD","391378","http://opencorporates.com/companies/gb/391378","232832087"
"London Borough of Redbridge","http://opendatacommunities.org/doc/london-borough-council/redbridge","1BCENTRALPUB","Central Services to the Public","1CLOCALTAXCO","Local Tax Collection","REV","Revenue","R5760","Local Tax Collection","04-SUPPLIES","Supplies And Services","04H","Grants and subscriptions","5954","Professional Fees","60389778","201908",15/11/2018 00:00:00,236.25,"74700","Surveyors and Valuers","REDACTED DATA","INFORM CPI LTD","5599551","http://opencorporates.com/companies/gb/5599551","880928388"
"London Borough of Redbridge","http://opendatacommunities.org/doc/london-borough-council/redbridge","1BCENTRALPUB","Central Services to the Public","1CLOCALTAXCO","Local Tax Collection","REV","Revenue","R5760","Local Tax Collection","04-SUPPLIES","Supplies And Services","04H","Grants and subscriptions","5954","Professional Fees","60390615","201908",29/11/2018 00:00:00,112.5,"74700","Surveyors and Valuers","REDACTED DATA","INFORM CPI LTD","5599551","http://opencorporates.com/companies/gb/5599551","880928388"
"London Borough of Redbridge","http://opendatacommunities.org/doc/london-borough-council/redbridge","1BCENTRALPUB","Central Services to the Public","1CLOCALTAXCO","Local Tax Collection","REV","Revenue","R5760","Local Tax Collection","04-SUPPLIES","Supplies And Services","04H","Grants and subscriptions","5957","Bailiff Fees","70104894","201908",17/11/2018 00:00:00,825,"24230","Debt Collection Agencies","REDACTED DATA","NEWLYN PLC","3770985","http://opencorporates.com/companies/gb/3770985","739828088"
"London Borough of Redbridge","http://opendatacommunities.org/doc/london-borough-council/redbridge","1BCENTRALPUB","Central Services to the Public","1CLOCALTAXCO","Local Tax Collection","REV","Revenue","R9005","Registrar Service","04-SUPPLIES","Supplies And Services","04B","Catering","5602","Refreshments","80031622","201908",25/10/2018 00:00:00,41.48,"84070","Water Suppliers - Bottled","REDACTED DATA","EDEN SPRINGS (UK) LTD (NATURE SPRING)","4063744","http://opencorporates.com/companies/gb/4063744","232160411"
"London Borough of Redbridge","http://opendatacommunities.org/doc/london-borough-council/redbridge","1BCENTRALPUB","Central Services to the Public","1CLOCALTAXCO","Local Tax Collection","REV","Revenue","R9005","Registrar Service","04-SUPPLIES","Supplies And Services","04B","Catering","5602","Refreshments","80031245","201908",23/10/2018 00:00:00,48.57,"84070","Water Suppliers - Bottled","REDACTED DATA","EDEN SPRINGS (UK) LTD (NATURE SPRING)","4063744","http://opencorporates.com/companies/gb/4063744","232160411"
"London Borough of Redbridge","http://opendatacommunities.org/doc/london-borough-council/redbridge","1BCENTRALPUB","Central Services to the Public","1CLOCALTAXCO","Local Tax Collection","REV","Revenue","R9005","Registrar Service","04-SUPPLIES","Supplies And Services","04D","Printing, stationery and general office expenses","5710","Stationery","3530095","201908",18/10/2018 00:00:00,-4.3,"53770","Office Stationery Supplies","REDACTED DATA","OFFICE DEPOT UK LTD (EX-GUILBERT UK)","2654682","http://opencorporates.com/companies/gb/2654682","673478594"
"London Borough of Redbridge","http://opendatacommunities.org/doc/london-borough-council/redbridge","1BCENTRALPUB","Central Services to the Public","1CLOCALTAXCO","Local Tax Collection","REV","Revenue","R9005","Registrar Service","04-SUPPLIES","Supplies And Services","04D","Printing, stationery and general office expenses","5710","Stationery","3530095","201908",18/10/2018 00:00:00,-2.2,"53770","Office Stationery Supplies","REDACTED DATA","OFFICE DEPOT UK LTD (EX-GUILBERT UK)","2654682","http://opencorporates.com/companies/gb/2654682","673478594"
"London Borough of Redbridge","http://opendatacommunities.org/doc/london-borough-council/redbridge","1BCENTRALPUB","Central Services to the Public","1CLOCALTAXCO","Local Tax Collection","REV","Revenue","R9005","Registrar Service","04-SUPPLIES","Supplies And Services","04D","Printing, stationery and general office expenses","5710","Stationery","3530095","201908",18/10/2018 00:00:00,-1.5,"53770","Office Stationery Supplies","REDACTED DATA","OFFICE DEPOT UK LTD (EX-GUILBERT UK)","2654682","http://opencorporates.com/companies/gb/2654682","673478594"
"London Borough of Redbridge","http://opendatacommunities.org/doc/london-borough-council/redbridge","1BCENTRALPUB","Central Services to the Public","1CLOCALTAXCO","Local Tax Collection","REV","Revenue","R9005","Registrar Service","04-SUPPLIES","Supplies And Services","04D","Printing, stationery and general office expenses","5710","Stationery","3530095","201908",18/10/2018 00:00:00,-5.99,"53770","Office Stationery Supplies","REDACTED DATA","OFFICE DEPOT UK LTD (EX-GUILBERT UK)","2654682","http://opencorporates.com/companies/gb/2654682","673478594"
"London Borough of Redbridge","http://opendatacommunities.org/doc/london-borough-council/redbridge","1BCENTRALPUB","Central Services to the Public","1CLOCALTAXCO","Local Tax Collection","REV","Revenue","R9005","Registrar Service","04-SUPPLIES","Supplies And Services","04D","Printing, stationery and general office expenses","5710","Stationery","3530095","201908",19/10/2018 00:00:00,5.99,"53770","Office Stationery Supplies","REDACTED DATA","OFFICE DEPOT UK LTD (EX-GUILBERT UK)","2654682","http://opencorporates.com/companies/gb/2654682","673478594"
"London Borough of Redbridge","http://opendatacommunities.org/doc/london-borough-council/redbridge","6BADULTSOCIA","Adult Social Care","6COLDINCMENT","Older People (65 or over) incl. Older Mentally Ill","REV","Revenue","R4391","OP Home Care","05-THIRD","Third Party Payments","05A","Independent units within the council","6502","Agency Homecare (Payments To Independent Units)","91005441","201908",07/11/2018 00:00:00,158.26,"43419","Home Care Services","REDACTED DATA","ICARE RESOURCE LIMITED","9045427","http://opencorporates.com/companies/gb/9045427",""
"London Borough of Redbridge","http://opendatacommunities.org/doc/london-borough-council/redbridge","6BADULTSOCIA","Adult Social Care","6COLDINCMENT","Older People (65 or over) incl. Older Mentally Ill","REV","Revenue","R4391","OP Home Care","05-THIRD","Third Party Payments","05A","Independent units within the council","6502","Agency Homecare (Payments To Independent Units)","91004968","201908",12/11/2018 00:00:00,14.63,"43419","Home Care Services","REDACTED DATA","ASTHA LIMITED","4914301","http://opencorporates.com/companies/gb/4914301","882333810"
"London Borough of Redbridge","http://opendatacommunities.org/doc/london-borough-council/redbridge","6BADULTSOCIA","Adult Social Care","6COLDINCMENT","Older People (65 or over) incl. Older Mentally Ill","REV","Revenue","R4391","OP Home Care","05-THIRD","Third Party Payments","05A","Independent units within the council","6502","Agency Homecare (Payments To Independent Units)","91008024","201908",08/11/2018 00:00:00,180.32,"43419","Home Care Services","REDACTED DATA","J.C.MICHAEL GROUPS LTD","5571458","http://opencorporates.com/companies/gb/5571458","975674560"
"London Borough of Redbridge","http://opendatacommunities.org/doc/london-borough-council/redbridge","6BADULTSOCIA","Adult Social Care","6COLDINCMENT","Older People (65 or over) incl. Older Mentally Ill","REV","Revenue","R4391","OP Home Care","05-THIRD","Third Party Payments","05A","Independent units within the council","6502","Agency Homecare (Payments To Independent Units)","91008025","201908",08/11/2018 00:00:00,231.47,"43419","Home Care Services","REDACTED DATA","J.C.MICHAEL GROUPS LTD","5571458","http://opencorporates.com/companies/gb/5571458","975674560"
"London Borough of Redbridge","http://opendatacommunities.org/doc/london-borough-council/redbridge","6BADULTSOCIA","Adult Social Care","6COLDINCMENT","Older People (65 or over) incl. Older Mentally Ill","REV","Revenue","R4391","OP Home Care","05-THIRD","Third Party Payments","05A","Independent units within the council","6502","Agency Homecare (Payments To Independent Units)","91008679","201908",17/10/2018 00:00:00,430.64,"43419","Home Care Services","REDACTED DATA","LONDON CARE PLC","3117278","http://opencorporates.com/companies/gb/3117278",""
"London Borough of Redbridge","http://opendatacommunities.org/doc/london-borough-council/redbridge","6BADULTSOCIA","Adult Social Care","6COLDINCMENT","Older People (65 or over) incl. Older Mentally Ill","REV","Revenue","R4391","OP Home Care","05-THIRD","Third Party Payments","05A","Independent units within the council","6502","Agency Homecare (Payments To Independent Units)","91005990","201908",01/11/2018 00:00:00,167.28,"43419","Home Care Services","REDACTED DATA","RELINE CARE LTD","7728473","http://opencorporates.com/companies/gb/7728473",""
"London Borough of Redbridge","http://opendatacommunities.org/doc/london-borough-council/redbridge","6BADULTSOCIA","Adult Social Care","6COLDINCMENT","Older People (65 or over) incl. Older Mentally Ill","REV","Revenue","R4391","OP Home Care","05-THIRD","Third Party Payments","05A","Independent units within the council","6502","Agency Homecare (Payments To Independent Units)","91005438","201908",06/11/2018 00:00:00,158.38,"43419","Home Care Services","REDACTED DATA","ICARE RESOURCE LIMITED","9045427","http://opencorporates.com/companies/gb/9045427",""
"London Borough of Redbridge","http://opendatacommunities.org/doc/london-borough-council/redbridge","6BADULTSOCIA","Adult Social Care","6COLDINCMENT","Older People (65 or over) incl. Older Mentally Ill","REV","Revenue","R4391","OP Home Care","05-THIRD","Third Party Payments","05A","Independent units within the council","6502","Agency Homecare (Payments To Independent Units)","91005981","201908",24/10/2018 00:00:00,174.21,"43419","Home Care Services","REDACTED DATA","RELINE CARE LTD","7728473","http://opencorporates.com/companies/gb/7728473",""
"London Borough of Redbridge","http://opendatacommunities.org/doc/london-borough-council/redbridge","6BADULTSOCIA","Adult Social Care","6COLDINCMENT","Older People (65 or over) incl. Older Mentally Ill","REV","Revenue","R4391","OP Home Care","05-THIRD","Third Party Payments","05A","Independent units within the council","6502","Agency Homecare (Payments To Independent Units)","91005982","201908",24/10/2018 00:00:00,44.68,"43419","Home Care Services","REDACTED DATA","RELINE CARE LTD","7728473","http://opencorporates.com/companies/gb/7728473",""
"London Borough of Redbridge","http://opendatacommunities.org/doc/london-borough-council/redbridge","6BADULTSOCIA","Adult Social Care","6COLDINCMENT","Older People (65 or over) incl. Older Mentally Ill","REV","Revenue","R4391","OP Home Care","05-THIRD","Third Party Payments","05A","Independent units within the council","6502","Agency Homecare (Payments To Independent Units)","91008709","201908",02/11/2018 00:00:00,341.25,"43419","Home Care Services","REDACTED DATA","LONDON CARE PLC","3117278","http://opencorporates.com/companies/gb/3117278",""
"London Borough of Redbridge","http://opendatacommunities.org/doc/london-borough-council/redbridge","6BADULTSOCIA","Adult Social Care","6COLDINCMENT","Older People (65 or over) incl. Older Mentally Ill","REV","Revenue","R4391","OP Home Care","05-THIRD","Third Party Payments","05A","Independent units within the council","6502","Agency Homecare (Payments To Independent Units)","91008676","201908",07/11/2018 00:00:00,364.52,"43419","Home Care Services","REDACTED DATA","RELINE CARE LTD","7728473","http://opencorporates.com/companies/gb/7728473",""
"London Borough of Redbridge","http://opendatacommunities.org/doc/london-borough-council/redbridge","6BADULTSOCIA","Adult Social Care","6COLDINCMENT","Older People (65 or over) incl. Older Mentally Ill","REV","Revenue","R4391","OP Home Care","05-THIRD","Third Party Payments","05A","Independent units within the council","6502","Agency Homecare (Payments To Independent Units)","91005446","201908",07/11/2018 00:00:00,159.43,"43419","Home Care Services","REDACTED DATA","ICARE RESOURCE LIMITED","9045427","http://opencorporates.com/companies/gb/9045427",""
"London Borough of Redbridge","http://opendatacommunities.org/doc/london-borough-council/redbridge","6BADULTSOCIA","Adult Social Care","6COLDINCMENT","Older People (65 or over) incl. Older Mentally Ill","REV","Revenue","R4391","OP Home Care","05-THIRD","Third Party Payments","05A","Independent units within the council","6502","Agency Homecare (Payments To Independent Units)","91005447","201908",07/11/2018 00:00:00,13.2,"43419","Home Care Services","REDACTED DATA","ICARE RESOURCE LIMITED","9045427","http://opencorporates.com/companies/gb/9045427",""
"London Borough of Redbridge","http://opendatacommunities.org/doc/london-borough-council/redbridge","6BADULTSOCIA","Adult Social Care","6COLDINCMENT","Older People (65 or over) incl. Older Mentally Ill","REV","Revenue","R4391","OP Home Care","05-THIRD","Third Party Payments","05A","Independent units within the council","6502","Agency Homecare (Payments To Independent Units)","91006058","201908",12/11/2018 00:00:00,154.69,"43419","Home Care Services","REDACTED DATA","RELINE CARE LTD","7728473","http://opencorporates.com/companies/gb/7728473",""
"London Borough of Redbridge","http://opendatacommunities.org/doc/london-borough-council/redbridge","6BADULTSOCIA","Adult Social Care","6COLDINCMENT","Older People (65 or over) incl. Older Mentally Ill","REV","Revenue","R4391","OP Home Care","05-THIRD","Third Party Payments","05A","Independent units within the council","6502","Agency Homecare (Payments To Independent Units)","91006059","201908",12/11/2018 00:00:00,154.69,"43419","Home Care Services","REDACTED DATA","RELINE CARE LTD","7728473","http://opencorporates.com/companies/gb/7728473",""
"London Borough of Redbridge","http://opendatacommunities.org/doc/london-borough-council/redbridge","6BADULTSOCIA","Adult Social Care","6COLDINCMENT","Older People (65 or over) incl. Older Mentally Ill","REV","Revenue","R4391","OP Home Care","05-THIRD","Third Party Payments","05A","Independent units within the council","6502","Agency Homecare (Payments To Independent Units)","91008779","201908",12/11/2018 00:00:00,119.22,"43419","Home Care Services","REDACTED DATA","LONDON CARE PLC","3117278","http://opencorporates.com/companies/gb/3117278",""
"London Borough of Redbridge","http://opendatacommunities.org/doc/london-borough-council/redbridge","6BADULTSOCIA","Adult Social Care","6COLDINCMENT","Older People (65 or over) incl. Older Mentally Ill","REV","Revenue","R4391","OP Home Care","05-THIRD","Third Party Payments","05A","Independent units within the council","6502","Agency Homecare (Payments To Independent Units)","91008780","201908",12/11/2018 00:00:00,149.98,"43419","Home Care Services","REDACTED DATA","LONDON CARE PLC","3117278","http://opencorporates.com/companies/gb/3117278",""
"London Borough of Redbridge","http://opendatacommunities.org/doc/london-borough-council/redbridge","6BADULTSOCIA","Adult Social Care","6COLDINCMENT","Older People (65 or over) incl. Older Mentally Ill","REV","Revenue","R4391","OP Home Care","05-THIRD","Third Party Payments","05A","Independent units within the council","6502","Agency Homecare (Payments To Independent Units)","91008656","201908",01/11/2018 00:00:00,489.93,"43419","Home Care Services","REDACTED DATA","RELINE CARE LTD","7728473","http://opencorporates.com/companies/gb/7728473",""
"London Borough of Redbridge","http://opendatacommunities.org/doc/london-borough-council/redbridge","6BADULTSOCIA","Adult Social Care","6COLDINCMENT","Older People (65 or over) incl. Older Mentally Ill","REV","Revenue","R4391","OP Home Care","05-THIRD","Third Party Payments","05A","Independent units within the council","6502","Agency Homecare (Payments To Independent Units)","91005482","201908",09/11/2018 00:00:00,65.96,"43419","Home Care Services","REDACTED DATA","ICARE RESOURCE LIMITED","9045427","http://opencorporates.com/companies/gb/9045427",""
"London Borough of Redbridge","http://opendatacommunities.org/doc/london-borough-council/redbridge","6BADULTSOCIA","Adult Social Care","6COLDINCMENT","Older People (65 or over) incl. Older Mentally Ill","REV","Revenue","R4391","OP Home Care","05-THIRD","Third Party Payments","05A","Independent units within the council","6502","Agency Homecare (Payments To Independent Units)","91005483","201908",09/11/2018 00:00:00,69.23,"43419","Home Care Services","REDACTED DATA","ICARE RESOURCE LIMITED","9045427","http://opencorporates.com/companies/gb/9045427",""
"London Borough of Redbridge","http://opendatacommunities.org/doc/london-borough-council/redbridge","6BADULTSOCIA","Adult Social Care","6COLDINCMENT","Older People (65 or over) incl. Older Mentally Ill","REV","Revenue","R4391","OP Home Care","05-THIRD","Third Party Payments","05A","Independent units within the council","6502","Agency Homecare (Payments To Independent Units)","91006749","201908",06/11/2018 00:00:00,497.62,"43419","Home Care Services","REDACTED DATA","ANNIE'S HEALTHCARE SERVICES CIC","5535051","http://opencorporates.com/companies/gb/5535051",""
"London Borough of Redbridge","http://opendatacommunities.org/doc/london-borough-council/redbridge","6BADULTSOCIA","Adult Social Care","6COLDINCMENT","Older People (65 or over) incl. Older Mentally Ill","REV","Revenue","R4391","OP Home Care","05-THIRD","Third Party Payments","05A","Independent units within the council","6502","Agency Homecare (Payments To Independent Units)","91005459","201908",08/11/2018 00:00:00,59.34,"43419","Home Care Services","REDACTED DATA","ICARE RESOURCE LIMITED","9045427","http://opencorporates.com/companies/gb/9045427",""
"London Borough of Redbridge","http://opendatacommunities.org/doc/london-borough-council/redbridge","6BADULTSOCIA","Adult Social Care","6COLDINCMENT","Older People (65 or over) incl. Older Mentally Ill","REV","Revenue","R4391","OP Home Care","05-THIRD","Third Party Payments","05A","Independent units within the council","6502","Agency Homecare (Payments To Independent Units)","91005460","201908",08/11/2018 00:00:00,59.34,"43419","Home Care Services","REDACTED DATA","ICARE RESOURCE LIMITED","9045427","http://opencorporates.com/companies/gb/9045427",""
"London Borough of Redbridge","http://opendatacommunities.org/doc/london-borough-council/redbridge","6BADULTSOCIA","Adult Social Care","6COLDINCMENT","Older People (65 or over) incl. Older Mentally Ill","REV","Revenue","R4391","OP Home Care","05-THIRD","Third Party Payments","05A","Independent units within the council","6502","Agency Homecare (Payments To Independent Units)","91008723","201908",05/11/2018 00:00:00,96.14,"43419","Home Care Services","REDACTED DATA","LONDON CARE PLC","3117278","http://opencorporates.com/companies/gb/3117278",""
"London Borough of Redbridge","http://opendatacommunities.org/doc/london-borough-council/redbridge","6BADULTSOCIA","Adult Social Care","6COLDINCMENT","Older People (65 or over) incl. Older Mentally Ill","REV","Revenue","R4391","OP Home Care","05-THIRD","Third Party Payments","05A","Independent units within the council","6502","Agency Homecare (Payments To Independent Units)","91008378","201908",06/11/2018 00:00:00,21.96,"43419","Home Care Services","REDACTED DATA","LONDON CARE PLC","3117278","http://opencorporates.com/companies/gb/3117278",""
"London Borough of Redbridge","http://opendatacommunities.org/doc/london-borough-council/redbridge","6BADULTSOCIA","Adult Social Care","6COLDINCMENT","Older People (65 or over) incl. Older Mentally Ill","REV","Revenue","R4391","OP Home Care","05-THIRD","Third Party Payments","05A","Independent units within the council","6502","Agency Homecare (Payments To Independent Units)","91008379","201908",06/11/2018 00:00:00,14.63,"43419","Home Care Services","REDACTED DATA","LONDON CARE PLC","3117278","http://opencorporates.com/companies/gb/3117278",""
"London Borough of Redbridge","http://opendatacommunities.org/doc/london-borough-council/redbridge","6BADULTSOCIA","Adult Social Care","6COLDINCMENT","Older People (65 or over) incl. Older Mentally Ill","REV","Revenue","R4391","OP Home Care","05-THIRD","Third Party Payments","05A","Independent units within the council","6502","Agency Homecare (Payments To Independent Units)","91006048","201908",07/11/2018 00:00:00,91.21,"43419","Home Care Services","REDACTED DATA","RELINE CARE LTD","7728473","http://opencorporates.com/companies/gb/7728473",""
"London Borough of Redbridge","http://opendatacommunities.org/doc/london-borough-council/redbridge","6BADULTSOCIA","Adult Social Care","6COLDINCMENT","Older People (65 or over) incl. Older Mentally Ill","REV","Revenue","R4391","OP Home Care","05-THIRD","Third Party Payments","05A","Independent units within the council","6502","Agency Homecare (Payments To Independent Units)","91006345","201908",01/11/2018 00:00:00,270.14,"43419","Home Care Services","REDACTED DATA","PROMPT HEALTHCARE STAFFING LTD","8453491","http://opencorporates.com/companies/gb/8453491",""
"London Borough of Redbridge","http://opendatacommunities.org/doc/london-borough-council/redbridge","6BADULTSOCIA","Adult Social Care","6COLDINCMENT","Older People (65 or over) incl. Older Mentally Ill","REV","Revenue","R4391","OP Home Care","05-THIRD","Third Party Payments","05A","Independent units within the council","6502","Agency Homecare (Payments To Independent Units)","91008475","201908",13/11/2018 00:00:00,97.59,"43419","Home Care Services","REDACTED DATA","LONDON CARE PLC","3117278","http://opencorporates.com/companies/gb/3117278",""
"London Borough of Redbridge","http://opendatacommunities.org/doc/london-borough-council/redbridge","6BADULTSOCIA","Adult Social Care","6COLDINCMENT","Older People (65 or over) incl. Older Mentally Ill","REV","Revenue","R4391","OP Home Care","05-THIRD","Third Party Payments","05A","Independent units within the council","6502","Agency Homecare (Payments To Independent Units)","91006015","201908",07/11/2018 00:00:00,48.15,"43419","Home Care Services","REDACTED DATA","RELINE CARE LTD","7728473","http://opencorporates.com/companies/gb/7728473",""
"London Borough of Redbridge","http://opendatacommunities.org/doc/london-borough-council/redbridge","1BCENTRALPUB","Central Services to the Public","1CLOCALTAXCO","Local Tax Collection","REV","Revenue","R9005","Registrar Service","04-SUPPLIES","Supplies And Services","04D","Printing, stationery and general office expenses","5710","Stationery","3530095","201908",19/10/2018 00:00:00,1.5,"53770","Office Stationery Supplies","REDACTED DATA","OFFICE DEPOT UK LTD (EX-GUILBERT UK)","2654682","http://opencorporates.com/companies/gb/2654682","673478594"
"London Borough of Redbridge","http://opendatacommunities.org/doc/london-borough-council/redbridge","1BCENTRALPUB","Central Services to the Public","1CLOCALTAXCO","Local Tax Collection","REV","Revenue","R9005","Registrar Service","04-SUPPLIES","Supplies And Services","04D","Printing, stationery and general office expenses","5710","Stationery","3530095","201908",19/10/2018 00:00:00,1.55,"53770","Office Stationery Supplies","REDACTED DATA","OFFICE DEPOT UK LTD (EX-GUILBERT UK)","2654682","http://opencorporates.com/companies/gb/2654682","673478594"
"London Borough of Redbridge","http://opendatacommunities.org/doc/london-borough-council/redbridge","1BCENTRALPUB","Central Services to the Public","1CLOCALTAXCO","Local Tax Collection","REV","Revenue","R9005","Registrar Service","04-SUPPLIES","Supplies And Services","04D","Printing, stationery and general office expenses","5710","Stationery","3530095","201908",19/10/2018 00:00:00,1.35,"53770","Office Stationery Supplies","REDACTED DATA","OFFICE DEPOT UK LTD (EX-GUILBERT UK)","2654682","http://opencorporates.com/companies/gb/2654682","673478594"
"London Borough of Redbridge","http://opendatacommunities.org/doc/london-borough-council/redbridge","1BCENTRALPUB","Central Services to the Public","1CLOCALTAXCO","Local Tax Collection","REV","Revenue","R9005","Registrar Service","04-SUPPLIES","Supplies And Services","04D","Printing, stationery and general office expenses","5710","Stationery","3530095","201908",18/10/2018 00:00:00,2.04,"53770","Office Stationery Supplies","REDACTED DATA","OFFICE DEPOT UK LTD (EX-GUILBERT UK)","2654682","http://opencorporates.com/companies/gb/2654682","673478594"
"London Borough of Redbridge","http://opendatacommunities.org/doc/london-borough-council/redbridge","1BCENTRALPUB","Central Services to the Public","1CLOCALTAXCO","Local Tax Collection","REV","Revenue","R9005","Registrar Service","04-SUPPLIES","Supplies And Services","04D","Printing, stationery and general office expenses","5710","Stationery","3530095","201908",19/10/2018 00:00:00,2.04,"53770","Office Stationery Supplies","REDACTED DATA","OFFICE DEPOT UK LTD (EX-GUILBERT UK)","2654682","http://opencorporates.com/companies/gb/2654682","673478594"
"London Borough of Redbridge","http://opendatacommunities.org/doc/london-borough-council/redbridge","1BCENTRALPUB","Central Services to the Public","1CLOCALTAXCO","Local Tax Collection","REV","Revenue","R9005","Registrar Service","04-SUPPLIES","Supplies And Services","04D","Printing, stationery and general office expenses","5710","Stationery","3530095","201908",19/10/2018 00:00:00,2.2,"53770","Office Stationery Supplies","REDACTED DATA","OFFICE DEPOT UK LTD (EX-GUILBERT UK)","2654682","http://opencorporates.com/companies/gb/2654682","673478594"
"London Borough of Redbridge","http://opendatacommunities.org/doc/london-borough-council/redbridge","1BCENTRALPUB","Central Services to the Public","1CLOCALTAXCO","Local Tax Collection","REV","Revenue","R9005","Registrar Service","04-SUPPLIES","Supplies And Services","04D","Printing, stationery and general office expenses","5710","Stationery","3530095","201908",19/10/2018 00:00:00,4.3,"53770","Office Stationery Supplies","REDACTED DATA","OFFICE DEPOT UK LTD (EX-GUILBERT UK)","2654682","http://opencorporates.com/companies/gb/2654682","673478594"
"London Borough of Redbridge","http://opendatacommunities.org/doc/london-borough-council/redbridge","1BCENTRALPUB","Central Services to the Public","1CLOCALTAXCO","Local Tax Collection","REV","Revenue","R9005","Registrar Service","04-SUPPLIES","Supplies And Services","04D","Printing, stationery and general office expenses","5710","Stationery","3530095","201908",18/10/2018 00:00:00,1.35,"53770","Office Stationery Supplies","REDACTED DATA","OFFICE DEPOT UK LTD (EX-GUILBERT UK)","2654682","http://opencorporates.com/companies/gb/2654682","673478594"
"London Borough of Redbridge","http://opendatacommunities.org/doc/london-borough-council/redbridge","1BCENTRALPUB","Central Services to the Public","1CLOCALTAXCO","Local Tax Collection","REV","Revenue","R9005","Registrar Service","04-SUPPLIES","Supplies And Services","04D","Printing, stationery and general office expenses","5710","Stationery","3530095","201908",18/10/2018 00:00:00,4.3,"53770","Office Stationery Supplies","REDACTED DATA","OFFICE DEPOT UK LTD (EX-GUILBERT UK)","2654682","http://opencorporates.com/companies/gb/2654682","673478594"
"London Borough of Redbridge","http://opendatacommunities.org/doc/london-borough-council/redbridge","1BCENTRALPUB","Central Services to the Public","1CLOCALTAXCO","Local Tax Collection","REV","Revenue","R9005","Registrar Service","04-SUPPLIES","Supplies And Services","04D","Printing, stationery and general office expenses","5710","Stationery","3530095","201908",18/10/2018 00:00:00,5.99,"53770","Office Stationery Supplies","REDACTED DATA","OFFICE DEPOT UK LTD (EX-GUILBERT UK)","2654682","http://opencorporates.com/companies/gb/2654682","673478594"
"London Borough of Redbridge","http://opendatacommunities.org/doc/london-borough-council/redbridge","6BADULTSOCIA","Adult Social Care","6COLDINCMENT","Older People (65 or over) incl. Older Mentally Ill","REV","Revenue","R4391","OP Home Care","05-THIRD","Third Party Payments","05A","Independent units within the council","6502","Agency Homecare (Payments To Independent Units)","91008786","201908",12/11/2018 00:00:00,149.98,"43419","Home Care Services","REDACTED DATA","LONDON CARE PLC","3117278","http://opencorporates.com/companies/gb/3117278",""
"London Borough of Redbridge","http://opendatacommunities.org/doc/london-borough-council/redbridge","6BADULTSOCIA","Adult Social Care","6COLDINCMENT","Older People (65 or over) incl. Older Mentally Ill","REV","Revenue","R4391","OP Home Care","05-THIRD","Third Party Payments","05A","Independent units within the council","6502","Agency Homecare (Payments To Independent Units)","91008787","201908",12/11/2018 00:00:00,119.22,"43419","Home Care Services","REDACTED DATA","LONDON CARE PLC","3117278","http://opencorporates.com/companies/gb/3117278",""
"London Borough of Redbridge","http://opendatacommunities.org/doc/london-borough-council/redbridge","6BADULTSOCIA","Adult Social Care","6COLDINCMENT","Older People (65 or over) incl. Older Mentally Ill","REV","Revenue","R4391","OP Home Care","05-THIRD","Third Party Payments","05A","Independent units within the council","6502","Agency Homecare (Payments To Independent Units)","91008445","201908",09/11/2018 00:00:00,278.08,"43419","Home Care Services","REDACTED DATA","LONDON CARE PLC","3117278","http://opencorporates.com/companies/gb/3117278",""
"London Borough of Redbridge","http://opendatacommunities.org/doc/london-borough-council/redbridge","6BADULTSOCIA","Adult Social Care","6COLDINCMENT","Older People (65 or over) incl. Older Mentally Ill","REV","Revenue","R4391","OP Home Care","05-THIRD","Third Party Payments","05A","Independent units within the council","6502","Agency Homecare (Payments To Independent Units)","91008446","201908",09/11/2018 00:00:00,153.65,"43419","Home Care Services","REDACTED DATA","LONDON CARE PLC","3117278","http://opencorporates.com/companies/gb/3117278",""
"London Borough of Redbridge","http://opendatacommunities.org/doc/london-borough-council/redbridge","6BADULTSOCIA","Adult Social Care","6COLDINCMENT","Older People (65 or over) incl. Older Mentally Ill","REV","Revenue","R4391","OP Home Care","05-THIRD","Third Party Payments","05A","Independent units within the council","6502","Agency Homecare (Payments To Independent Units)","91006051","201908",12/11/2018 00:00:00,154.69,"43419","Home Care Services","REDACTED DATA","RELINE CARE LTD","7728473","http://opencorporates.com/companies/gb/7728473",""
"London Borough of Redbridge","http://opendatacommunities.org/doc/london-borough-council/redbridge","6BADULTSOCIA","Adult Social Care","6COLDINCMENT","Older People (65 or over) incl. Older Mentally Ill","REV","Revenue","R4391","OP Home Care","05-THIRD","Third Party Payments","05A","Independent units within the council","6502","Agency Homecare (Payments To Independent Units)","91005980","201908",24/10/2018 00:00:00,209.7,"43419","Home Care Services","REDACTED DATA","RELINE CARE LTD","7728473","http://opencorporates.com/companies/gb/7728473",""
"London Borough of Redbridge","http://opendatacommunities.org/doc/london-borough-council/redbridge","6BADULTSOCIA","Adult Social Care","6COLDINCMENT","Older People (65 or over) incl. Older Mentally Ill","REV","Revenue","R4391","OP Home Care","05-THIRD","Third Party Payments","05A","Independent units within the council","6502","Agency Homecare (Payments To Independent Units)","91005984","201908",01/11/2018 00:00:00,216.58,"43419","Home Care Services","REDACTED DATA","RELINE CARE LTD","7728473","http://opencorporates.com/companies/gb/7728473",""
"London Borough of Redbridge","http://opendatacommunities.org/doc/london-borough-council/redbridge","6BADULTSOCIA","Adult Social Care","6COLDINCMENT","Older People (65 or over) incl. Older Mentally Ill","REV","Revenue","R4391","OP Home Care","05-THIRD","Third Party Payments","05A","Independent units within the council","6502","Agency Homecare (Payments To Independent Units)","91008702","201908",31/10/2018 00:00:00,46.16,"43419","Home Care Services","REDACTED DATA","LONDON CARE PLC","3117278","http://opencorporates.com/companies/gb/3117278",""
"London Borough of Redbridge","http://opendatacommunities.org/doc/london-borough-council/redbridge","6BADULTSOCIA","Adult Social Care","6COLDINCMENT","Older People (65 or over) incl. Older Mentally Ill","REV","Revenue","R4391","OP Home Care","05-THIRD","Third Party Payments","05A","Independent units within the council","6502","Agency Homecare (Payments To Independent Units)","91008703","201908",31/10/2018 00:00:00,46.16,"43419","Home Care Services","REDACTED DATA","LONDON CARE PLC","3117278","http://opencorporates.com/companies/gb/3117278",""
"London Borough of Redbridge","http://opendatacommunities.org/doc/london-borough-council/redbridge","6BADULTSOCIA","Adult Social Care","6COLDINCMENT","Older People (65 or over) incl. Older Mentally Ill","REV","Revenue","R4391","OP Home Care","05-THIRD","Third Party Payments","05A","Independent units within the council","6502","Agency Homecare (Payments To Independent Units)","91005471","201908",08/11/2018 00:00:00,79.16,"43419","Home Care Services","REDACTED DATA","ICARE RESOURCE LIMITED","9045427","http://opencorporates.com/companies/gb/9045427",""
"London Borough of Redbridge","http://opendatacommunities.org/doc/london-borough-council/redbridge","1BCENTRALPUB","Central Services to the Public","1CLOCALTAXCO","Local Tax Collection","REV","Revenue","R9005","Registrar Service","04-SUPPLIES","Supplies And Services","04D","Printing, stationery and general office expenses","5710","Stationery","3530095","201908",18/10/2018 00:00:00,1.5,"53770","Office Stationery Supplies","REDACTED DATA","OFFICE DEPOT UK LTD (EX-GUILBERT UK)","2654682","http://opencorporates.com/companies/gb/2654682","673478594"
"London Borough of Redbridge","http://opendatacommunities.org/doc/london-borough-council/redbridge","1BCENTRALPUB","Central Services to the Public","1CLOCALTAXCO","Local Tax Collection","REV","Revenue","R9005","Registrar Service","04-SUPPLIES","Supplies And Services","04D","Printing, stationery and general office expenses","5710","Stationery","3530095","201908",18/10/2018 00:00:00,-1.35,"53770","Office Stationery Supplies","REDACTED DATA","OFFICE DEPOT UK LTD (EX-GUILBERT UK)","2654682","http://opencorporates.com/companies/gb/2654682","673478594"
"London Borough of Redbridge","http://opendatacommunities.org/doc/london-borough-council/redbridge","1BCENTRALPUB","Central Services to the Public","1CLOCALTAXCO","Local Tax Collection","REV","Revenue","R9005","Registrar Service","04-SUPPLIES","Supplies And Services","04D","Printing, stationery and general office expenses","5710","Stationery","3530095","201908",18/10/2018 00:00:00,-2.04,"53770","Office Stationery Supplies","REDACTED DATA","OFFICE DEPOT UK LTD (EX-GUILBERT UK)","2654682","http://opencorporates.com/companies/gb/2654682","673478594"
"London Borough of Redbridge","http://opendatacommunities.org/doc/london-borough-council/redbridge","1BCENTRALPUB","Central Services to the Public","1CLOCALTAXCO","Local Tax Collection","REV","Revenue","R9005","Registrar Service","04-SUPPLIES","Supplies And Services","04D","Printing, stationery and general office expenses","5710","Stationery","3530095","201908",18/10/2018 00:00:00,2.2,"53770","Office Stationery Supplies","REDACTED DATA","OFFICE DEPOT UK LTD (EX-GUILBERT UK)","2654682","http://opencorporates.com/companies/gb/2654682","673478594"
"London Borough of Redbridge","http://opendatacommunities.org/doc/london-borough-council/redbridge","1BCENTRALPUB","Central Services to the Public","1CREGBDM","Reg. of Births, Deaths & Marriages","REV","Revenue","R3970","Corporate Policy and Performance","04-SUPPLIES","Supplies And Services","04D","Printing, stationery and general office expenses","5710","Stationery","60389985","201908",08/11/2018 00:00:00,240,"16250","Catering Food and Drink Suppliers","REDACTED DATA","BLUE RIVER (UK)LTD","7016382","http://opencorporates.com/companies/gb/7016382","348651048"
"London Borough of Redbridge","http://opendatacommunities.org/doc/london-borough-council/redbridge","1BCENTRALPUB","Central Services to the Public","1CREGBDM","Reg. of Births, Deaths & Marriages","REV","Revenue","R3970","Corporate Policy and Performance","04-SUPPLIES","Supplies And Services","04D","Printing, stationery and general office expenses","5710","Stationery","60388877","201908",30/08/2018 00:00:00,135,"17020","Charities and Voluntary Organisations","REDACTED DATA","ALL SAINTS' PAROCHIAL CHURCH COUNCIL(WOODFORD)","",,""
"London Borough of Redbridge","http://opendatacommunities.org/doc/london-borough-council/redbridge","1BCENTRALPUB","Central Services to the Public","1CREGBDM","Reg. of Births, Deaths & Marriages","REV","Revenue","R3970","Corporate Policy and Performance","04-SUPPLIES","Supplies And Services","04E","Services","5759","Hire Of Venues","60388676","201908",30/08/2018 00:00:00,135,"64480","Religious Organisations","REDACTED DATA","ALL SAINTS WOODFORD WELLS","",,""
"London Borough of Redbridge","http://opendatacommunities.org/doc/london-borough-council/redbridge","1BCENTRALPUB","Central Services to the Public","1CREGBDM","Reg. of Births, Deaths & Marriages","REV","Revenue","R3970","Corporate Policy and Performance","04-SUPPLIES","Supplies And Services","04E","Services","5960","Local Forum","60388215","201908",30/10/2018 00:00:00,255,"67346","Schools and Colleges - Grant Maintained and Selfgoverning","REDACTED DATA","ARK SCHOOLS T/A ISAAC NEWTON ACADEMY","",,"859151405"
"London Borough of Redbridge","http://opendatacommunities.org/doc/london-borough-council/redbridge","1BCENTRALPUB","Central Services to the Public","1CTRADSURDEF","Trading Account Surpluses & Deficits","REV","Revenue","R3971","Local London Director","04-SUPPLIES","Supplies And Services","04E","Services","5759","Hire Of Venues","60390381","201908",20/11/2018 00:00:00,280,"64480","Religious Organisations","REDACTED DATA","CITYGATES CHURCH","",,""
"London Borough of Redbridge","http://opendatacommunities.org/doc/london-borough-council/redbridge","1BCENTRALPUB","Central Services to the Public","1CTRADSURDEF","Trading Account Surpluses & Deficits","REV","Revenue","R5752","Centrally Controlled Costs","04-SUPPLIES","Supplies And Services","04K","Miscellaneous expenses","6280","Miscellaneous Expenditure","60390000","201908",20/11/2018 00:00:00,900,"48586","Locksmiths","REDACTED DATA","MARTIN LOCK & SAFE","",,"248118853"
"London Borough of Redbridge","http://opendatacommunities.org/doc/london-borough-council/redbridge","6BADULTSOCIA","Adult Social Care","6COLDINCMENT","Older People (65 or over) incl. Older Mentally Ill","REV","Revenue","R4391","OP Home Care","05-THIRD","Third Party Payments","05A","Independent units within the council","6502","Agency Homecare (Payments To Independent Units)","91008669","201908",07/11/2018 00:00:00,104.72,"43419","Home Care Services","REDACTED DATA","RELINE CARE LTD","7728473","http://opencorporates.com/companies/gb/7728473",""
"London Borough of Redbridge","http://opendatacommunities.org/doc/london-borough-council/redbridge","6BADULTSOCIA","Adult Social Care","6COLDINCMENT","Older People (65 or over) incl. Older Mentally Ill","REV","Revenue","R4391","OP Home Care","05-THIRD","Third Party Payments","05A","Independent units within the council","6502","Agency Homecare (Payments To Independent Units)","91008714","201908",05/11/2018 00:00:00,126.89,"43419","Home Care Services","REDACTED DATA","LONDON CARE PLC","3117278","http://opencorporates.com/companies/gb/3117278",""
"London Borough of Redbridge","http://opendatacommunities.org/doc/london-borough-council/redbridge","6BADULTSOCIA","Adult Social Care","6COLDINCMENT","Older People (65 or over) incl. Older Mentally Ill","REV","Revenue","R4391","OP Home Care","05-THIRD","Third Party Payments","05A","Independent units within the council","6502","Agency Homecare (Payments To Independent Units)","91008715","201908",05/11/2018 00:00:00,96.15,"43419","Home Care Services","REDACTED DATA","LONDON CARE PLC","3117278","http://opencorporates.com/companies/gb/3117278",""
"London Borough of Redbridge","http://opendatacommunities.org/doc/london-borough-council/redbridge","6BADULTSOCIA","Adult Social Care","6COLDINCMENT","Older People (65 or over) incl. Older Mentally Ill","REV","Revenue","R4391","OP Home Care","05-THIRD","Third Party Payments","05A","Independent units within the council","6502","Agency Homecare (Payments To Independent Units)","91004964","201908",12/11/2018 00:00:00,69.48,"43419","Home Care Services","REDACTED DATA","ASTHA LIMITED","4914301","http://opencorporates.com/companies/gb/4914301","882333810"
"London Borough of Redbridge","http://opendatacommunities.org/doc/london-borough-council/redbridge","6BADULTSOCIA","Adult Social Care","6COLDINCMENT","Older People (65 or over) incl. Older Mentally Ill","REV","Revenue","R4391","OP Home Care","05-THIRD","Third Party Payments","05A","Independent units within the council","6502","Agency Homecare (Payments To Independent Units)","91008402","201908",06/11/2018 00:00:00,200.98,"43419","Home Care Services","REDACTED DATA","LONDON CARE PLC","3117278","http://opencorporates.com/companies/gb/3117278",""
"London Borough of Redbridge","http://opendatacommunities.org/doc/london-borough-council/redbridge","6BADULTSOCIA","Adult Social Care","6COLDINCMENT","Older People (65 or over) incl. Older Mentally Ill","REV","Revenue","R4391","OP Home Care","05-THIRD","Third Party Payments","05A","Independent units within the council","6502","Agency Homecare (Payments To Independent Units)","91008795","201908",12/11/2018 00:00:00,119.22,"43419","Home Care Services","REDACTED DATA","LONDON CARE PLC","3117278","http://opencorporates.com/companies/gb/3117278",""
"London Borough of Redbridge","http://opendatacommunities.org/doc/london-borough-council/redbridge","6BADULTSOCIA","Adult Social Care","6COLDINCMENT","Older People (65 or over) incl. Older Mentally Ill","REV","Revenue","R4391","OP Home Care","05-THIRD","Third Party Payments","05A","Independent units within the council","6502","Agency Homecare (Payments To Independent Units)","91008661","201908",01/11/2018 00:00:00,133.39,"43419","Home Care Services","REDACTED DATA","RELINE CARE LTD","7728473","http://opencorporates.com/companies/gb/7728473",""
"London Borough of Redbridge","http://opendatacommunities.org/doc/london-borough-council/redbridge","6BADULTSOCIA","Adult Social Care","6COLDINCMENT","Older People (65 or over) incl. Older Mentally Ill","REV","Revenue","R4391","OP Home Care","05-THIRD","Third Party Payments","05A","Independent units within the council","6502","Agency Homecare (Payments To Independent Units)","91008662","201908",01/11/2018 00:00:00,-133.39,"43419","Home Care Services","REDACTED DATA","RELINE CARE LTD","7728473","http://opencorporates.com/companies/gb/7728473",""
"London Borough of Redbridge","http://opendatacommunities.org/doc/london-borough-council/redbridge","6BADULTSOCIA","Adult Social Care","6COLDINCMENT","Older People (65 or over) incl. Older Mentally Ill","REV","Revenue","R4391","OP Home Care","05-THIRD","Third Party Payments","05A","Independent units within the council","6502","Agency Homecare (Payments To Independent Units)","91008660","201908",01/11/2018 00:00:00,265.54,"43419","Home Care Services","REDACTED DATA","RELINE CARE LTD","7728473","http://opencorporates.com/companies/gb/7728473",""
"London Borough of Redbridge","http://opendatacommunities.org/doc/london-borough-council/redbridge","6BADULTSOCIA","Adult Social Care","6COLDINCMENT","Older People (65 or over) incl. Older Mentally Ill","REV","Revenue","R4391","OP Home Care","05-THIRD","Third Party Payments","05A","Independent units within the council","6502","Agency Homecare (Payments To Independent Units)","91008459","201908",09/11/2018 00:00:00,128.03,"43419","Home Care Services","REDACTED DATA","LONDON CARE PLC","3117278","http://opencorporates.com/companies/gb/3117278",""
"London Borough of Redbridge","http://opendatacommunities.org/doc/london-borough-council/redbridge","6BADULTSOCIA","Adult Social Care","6COLDINCMENT","Older People (65 or over) incl. Older Mentally Ill","REV","Revenue","R4391","OP Home Care","05-THIRD","Third Party Payments","05A","Independent units within the council","6502","Agency Homecare (Payments To Independent Units)","91008460","201908",09/11/2018 00:00:00,127.8,"43419","Home Care Services","REDACTED DATA","LONDON CARE PLC","3117278","http://opencorporates.com/companies/gb/3117278",""
"London Borough of Redbridge","http://opendatacommunities.org/doc/london-borough-council/redbridge","6BADULTSOCIA","Adult Social Care","6COLDINCMENT","Older People (65 or over) incl. Older Mentally Ill","REV","Revenue","R4391","OP Home Care","05-THIRD","Third Party Payments","05A","Independent units within the council","6502","Agency Homecare (Payments To Independent Units)","91009949","201908",20/11/2018 00:00:00,118.96,"43419","Home Care Services","REDACTED DATA","RELINE CARE LTD","7728473","http://opencorporates.com/companies/gb/7728473",""
"London Borough of Redbridge","http://opendatacommunities.org/doc/london-borough-council/redbridge","6BADULTSOCIA","Adult Social Care","6COLDINCMENT","Older People (65 or over) incl. Older Mentally Ill","REV","Revenue","R4391","OP Home Care","05-THIRD","Third Party Payments","05A","Independent units within the council","6502","Agency Homecare (Payments To Independent Units)","91010017","201908",08/11/2018 00:00:00,13.85,"43419","Home Care Services","REDACTED DATA","PROMPT HEALTHCARE STAFFING LTD","8453491","http://opencorporates.com/companies/gb/8453491",""
"London Borough of Redbridge","http://opendatacommunities.org/doc/london-borough-council/redbridge","6BADULTSOCIA","Adult Social Care","6COLDINCMENT","Older People (65 or over) incl. Older Mentally Ill","REV","Revenue","R4391","OP Home Care","05-THIRD","Third Party Payments","05A","Independent units within the council","6502","Agency Homecare (Payments To Independent Units)","91009908","201908",13/11/2018 00:00:00,48.15,"43419","Home Care Services","REDACTED DATA","RELINE CARE LTD","7728473","http://opencorporates.com/companies/gb/7728473",""
"London Borough of Redbridge","http://opendatacommunities.org/doc/london-borough-council/redbridge","6BADULTSOCIA","Adult Social Care","6COLDINCMENT","Older People (65 or over) incl. Older Mentally Ill","REV","Revenue","R4391","OP Home Care","05-THIRD","Third Party Payments","05A","Independent units within the council","6502","Agency Homecare (Payments To Independent Units)","91009909","201908",13/11/2018 00:00:00,48.16,"43419","Home Care Services","REDACTED DATA","RELINE CARE LTD","7728473","http://opencorporates.com/companies/gb/7728473",""
"London Borough of Redbridge","http://opendatacommunities.org/doc/london-borough-council/redbridge","6BADULTSOCIA","Adult Social Care","6COLDINCMENT","Older People (65 or over) incl. Older Mentally Ill","REV","Revenue","R4391","OP Home Care","05-THIRD","Third Party Payments","05A","Independent units within the council","6502","Agency Homecare (Payments To Independent Units)","91009637","201908",26/11/2018 00:00:00,69.54,"43419","Home Care Services","REDACTED DATA","ASTHA LIMITED","4914301","http://opencorporates.com/companies/gb/4914301","882333810"
"London Borough of Redbridge","http://opendatacommunities.org/doc/london-borough-council/redbridge","6BADULTSOCIA","Adult Social Care","6COLDINCMENT","Older People (65 or over) incl. Older Mentally Ill","REV","Revenue","R4391","OP Home Care","05-THIRD","Third Party Payments","05A","Independent units within the council","6502","Agency Homecare (Payments To Independent Units)","91010977","201908",13/11/2018 00:00:00,135.45,"43419","Home Care Services","REDACTED DATA","J.C.MICHAEL GROUPS LTD","5571458","http://opencorporates.com/companies/gb/5571458","975674560"
"London Borough of Redbridge","http://opendatacommunities.org/doc/london-borough-council/redbridge","6BADULTSOCIA","Adult Social Care","6COLDINCMENT","Older People (65 or over) incl. Older Mentally Ill","REV","Revenue","R4391","OP Home Care","05-THIRD","Third Party Payments","05A","Independent units within the council","6502","Agency Homecare (Payments To Independent Units)","91010981","201908",13/11/2018 00:00:00,90.3,"43419","Home Care Services","REDACTED DATA","J.C.MICHAEL GROUPS LTD","5571458","http://opencorporates.com/companies/gb/5571458","975674560"
"London Borough of Redbridge","http://opendatacommunities.org/doc/london-borough-council/redbridge","6BADULTSOCIA","Adult Social Care","6COLDINCMENT","Older People (65 or over) incl. Older Mentally Ill","REV","Revenue","R4391","OP Home Care","05-THIRD","Third Party Payments","05A","Independent units within the council","6502","Agency Homecare (Payments To Independent Units)","91009758","201908",22/11/2018 00:00:00,46.2,"43419","Home Care Services","REDACTED DATA","ICARE RESOURCE LIMITED","9045427","http://opencorporates.com/companies/gb/9045427",""
"London Borough of Redbridge","http://opendatacommunities.org/doc/london-borough-council/redbridge","6BADULTSOCIA","Adult Social Care","6COLDINCMENT","Older People (65 or over) incl. Older Mentally Ill","REV","Revenue","R4391","OP Home Care","05-THIRD","Third Party Payments","05A","Independent units within the council","6502","Agency Homecare (Payments To Independent Units)","91009614","201908",26/11/2018 00:00:00,73.2,"43419","Home Care Services","REDACTED DATA","ASTHA LIMITED","4914301","http://opencorporates.com/companies/gb/4914301","882333810"
"London Borough of Redbridge","http://opendatacommunities.org/doc/london-borough-council/redbridge","1BCENTRALPUB","Central Services to the Public","1CTRADSURDEF","Trading Account Surpluses & Deficits","REV","Revenue","R5753","Cashiers","04-SUPPLIES","Supplies And Services","04B","Catering","5602","Refreshments","80031627","201908",25/10/2018 00:00:00,43.04,"84070","Water Suppliers - Bottled","REDACTED DATA","EDEN SPRINGS (UK) LTD (NATURE SPRING)","4063744","http://opencorporates.com/companies/gb/4063744","232160411"
"London Borough of Redbridge","http://opendatacommunities.org/doc/london-borough-council/redbridge","1BCENTRALPUB","Central Services to the Public","1CTRADSURDEF","Trading Account Surpluses & Deficits","REV","Revenue","R5753","Cashiers","04-SUPPLIES","Supplies And Services","04D","Printing, stationery and general office expenses","5710","Stationery","3530095","201908",17/10/2018 00:00:00,15.9,"53770","Office Stationery Supplies","REDACTED DATA","OFFICE DEPOT UK LTD (EX-GUILBERT UK)","2654682","http://opencorporates.com/companies/gb/2654682","673478594"
"London Borough of Redbridge","http://opendatacommunities.org/doc/london-borough-council/redbridge","1BCENTRALPUB","Central Services to the Public","1CTRADSURDEF","Trading Account Surpluses & Deficits","REV","Revenue","R5753","Cashiers","04-SUPPLIES","Supplies And Services","04D","Printing, stationery and general office expenses","5710","Stationery","3530095","201908",26/10/2018 00:00:00,15,"53770","Office Stationery Supplies","REDACTED DATA","OFFICE DEPOT UK LTD (EX-GUILBERT UK)","2654682","http://opencorporates.com/companies/gb/2654682","673478594"
"London Borough of Redbridge","http://opendatacommunities.org/doc/london-borough-council/redbridge","1BCENTRALPUB","Central Services to the Public","1CTRADSURDEF","Trading Account Surpluses & Deficits","REV","Revenue","R5753","Cashiers","04-SUPPLIES","Supplies And Services","04D","Printing, stationery and general office expenses","5710","Stationery","3530095","201908",17/10/2018 00:00:00,12.99,"53770","Office Stationery Supplies","REDACTED DATA","OFFICE DEPOT UK LTD (EX-GUILBERT UK)","2654682","http://opencorporates.com/companies/gb/2654682","673478594"
"London Borough of Redbridge","http://opendatacommunities.org/doc/london-borough-council/redbridge","1BCENTRALPUB","Central Services to the Public","1CTRADSURDEF","Trading Account Surpluses & Deficits","REV","Revenue","R5753","Cashiers","04-SUPPLIES","Supplies And Services","04D","Printing, stationery and general office expenses","5710","Stationery","3530095","201908",17/10/2018 00:00:00,36.65,"53770","Office Stationery Supplies","REDACTED DATA","OFFICE DEPOT UK LTD (EX-GUILBERT UK)","2654682","http://opencorporates.com/companies/gb/2654682","673478594"
"London Borough of Redbridge","http://opendatacommunities.org/doc/london-borough-council/redbridge","1BCENTRALPUB","Central Services to the Public","1CTRADSURDEF","Trading Account Surpluses & Deficits","REV","Revenue","R5753","Cashiers","04-SUPPLIES","Supplies And Services","04D","Printing, stationery and general office expenses","5710","Stationery","3530095","201908",17/10/2018 00:00:00,2.8,"53770","Office Stationery Supplies","REDACTED DATA","OFFICE DEPOT UK LTD (EX-GUILBERT UK)","2654682","http://opencorporates.com/companies/gb/2654682","673478594"
"London Borough of Redbridge","http://opendatacommunities.org/doc/london-borough-council/redbridge","1BCENTRALPUB","Central Services to the Public","1CTRADSURDEF","Trading Account Surpluses & Deficits","REV","Revenue","R5753","Cashiers","04-SUPPLIES","Supplies And Services","04D","Printing, stationery and general office expenses","5710","Stationery","3530095","201908",17/10/2018 00:00:00,4.3,"53770","Office Stationery Supplies","REDACTED DATA","OFFICE DEPOT UK LTD (EX-GUILBERT UK)","2654682","http://opencorporates.com/companies/gb/2654682","673478594"
"London Borough of Redbridge","http://opendatacommunities.org/doc/london-borough-council/redbridge","1BCENTRALPUB","Central Services to the Public","1CTRADSURDEF","Trading Account Surpluses & Deficits","REV","Revenue","R5753","Cashiers","04-SUPPLIES","Supplies And Services","04D","Printing, stationery and general office expenses","5710","Stationery","3530095","201908",17/10/2018 00:00:00,8.8,"53770","Office Stationery Supplies","REDACTED DATA","OFFICE DEPOT UK LTD (EX-GUILBERT UK)","2654682","http://opencorporates.com/companies/gb/2654682","673478594"
"London Borough of Redbridge","http://opendatacommunities.org/doc/london-borough-council/redbridge","1BCENTRALPUB","Central Services to the Public","1CTRADSURDEF","Trading Account Surpluses & Deficits","REV","Revenue","R5753","Cashiers","04-SUPPLIES","Supplies And Services","04D","Printing, stationery and general office expenses","5710","Stationery","3530095","201908",17/10/2018 00:00:00,4.55,"53770","Office Stationery Supplies","REDACTED DATA","OFFICE DEPOT UK LTD (EX-GUILBERT UK)","2654682","http://opencorporates.com/companies/gb/2654682","673478594"
"London Borough of Redbridge","http://opendatacommunities.org/doc/london-borough-council/redbridge","1BCENTRALPUB","Central Services to the Public","1CTRADSURDEF","Trading Account Surpluses & Deficits","REV","Revenue","R5753","Cashiers","04-SUPPLIES","Supplies And Services","04D","Printing, stationery and general office expenses","5710","Stationery","3530095","201908",17/10/2018 00:00:00,9.2,"53770","Office Stationery Supplies","REDACTED DATA","OFFICE DEPOT UK LTD (EX-GUILBERT UK)","2654682","http://opencorporates.com/companies/gb/2654682","673478594"
"London Borough of Redbridge","http://opendatacommunities.org/doc/london-borough-council/redbridge","6BADULTSOCIA","Adult Social Care","6COLDINCMENT","Older People (65 or over) incl. Older Mentally Ill","REV","Revenue","R4391","OP Home Care","05-THIRD","Third Party Payments","05A","Independent units within the council","6502","Agency Homecare (Payments To Independent Units)","91011009","201908",13/11/2018 00:00:00,95.34,"43419","Home Care Services","REDACTED DATA","J.C.MICHAEL GROUPS LTD","5571458","http://opencorporates.com/companies/gb/5571458","975674560"
"London Borough of Redbridge","http://opendatacommunities.org/doc/london-borough-council/redbridge","6BADULTSOCIA","Adult Social Care","6COLDINCMENT","Older People (65 or over) incl. Older Mentally Ill","REV","Revenue","R4391","OP Home Care","05-THIRD","Third Party Payments","05A","Independent units within the council","6502","Agency Homecare (Payments To Independent Units)","91009642","201908",26/11/2018 00:00:00,7.32,"43419","Home Care Services","REDACTED DATA","ASTHA LIMITED","4914301","http://opencorporates.com/companies/gb/4914301","882333810"
"London Borough of Redbridge","http://opendatacommunities.org/doc/london-borough-council/redbridge","6BADULTSOCIA","Adult Social Care","6COLDINCMENT","Older People (65 or over) incl. Older Mentally Ill","REV","Revenue","R4391","OP Home Care","05-THIRD","Third Party Payments","05A","Independent units within the council","6502","Agency Homecare (Payments To Independent Units)","91008760","201908",09/11/2018 00:00:00,492.24,"43419","Home Care Services","REDACTED DATA","LONDON CARE PLC","3117278","http://opencorporates.com/companies/gb/3117278",""
"London Borough of Redbridge","http://opendatacommunities.org/doc/london-borough-council/redbridge","6BADULTSOCIA","Adult Social Care","6COLDINCMENT","Older People (65 or over) incl. Older Mentally Ill","REV","Revenue","R4391","OP Home Care","05-THIRD","Third Party Payments","05A","Independent units within the council","6502","Agency Homecare (Payments To Independent Units)","91010001","201908",08/11/2018 00:00:00,27.7,"43419","Home Care Services","REDACTED DATA","PROMPT HEALTHCARE STAFFING LTD","8453491","http://opencorporates.com/companies/gb/8453491",""
"London Borough of Redbridge","http://opendatacommunities.org/doc/london-borough-council/redbridge","6BADULTSOCIA","Adult Social Care","6COLDINCMENT","Older People (65 or over) incl. Older Mentally Ill","REV","Revenue","R4391","OP Home Care","05-THIRD","Third Party Payments","05A","Independent units within the council","6502","Agency Homecare (Payments To Independent Units)","91008667","201908",07/11/2018 00:00:00,89.76,"43419","Home Care Services","REDACTED DATA","RELINE CARE LTD","7728473","http://opencorporates.com/companies/gb/7728473",""
"London Borough of Redbridge","http://opendatacommunities.org/doc/london-borough-council/redbridge","6BADULTSOCIA","Adult Social Care","6COLDINCMENT","Older People (65 or over) incl. Older Mentally Ill","REV","Revenue","R4391","OP Home Care","05-THIRD","Third Party Payments","05A","Independent units within the council","6502","Agency Homecare (Payments To Independent Units)","91008668","201908",07/11/2018 00:00:00,366.52,"43419","Home Care Services","REDACTED DATA","RELINE CARE LTD","7728473","http://opencorporates.com/companies/gb/7728473",""
"London Borough of Redbridge","http://opendatacommunities.org/doc/london-borough-council/redbridge","6BADULTSOCIA","Adult Social Care","6COLDINCMENT","Older People (65 or over) incl. Older Mentally Ill","REV","Revenue","R4391","OP Home Care","05-THIRD","Third Party Payments","05A","Independent units within the council","6502","Agency Homecare (Payments To Independent Units)","91005823","201908",07/11/2018 00:00:00,259.77,"43419","Home Care Services","REDACTED DATA","ANNIE'S HEALTHCARE SERVICES CIC","5535051","http://opencorporates.com/companies/gb/5535051",""
"London Borough of Redbridge","http://opendatacommunities.org/doc/london-borough-council/redbridge","6BADULTSOCIA","Adult Social Care","6COLDINCMENT","Older People (65 or over) incl. Older Mentally Ill","REV","Revenue","R4391","OP Home Care","05-THIRD","Third Party Payments","05A","Independent units within the council","6502","Agency Homecare (Payments To Independent Units)","91005824","201908",07/11/2018 00:00:00,248.79,"43419","Home Care Services","REDACTED DATA","ANNIE'S HEALTHCARE SERVICES CIC","5535051","http://opencorporates.com/companies/gb/5535051",""
"London Borough of Redbridge","http://opendatacommunities.org/doc/london-borough-council/redbridge","6BADULTSOCIA","Adult Social Care","6COLDINCMENT","Older People (65 or over) incl. Older Mentally Ill","REV","Revenue","R4391","OP Home Care","05-THIRD","Third Party Payments","05A","Independent units within the council","6502","Agency Homecare (Payments To Independent Units)","91005822","201908",07/11/2018 00:00:00,259.77,"43419","Home Care Services","REDACTED DATA","ANNIE'S HEALTHCARE SERVICES CIC","5535051","http://opencorporates.com/companies/gb/5535051",""
"London Borough of Redbridge","http://opendatacommunities.org/doc/london-borough-council/redbridge","6BADULTSOCIA","Adult Social Care","6COLDINCMENT","Older People (65 or over) incl. Older Mentally Ill","REV","Revenue","R4391","OP Home Care","05-THIRD","Third Party Payments","05A","Independent units within the council","6502","Agency Homecare (Payments To Independent Units)","91009619","201908",26/11/2018 00:00:00,0,"43419","Home Care Services","REDACTED DATA","ASTHA LIMITED","4914301","http://opencorporates.com/companies/gb/4914301","882333810"
"London Borough of Redbridge","http://opendatacommunities.org/doc/london-borough-council/redbridge","1BCENTRALPUB","Central Services to the Public","1CTRADSURDEF","Trading Account Surpluses & Deficits","REV","Revenue","R5753","Cashiers","04-SUPPLIES","Supplies And Services","04D","Printing, stationery and general office expenses","5710","Stationery","3530095","201908",17/10/2018 00:00:00,4.8,"53770","Office Stationery Supplies","REDACTED DATA","OFFICE DEPOT UK LTD (EX-GUILBERT UK)","2654682","http://opencorporates.com/companies/gb/2654682","673478594"
"London Borough of Redbridge","http://opendatacommunities.org/doc/london-borough-council/redbridge","1BCENTRALPUB","Central Services to the Public","1CTRADSURDEF","Trading Account Surpluses & Deficits","REV","Revenue","R5753","Cashiers","04-SUPPLIES","Supplies And Services","04D","Printing, stationery and general office expenses","5710","Stationery","3530095","201908",26/10/2018 00:00:00,3.3,"53770","Office Stationery Supplies","REDACTED DATA","OFFICE DEPOT UK LTD (EX-GUILBERT UK)","2654682","http://opencorporates.com/companies/gb/2654682","673478594"
"London Borough of Redbridge","http://opendatacommunities.org/doc/london-borough-council/redbridge","1BCENTRALPUB","Central Services to the Public","1CTRADSURDEF","Trading Account Surpluses & Deficits","REV","Revenue","R5753","Cashiers","04-SUPPLIES","Supplies And Services","04D","Printing, stationery and general office expenses","5710","Stationery","3530095","201908",26/10/2018 00:00:00,6.6,"53770","Office Stationery Supplies","REDACTED DATA","OFFICE DEPOT UK LTD (EX-GUILBERT UK)","2654682","http://opencorporates.com/companies/gb/2654682","673478594"
"London Borough of Redbridge","http://opendatacommunities.org/doc/london-borough-council/redbridge","1BCENTRALPUB","Central Services to the Public","1CTRADSURDEF","Trading Account Surpluses & Deficits","REV","Revenue","R5753","Cashiers","04-SUPPLIES","Supplies And Services","04D","Printing, stationery and general office expenses","5710","Stationery","3530095","201908",26/10/2018 00:00:00,22.92,"53770","Office Stationery Supplies","REDACTED DATA","OFFICE DEPOT UK LTD (EX-GUILBERT UK)","2654682","http://opencorporates.com/companies/gb/2654682","673478594"
"London Borough of Redbridge","http://opendatacommunities.org/doc/london-borough-council/redbridge","1BCENTRALPUB","Central Services to the Public","1CTRADSURDEF","Trading Account Surpluses & Deficits","REV","Revenue","R5753","Cashiers","04-SUPPLIES","Supplies And Services","04D","Printing, stationery and general office expenses","5710","Stationery","3530095","201908",17/10/2018 00:00:00,6.87,"53770","Office Stationery Supplies","REDACTED DATA","OFFICE DEPOT UK LTD (EX-GUILBERT UK)","2654682","http://opencorporates.com/companies/gb/2654682","673478594"
"London Borough of Redbridge","http://opendatacommunities.org/doc/london-borough-council/redbridge","1BCENTRALPUB","Central Services to the Public","1CTRADSURDEF","Trading Account Surpluses & Deficits","REV","Revenue","R5753","Cashiers","04-SUPPLIES","Supplies And Services","04D","Printing, stationery and general office expenses","5710","Stationery","3530095","201908",17/10/2018 00:00:00,5.3,"53770","Office Stationery Supplies","REDACTED DATA","OFFICE DEPOT UK LTD (EX-GUILBERT UK)","2654682","http://opencorporates.com/companies/gb/2654682","673478594"
"London Borough of Redbridge","http://opendatacommunities.org/doc/london-borough-council/redbridge","1BCENTRALPUB","Central Services to the Public","1CTRADSURDEF","Trading Account Surpluses & Deficits","REV","Revenue","R5753","Cashiers","04-SUPPLIES","Supplies And Services","04D","Printing, stationery and general office expenses","5710","Stationery","3530095","201908",17/10/2018 00:00:00,7.45,"53770","Office Stationery Supplies","REDACTED DATA","OFFICE DEPOT UK LTD (EX-GUILBERT UK)","2654682","http://opencorporates.com/companies/gb/2654682","673478594"
"London Borough of Redbridge","http://opendatacommunities.org/doc/london-borough-council/redbridge","1BCENTRALPUB","Central Services to the Public","1CTRADSURDEF","Trading Account Surpluses & Deficits","REV","Revenue","R5754","Income","04-SUPPLIES","Supplies And Services","04H","Grants and subscriptions","5954","Professional Fees","60389792","201908",16/11/2018 00:00:00,1.5,"48582","Loans and Debt - Management","REDACTED DATA","MOORCROFT DEBT RECOVERY LTD","1703704","http://opencorporates.com/companies/gb/1703704","453109273"
"London Borough of Redbridge","http://opendatacommunities.org/doc/london-borough-council/redbridge","1BCENTRALPUB","Central Services to the Public","1CTRADSURDEF","Trading Account Surpluses & Deficits","REV","Revenue","R5754","Income","04-SUPPLIES","Supplies And Services","04H","Grants and subscriptions","5954","Professional Fees","60389791","201908",16/11/2018 00:00:00,120.54,"48582","Loans and Debt - Management","REDACTED DATA","MOORCROFT DEBT RECOVERY LTD","1703704","http://opencorporates.com/companies/gb/1703704","453109273"
"London Borough of Redbridge","http://opendatacommunities.org/doc/london-borough-council/redbridge","1BCENTRALPUB","Central Services to the Public","1CTRADSURDEF","Trading Account Surpluses & Deficits","REV","Revenue","R5754","Income","04-SUPPLIES","Supplies And Services","04H","Grants and subscriptions","5954","Professional Fees","60389793","201908",16/11/2018 00:00:00,16.5,"48582","Loans and Debt - Management","REDACTED DATA","MOORCROFT DEBT RECOVERY LTD","1703704","http://opencorporates.com/companies/gb/1703704","453109273"
"London Borough of Redbridge","http://opendatacommunities.org/doc/london-borough-council/redbridge","6BADULTSOCIA","Adult Social Care","6COLDINCMENT","Older People (65 or over) incl. Older Mentally Ill","REV","Revenue","R4391","OP Home Care","05-THIRD","Third Party Payments","05A","Independent units within the council","6502","Agency Homecare (Payments To Independent Units)","91009620","201908",26/11/2018 00:00:00,270.68,"43419","Home Care Services","REDACTED DATA","ASTHA LIMITED","4914301","http://opencorporates.com/companies/gb/4914301","882333810"
"London Borough of Redbridge","http://opendatacommunities.org/doc/london-borough-council/redbridge","6BADULTSOCIA","Adult Social Care","6COLDINCMENT","Older People (65 or over) incl. Older Mentally Ill","REV","Revenue","R4391","OP Home Care","05-THIRD","Third Party Payments","05A","Independent units within the council","6502","Agency Homecare (Payments To Independent Units)","91004966","201908",12/11/2018 00:00:00,76.86,"43419","Home Care Services","REDACTED DATA","ASTHA LIMITED","4914301","http://opencorporates.com/companies/gb/4914301","882333810"
"London Borough of Redbridge","http://opendatacommunities.org/doc/london-borough-council/redbridge","6BADULTSOCIA","Adult Social Care","6COLDINCMENT","Older People (65 or over) incl. Older Mentally Ill","REV","Revenue","R4391","OP Home Care","05-THIRD","Third Party Payments","05A","Independent units within the council","6502","Agency Homecare (Payments To Independent Units)","91006351","201908",01/11/2018 00:00:00,55.44,"43419","Home Care Services","REDACTED DATA","PROMPT HEALTHCARE STAFFING LTD","8453491","http://opencorporates.com/companies/gb/8453491",""
"London Borough of Redbridge","http://opendatacommunities.org/doc/london-borough-council/redbridge","6BADULTSOCIA","Adult Social Care","6COLDINCMENT","Older People (65 or over) incl. Older Mentally Ill","REV","Revenue","R4391","OP Home Care","05-THIRD","Third Party Payments","05A","Independent units within the council","6502","Agency Homecare (Payments To Independent Units)","91007993","201908",16/10/2018 00:00:00,13.62,"43419","Home Care Services","REDACTED DATA","J.C.MICHAEL GROUPS LTD","5571458","http://opencorporates.com/companies/gb/5571458","975674560"
"London Borough of Redbridge","http://opendatacommunities.org/doc/london-borough-council/redbridge","6BADULTSOCIA","Adult Social Care","6COLDINCMENT","Older People (65 or over) incl. Older Mentally Ill","REV","Revenue","R4391","OP Home Care","05-THIRD","Third Party Payments","05A","Independent units within the council","6502","Agency Homecare (Payments To Independent Units)","91007994","201908",26/10/2018 00:00:00,13.62,"43419","Home Care Services","REDACTED DATA","J.C.MICHAEL GROUPS LTD","5571458","http://opencorporates.com/companies/gb/5571458","975674560"
"London Borough of Redbridge","http://opendatacommunities.org/doc/london-borough-council/redbridge","6BADULTSOCIA","Adult Social Care","6COLDINCMENT","Older People (65 or over) incl. Older Mentally Ill","REV","Revenue","R4391","OP Home Care","05-THIRD","Third Party Payments","05A","Independent units within the council","6502","Agency Homecare (Payments To Independent Units)","91005463","201908",08/11/2018 00:00:00,128.59,"43419","Home Care Services","REDACTED DATA","ICARE RESOURCE LIMITED","9045427","http://opencorporates.com/companies/gb/9045427",""
"London Borough of Redbridge","http://opendatacommunities.org/doc/london-borough-council/redbridge","6BADULTSOCIA","Adult Social Care","6COLDINCMENT","Older People (65 or over) incl. Older Mentally Ill","REV","Revenue","R4391","OP Home Care","05-THIRD","Third Party Payments","05A","Independent units within the council","6502","Agency Homecare (Payments To Independent Units)","91006674","201908",06/11/2018 00:00:00,432.18,"43419","Home Care Services","REDACTED DATA","ICARE RESOURCE LIMITED","9045427","http://opencorporates.com/companies/gb/9045427",""
"London Borough of Redbridge","http://opendatacommunities.org/doc/london-borough-council/redbridge","6BADULTSOCIA","Adult Social Care","6COLDINCMENT","Older People (65 or over) incl. Older Mentally Ill","REV","Revenue","R4391","OP Home Care","05-THIRD","Third Party Payments","05A","Independent units within the council","6502","Agency Homecare (Payments To Independent Units)","91006675","201908",31/10/2018 00:00:00,480.2,"43419","Home Care Services","REDACTED DATA","ICARE RESOURCE LIMITED","9045427","http://opencorporates.com/companies/gb/9045427",""
"London Borough of Redbridge","http://opendatacommunities.org/doc/london-borough-council/redbridge","6BADULTSOCIA","Adult Social Care","6COLDINCMENT","Older People (65 or over) incl. Older Mentally Ill","REV","Revenue","R4391","OP Home Care","05-THIRD","Third Party Payments","05A","Independent units within the council","6502","Agency Homecare (Payments To Independent Units)","91008770","201908",12/11/2018 00:00:00,119.22,"43419","Home Care Services","REDACTED DATA","LONDON CARE PLC","3117278","http://opencorporates.com/companies/gb/3117278",""
"London Borough of Redbridge","http://opendatacommunities.org/doc/london-borough-council/redbridge","6BADULTSOCIA","Adult Social Care","6COLDINCMENT","Older People (65 or over) incl. Older Mentally Ill","REV","Revenue","R4391","OP Home Care","05-THIRD","Third Party Payments","05A","Independent units within the council","6502","Agency Homecare (Payments To Independent Units)","91008771","201908",12/11/2018 00:00:00,149.98,"43419","Home Care Services","REDACTED DATA","LONDON CARE PLC","3117278","http://opencorporates.com/companies/gb/3117278",""
"London Borough of Redbridge","http://opendatacommunities.org/doc/london-borough-council/redbridge","6BADULTSOCIA","Adult Social Care","6COLDINCMENT","Older People (65 or over) incl. Older Mentally Ill","REV","Revenue","R4391","OP Home Care","05-THIRD","Third Party Payments","05A","Independent units within the council","6502","Agency Homecare (Payments To Independent Units)","91009749","201908",21/11/2018 00:00:00,19.78,"43419","Home Care Services","REDACTED DATA","ICARE RESOURCE LIMITED","9045427","http://opencorporates.com/companies/gb/9045427",""
"London Borough of Redbridge","http://opendatacommunities.org/doc/london-borough-council/redbridge","6BADULTSOCIA","Adult Social Care","6COLDINCMENT","Older People (65 or over) incl. Older Mentally Ill","REV","Revenue","R4391","OP Home Care","05-THIRD","Third Party Payments","05A","Independent units within the council","6502","Agency Homecare (Payments To Independent Units)","91010065","201908",22/11/2018 00:00:00,242.43,"43419","Home Care Services","REDACTED DATA","PROMPT HEALTHCARE STAFFING LTD","8453491","http://opencorporates.com/companies/gb/8453491",""
"London Borough of Redbridge","http://opendatacommunities.org/doc/london-borough-council/redbridge","6BADULTSOCIA","Adult Social Care","6COLDINCMENT","Older People (65 or over) incl. Older Mentally Ill","REV","Revenue","R4391","OP Home Care","05-THIRD","Third Party Payments","05A","Independent units within the council","6502","Agency Homecare (Payments To Independent Units)","91008371","201908",06/11/2018 00:00:00,21.96,"43419","Home Care Services","REDACTED DATA","LONDON CARE PLC","3117278","http://opencorporates.com/companies/gb/3117278",""
"London Borough of Redbridge","http://opendatacommunities.org/doc/london-borough-council/redbridge","6BADULTSOCIA","Adult Social Care","6COLDINCMENT","Older People (65 or over) incl. Older Mentally Ill","REV","Revenue","R4391","OP Home Care","05-THIRD","Third Party Payments","05A","Independent units within the council","6502","Agency Homecare (Payments To Independent Units)","91008740","201908",08/11/2018 00:00:00,157.67,"43419","Home Care Services","REDACTED DATA","LONDON CARE PLC","3117278","http://opencorporates.com/companies/gb/3117278",""
"London Borough of Redbridge","http://opendatacommunities.org/doc/london-borough-council/redbridge","6BADULTSOCIA","Adult Social Care","6COLDINCMENT","Older People (65 or over) incl. Older Mentally Ill","REV","Revenue","R4391","OP Home Care","05-THIRD","Third Party Payments","05A","Independent units within the council","6502","Agency Homecare (Payments To Independent Units)","91008741","201908",08/11/2018 00:00:00,299.97,"43419","Home Care Services","REDACTED DATA","LONDON CARE PLC","3117278","http://opencorporates.com/companies/gb/3117278",""
"London Borough of Redbridge","http://opendatacommunities.org/doc/london-borough-council/redbridge","6BADULTSOCIA","Adult Social Care","6COLDINCMENT","Older People (65 or over) incl. Older Mentally Ill","REV","Revenue","R4391","OP Home Care","05-THIRD","Third Party Payments","05A","Independent units within the council","6502","Agency Homecare (Payments To Independent Units)","91006052","201908",12/11/2018 00:00:00,140.94,"43419","Home Care Services","REDACTED DATA","RELINE CARE LTD","7728473","http://opencorporates.com/companies/gb/7728473",""
"London Borough of Redbridge","http://opendatacommunities.org/doc/london-borough-council/redbridge","6BADULTSOCIA","Adult Social Care","6COLDINCMENT","Older People (65 or over) incl. Older Mentally Ill","REV","Revenue","R4391","OP Home Care","05-THIRD","Third Party Payments","05A","Independent units within the council","6502","Agency Homecare (Payments To Independent Units)","91008438","201908",09/11/2018 00:00:00,98.82,"43419","Home Care Services","REDACTED DATA","LONDON CARE PLC","3117278","http://opencorporates.com/companies/gb/3117278",""
"London Borough of Redbridge","http://opendatacommunities.org/doc/london-borough-council/redbridge","6BADULTSOCIA","Adult Social Care","6COLDINCMENT","Older People (65 or over) incl. Older Mentally Ill","REV","Revenue","R4391","OP Home Care","05-THIRD","Third Party Payments","05A","Independent units within the council","6502","Agency Homecare (Payments To Independent Units)","91008439","201908",09/11/2018 00:00:00,102.48,"43419","Home Care Services","REDACTED DATA","LONDON CARE PLC","3117278","http://opencorporates.com/companies/gb/3117278",""
"London Borough of Redbridge","http://opendatacommunities.org/doc/london-borough-council/redbridge","6BADULTSOCIA","Adult Social Care","6COLDINCMENT","Older People (65 or over) incl. Older Mentally Ill","REV","Revenue","R4391","OP Home Care","05-THIRD","Third Party Payments","05A","Independent units within the council","6502","Agency Homecare (Payments To Independent Units)","91005991","201908",01/11/2018 00:00:00,110.02,"43419","Home Care Services","REDACTED DATA","RELINE CARE LTD","7728473","http://opencorporates.com/companies/gb/7728473",""
"London Borough of Redbridge","http://opendatacommunities.org/doc/london-borough-council/redbridge","6BADULTSOCIA","Adult Social Care","6COLDINCMENT","Older People (65 or over) incl. Older Mentally Ill","REV","Revenue","R4391","OP Home Care","05-THIRD","Third Party Payments","05A","Independent units within the council","6502","Agency Homecare (Payments To Independent Units)","91010077","201908",24/11/2018 00:00:00,97,"43419","Home Care Services","REDACTED DATA","PROMPT HEALTHCARE STAFFING LTD","8453491","http://opencorporates.com/companies/gb/8453491",""
"London Borough of Redbridge","http://opendatacommunities.org/doc/london-borough-council/redbridge","6BADULTSOCIA","Adult Social Care","6COLDINCMENT","Older People (65 or over) incl. Older Mentally Ill","REV","Revenue","R4391","OP Home Care","05-THIRD","Third Party Payments","05A","Independent units within the council","6502","Agency Homecare (Payments To Independent Units)","91007897","201908",12/11/2018 00:00:00,81.66,"43419","Home Care Services","REDACTED DATA","HAVEN CARE LTD","6762521","http://opencorporates.com/companies/gb/6762521",""
"London Borough of Redbridge","http://opendatacommunities.org/doc/london-borough-council/redbridge","6BADULTSOCIA","Adult Social Care","6COLDINCMENT","Older People (65 or over) incl. Older Mentally Ill","REV","Revenue","R4391","OP Home Care","05-THIRD","Third Party Payments","05A","Independent units within the council","6502","Agency Homecare (Payments To Independent Units)","91007553","201908",30/10/2018 00:00:00,23.83,"53350","Nursing Homes","REDACTED DATA","ELEANOR NURSING & SOCIALCARE LTD","4393038","http://opencorporates.com/companies/gb/4393038",""
"London Borough of Redbridge","http://opendatacommunities.org/doc/london-borough-council/redbridge","6BADULTSOCIA","Adult Social Care","6COLDINCMENT","Older People (65 or over) incl. Older Mentally Ill","REV","Revenue","R4391","OP Home Care","05-THIRD","Third Party Payments","05A","Independent units within the council","6502","Agency Homecare (Payments To Independent Units)","91007554","201908",30/10/2018 00:00:00,102.1,"53350","Nursing Homes","REDACTED DATA","ELEANOR NURSING & SOCIALCARE LTD","4393038","http://opencorporates.com/companies/gb/4393038",""
"London Borough of Redbridge","http://opendatacommunities.org/doc/london-borough-council/redbridge","6BADULTSOCIA","Adult Social Care","6COLDINCMENT","Older People (65 or over) incl. Older Mentally Ill","REV","Revenue","R4391","OP Home Care","05-THIRD","Third Party Payments","05A","Independent units within the council","6502","Agency Homecare (Payments To Independent Units)","91008057","201908",30/10/2018 00:00:00,35.05,"43419","Home Care Services","REDACTED DATA","CAREWATCH CARE SERVICES LTD","2949558","http://opencorporates.com/companies/gb/2949558","927457005"
"London Borough of Redbridge","http://opendatacommunities.org/doc/london-borough-council/redbridge","6BADULTSOCIA","Adult Social Care","6COLDINCMENT","Older People (65 or over) incl. Older Mentally Ill","REV","Revenue","R4391","OP Home Care","05-THIRD","Third Party Payments","05A","Independent units within the council","6502","Agency Homecare (Payments To Independent Units)","91008114","201908",30/10/2018 00:00:00,245.42,"43419","Home Care Services","REDACTED DATA","CAREWATCH CARE SERVICES LTD","2949558","http://opencorporates.com/companies/gb/2949558","927457005"
"London Borough of Redbridge","http://opendatacommunities.org/doc/london-borough-council/redbridge","6BADULTSOCIA","Adult Social Care","6COLDINCMENT","Older People (65 or over) incl. Older Mentally Ill","REV","Revenue","R4391","OP Home Care","05-THIRD","Third Party Payments","05A","Independent units within the council","6502","Agency Homecare (Payments To Independent Units)","91008948","201908",05/06/2018 00:00:00,7.01,"43419","Home Care Services","REDACTED DATA","HAVEN CARE LTD","6762521","http://opencorporates.com/companies/gb/6762521",""
"London Borough of Redbridge","http://opendatacommunities.org/doc/london-borough-council/redbridge","6BADULTSOCIA","Adult Social Care","6COLDINCMENT","Older People (65 or over) incl. Older Mentally Ill","REV","Revenue","R4391","OP Home Care","05-THIRD","Third Party Payments","05A","Independent units within the council","6502","Agency Homecare (Payments To Independent Units)","91008949","201908",05/06/2018 00:00:00,-7.01,"43419","Home Care Services","REDACTED DATA","HAVEN CARE LTD","6762521","http://opencorporates.com/companies/gb/6762521",""
"London Borough of Redbridge","http://opendatacommunities.org/doc/london-borough-council/redbridge","6BADULTSOCIA","Adult Social Care","6COLDINCMENT","Older People (65 or over) incl. Older Mentally Ill","REV","Revenue","R4391","OP Home Care","05-THIRD","Third Party Payments","05A","Independent units within the council","6502","Agency Homecare (Payments To Independent Units)","91009003","201908",12/11/2018 00:00:00,56.09,"43419","Home Care Services","REDACTED DATA","HAVEN CARE LTD","6762521","http://opencorporates.com/companies/gb/6762521",""
"London Borough of Redbridge","http://opendatacommunities.org/doc/london-borough-council/redbridge","6BADULTSOCIA","Adult Social Care","6COLDINCMENT","Older People (65 or over) incl. Older Mentally Ill","REV","Revenue","R4391","OP Home Care","05-THIRD","Third Party Payments","05A","Independent units within the council","6502","Agency Homecare (Payments To Independent Units)","91008119","201908",30/10/2018 00:00:00,175.25,"43419","Home Care Services","REDACTED DATA","CAREWATCH CARE SERVICES LTD","2949558","http://opencorporates.com/companies/gb/2949558","927457005"
"London Borough of Redbridge","http://opendatacommunities.org/doc/london-borough-council/redbridge","6BADULTSOCIA","Adult Social Care","6COLDINCMENT","Older People (65 or over) incl. Older Mentally Ill","REV","Revenue","R4391","OP Home Care","05-THIRD","Third Party Payments","05A","Independent units within the council","6502","Agency Homecare (Payments To Independent Units)","91008120","201908",30/10/2018 00:00:00,42.06,"43419","Home Care Services","REDACTED DATA","CAREWATCH CARE SERVICES LTD","2949558","http://opencorporates.com/companies/gb/2949558","927457005"
"London Borough of Redbridge","http://opendatacommunities.org/doc/london-borough-council/redbridge","6BADULTSOCIA","Adult Social Care","6COLDINCMENT","Older People (65 or over) incl. Older Mentally Ill","REV","Revenue","R4391","OP Home Care","05-THIRD","Third Party Payments","05A","Independent units within the council","6502","Agency Homecare (Payments To Independent Units)","91011074","201908",26/11/2018 00:00:00,56.08,"43419","Home Care Services","REDACTED DATA","CAREWATCH CARE SERVICES LTD","2949558","http://opencorporates.com/companies/gb/2949558","927457005"
"London Borough of Redbridge","http://opendatacommunities.org/doc/london-borough-council/redbridge","6BADULTSOCIA","Adult Social Care","6COLDINCMENT","Older People (65 or over) incl. Older Mentally Ill","REV","Revenue","R4391","OP Home Care","05-THIRD","Third Party Payments","05A","Independent units within the council","6502","Agency Homecare (Payments To Independent Units)","91011055","201908",26/11/2018 00:00:00,84.12,"43419","Home Care Services","REDACTED DATA","CAREWATCH CARE SERVICES LTD","2949558","http://opencorporates.com/companies/gb/2949558","927457005"
"London Borough of Redbridge","http://opendatacommunities.org/doc/london-borough-council/redbridge","6BADULTSOCIA","Adult Social Care","6COLDINCMENT","Older People (65 or over) incl. Older Mentally Ill","REV","Revenue","R4391","OP Home Care","05-THIRD","Third Party Payments","05A","Independent units within the council","6502","Agency Homecare (Payments To Independent Units)","91011056","201908",26/11/2018 00:00:00,7.02,"43419","Home Care Services","REDACTED DATA","CAREWATCH CARE SERVICES LTD","2949558","http://opencorporates.com/companies/gb/2949558","927457005"
"London Borough of Redbridge","http://opendatacommunities.org/doc/london-borough-council/redbridge","6BADULTSOCIA","Adult Social Care","6COLDINCMENT","Older People (65 or over) incl. Older Mentally Ill","REV","Revenue","R4391","OP Home Care","05-THIRD","Third Party Payments","05A","Independent units within the council","6502","Agency Homecare (Payments To Independent Units)","91009371","201908",21/11/2018 00:00:00,105,"43419","Home Care Services","REDACTED DATA","AQT LONDON LTD- AQT HOME CARE SERVICES","7192694","http://opencorporates.com/companies/gb/7192694",""
"London Borough of Redbridge","http://opendatacommunities.org/doc/london-borough-council/redbridge","6BADULTSOCIA","Adult Social Care","6COLDINCMENT","Older People (65 or over) incl. Older Mentally Ill","REV","Revenue","R4391","OP Home Care","05-THIRD","Third Party Payments","05A","Independent units within the council","6502","Agency Homecare (Payments To Independent Units)","91010584","201908",14/11/2018 00:00:00,119.14,"53350","Nursing Homes","REDACTED DATA","ELEANOR NURSING & SOCIALCARE LTD","4393038","http://opencorporates.com/companies/gb/4393038",""
"London Borough of Redbridge","http://opendatacommunities.org/doc/london-borough-council/redbridge","6BADULTSOCIA","Adult Social Care","6COLDINCMENT","Older People (65 or over) incl. Older Mentally Ill","REV","Revenue","R4391","OP Home Care","05-THIRD","Third Party Payments","05A","Independent units within the council","6502","Agency Homecare (Payments To Independent Units)","91010588","201908",14/11/2018 00:00:00,40.86,"53350","Nursing Homes","REDACTED DATA","ELEANOR NURSING & SOCIALCARE LTD","4393038","http://opencorporates.com/companies/gb/4393038",""
"London Borough of Redbridge","http://opendatacommunities.org/doc/london-borough-council/redbridge","6BADULTSOCIA","Adult Social Care","6COLDINCMENT","Older People (65 or over) incl. Older Mentally Ill","REV","Revenue","R4391","OP Home Care","05-THIRD","Third Party Payments","05A","Independent units within the council","6502","Agency Homecare (Payments To Independent Units)","91010650","201908",23/11/2018 00:00:00,54.44,"53350","Nursing Homes","REDACTED DATA","ELEANOR NURSING & SOCIALCARE LTD","4393038","http://opencorporates.com/companies/gb/4393038",""
"London Borough of Redbridge","http://opendatacommunities.org/doc/london-borough-council/redbridge","6BADULTSOCIA","Adult Social Care","6COLDINCMENT","Older People (65 or over) incl. Older Mentally Ill","REV","Revenue","R4391","OP Home Care","05-THIRD","Third Party Payments","05A","Independent units within the council","6502","Agency Homecare (Payments To Independent Units)","91011518","201908",26/11/2018 00:00:00,28.04,"43419","Home Care Services","REDACTED DATA","HAVEN CARE LTD","6762521","http://opencorporates.com/companies/gb/6762521",""
"London Borough of Redbridge","http://opendatacommunities.org/doc/london-borough-council/redbridge","6BADULTSOCIA","Adult Social Care","6COLDINCMENT","Older People (65 or over) incl. Older Mentally Ill","REV","Revenue","R4391","OP Home Care","05-THIRD","Third Party Payments","05A","Independent units within the council","6502","Agency Homecare (Payments To Independent Units)","91011519","201908",26/11/2018 00:00:00,92.54,"43419","Home Care Services","REDACTED DATA","HAVEN CARE LTD","6762521","http://opencorporates.com/companies/gb/6762521",""
"London Borough of Redbridge","http://opendatacommunities.org/doc/london-borough-council/redbridge","6BADULTSOCIA","Adult Social Care","6COLDINCMENT","Older People (65 or over) incl. Older Mentally Ill","REV","Revenue","R4391","OP Home Care","05-THIRD","Third Party Payments","05A","Independent units within the council","6502","Agency Homecare (Payments To Independent Units)","91011520","201908",26/11/2018 00:00:00,24.54,"43419","Home Care Services","REDACTED DATA","HAVEN CARE LTD","6762521","http://opencorporates.com/companies/gb/6762521",""
"London Borough of Redbridge","http://opendatacommunities.org/doc/london-borough-council/redbridge","6BADULTSOCIA","Adult Social Care","6COLDINCMENT","Older People (65 or over) incl. Older Mentally Ill","REV","Revenue","R4391","OP Home Care","05-THIRD","Third Party Payments","05A","Independent units within the council","6502","Agency Homecare (Payments To Independent Units)","91010933","201908",26/11/2018 00:00:00,13.61,"43419","Home Care Services","REDACTED DATA","HAVEN CARE LTD","6762521","http://opencorporates.com/companies/gb/6762521",""
"London Borough of Redbridge","http://opendatacommunities.org/doc/london-borough-council/redbridge","6BADULTSOCIA","Adult Social Care","6COLDINCMENT","Older People (65 or over) incl. Older Mentally Ill","REV","Revenue","R4391","OP Home Care","05-THIRD","Third Party Payments","05A","Independent units within the council","6502","Agency Homecare (Payments To Independent Units)","91007616","201908",06/11/2018 00:00:00,194.05,"53350","Nursing Homes","REDACTED DATA","ELEANOR NURSING & SOCIALCARE LTD","4393038","http://opencorporates.com/companies/gb/4393038",""
"London Borough of Redbridge","http://opendatacommunities.org/doc/london-borough-council/redbridge","6BADULTSOCIA","Adult Social Care","6COLDINCMENT","Older People (65 or over) incl. Older Mentally Ill","REV","Revenue","R4391","OP Home Care","05-THIRD","Third Party Payments","05A","Independent units within the council","6502","Agency Homecare (Payments To Independent Units)","91007585","201908",30/10/2018 00:00:00,183.8,"53350","Nursing Homes","REDACTED DATA","ELEANOR NURSING & SOCIALCARE LTD","4393038","http://opencorporates.com/companies/gb/4393038",""
"London Borough of Redbridge","http://opendatacommunities.org/doc/london-borough-council/redbridge","6BADULTSOCIA","Adult Social Care","6COLDINCMENT","Older People (65 or over) incl. Older Mentally Ill","REV","Revenue","R4391","OP Home Care","05-THIRD","Third Party Payments","05A","Independent units within the council","6502","Agency Homecare (Payments To Independent Units)","91010765","201908",23/11/2018 00:00:00,113.19,"43419","Home Care Services","REDACTED DATA","HAVEN CARE LTD","6762521","http://opencorporates.com/companies/gb/6762521",""
"London Borough of Redbridge","http://opendatacommunities.org/doc/london-borough-council/redbridge","6BADULTSOCIA","Adult Social Care","6COLDINCMENT","Older People (65 or over) incl. Older Mentally Ill","REV","Revenue","R4391","OP Home Care","05-THIRD","Third Party Payments","05A","Independent units within the council","6502","Agency Homecare (Payments To Independent Units)","91010766","201908",23/11/2018 00:00:00,186.96,"43419","Home Care Services","REDACTED DATA","HAVEN CARE LTD","6762521","http://opencorporates.com/companies/gb/6762521",""
"London Borough of Redbridge","http://opendatacommunities.org/doc/london-borough-council/redbridge","6BADULTSOCIA","Adult Social Care","6COLDINCMENT","Older People (65 or over) incl. Older Mentally Ill","REV","Revenue","R4391","OP Home Care","05-THIRD","Third Party Payments","05A","Independent units within the council","6502","Agency Homecare (Payments To Independent Units)","91011423","201908",08/12/2017 00:00:00,6.71,"43419","Home Care Services","REDACTED DATA","HAVEN CARE LTD","6762521","http://opencorporates.com/companies/gb/6762521",""
"London Borough of Redbridge","http://opendatacommunities.org/doc/london-borough-council/redbridge","6BADULTSOCIA","Adult Social Care","6COLDINCMENT","Older People (65 or over) incl. Older Mentally Ill","REV","Revenue","R4391","OP Home Care","05-THIRD","Third Party Payments","05A","Independent units within the council","6502","Agency Homecare (Payments To Independent Units)","91011424","201908",08/12/2017 00:00:00,-6.71,"43419","Home Care Services","REDACTED DATA","HAVEN CARE LTD","6762521","http://opencorporates.com/companies/gb/6762521",""
"London Borough of Redbridge","http://opendatacommunities.org/doc/london-borough-council/redbridge","6BADULTSOCIA","Adult Social Care","6COLDINCMENT","Older People (65 or over) incl. Older Mentally Ill","REV","Revenue","R4391","OP Home Care","05-THIRD","Third Party Payments","05A","Independent units within the council","6502","Agency Homecare (Payments To Independent Units)","91010713","201908",24/11/2017 00:00:00,94.81,"43419","Home Care Services","REDACTED DATA","HAVEN CARE LTD","6762521","http://opencorporates.com/companies/gb/6762521",""
"London Borough of Redbridge","http://opendatacommunities.org/doc/london-borough-council/redbridge","6BADULTSOCIA","Adult Social Care","6COLDINCMENT","Older People (65 or over) incl. Older Mentally Ill","REV","Revenue","R4391","OP Home Care","05-THIRD","Third Party Payments","05A","Independent units within the council","6502","Agency Homecare (Payments To Independent Units)","91010264","201908",26/11/2018 00:00:00,272.65,"43419","Home Care Services","REDACTED DATA","CAREWATCH CARE SERVICES LTD","2949558","http://opencorporates.com/companies/gb/2949558","927457005"
"London Borough of Redbridge","http://opendatacommunities.org/doc/london-borough-council/redbridge","6BADULTSOCIA","Adult Social Care","6COLDINCMENT","Older People (65 or over) incl. Older Mentally Ill","REV","Revenue","R4391","OP Home Care","05-THIRD","Third Party Payments","05A","Independent units within the council","6502","Agency Homecare (Payments To Independent Units)","91011647","201908",26/11/2018 00:00:00,140.79,"43419","Home Care Services","REDACTED DATA","CAREWATCH CARE SERVICES LTD","2949558","http://opencorporates.com/companies/gb/2949558","927457005"
"London Borough of Redbridge","http://opendatacommunities.org/doc/london-borough-council/redbridge","6BADULTSOCIA","Adult Social Care","6COLDINCMENT","Older People (65 or over) incl. Older Mentally Ill","REV","Revenue","R4391","OP Home Care","05-THIRD","Third Party Payments","05A","Independent units within the council","6502","Agency Homecare (Payments To Independent Units)","91010824","201908",23/11/2018 00:00:00,59.2,"43419","Home Care Services","REDACTED DATA","HAVEN CARE LTD","6762521","http://opencorporates.com/companies/gb/6762521",""
"London Borough of Redbridge","http://opendatacommunities.org/doc/london-borough-council/redbridge","6BADULTSOCIA","Adult Social Care","6COLDINCMENT","Older People (65 or over) incl. Older Mentally Ill","REV","Revenue","R4391","OP Home Care","05-THIRD","Third Party Payments","05A","Independent units within the council","6502","Agency Homecare (Payments To Independent Units)","91010684","201908",23/11/2018 00:00:00,173.6,"53350","Nursing Homes","REDACTED DATA","ELEANOR NURSING & SOCIALCARE LTD","4393038","http://opencorporates.com/companies/gb/4393038",""
"London Borough of Redbridge","http://opendatacommunities.org/doc/london-borough-council/redbridge","6BADULTSOCIA","Adult Social Care","6COLDINCMENT","Older People (65 or over) incl. Older Mentally Ill","REV","Revenue","R4391","OP Home Care","05-THIRD","Third Party Payments","05A","Independent units within the council","6502","Agency Homecare (Payments To Independent Units)","91010914","201908",26/11/2018 00:00:00,77.11,"43419","Home Care Services","REDACTED DATA","HAVEN CARE LTD","6762521","http://opencorporates.com/companies/gb/6762521",""
"London Borough of Redbridge","http://opendatacommunities.org/doc/london-borough-council/redbridge","6BADULTSOCIA","Adult Social Care","6COLDINCMENT","Older People (65 or over) incl. Older Mentally Ill","REV","Revenue","R4391","OP Home Care","05-THIRD","Third Party Payments","05A","Independent units within the council","6502","Agency Homecare (Payments To Independent Units)","91011078","201908",26/11/2018 00:00:00,84.12,"43419","Home Care Services","REDACTED DATA","CAREWATCH CARE SERVICES LTD","2949558","http://opencorporates.com/companies/gb/2949558","927457005"
"London Borough of Redbridge","http://opendatacommunities.org/doc/london-borough-council/redbridge","6BADULTSOCIA","Adult Social Care","6COLDINCMENT","Older People (65 or over) incl. Older Mentally Ill","REV","Revenue","R4391","OP Home Care","05-THIRD","Third Party Payments","05A","Independent units within the council","6502","Agency Homecare (Payments To Independent Units)","91011044","201908",26/11/2018 00:00:00,42.06,"43419","Home Care Services","REDACTED DATA","CAREWATCH CARE SERVICES LTD","2949558","http://opencorporates.com/companies/gb/2949558","927457005"
"London Borough of Redbridge","http://opendatacommunities.org/doc/london-borough-council/redbridge","6BADULTSOCIA","Adult Social Care","6COLDINCMENT","Older People (65 or over) incl. Older Mentally Ill","REV","Revenue","R4391","OP Home Care","05-THIRD","Third Party Payments","05A","Independent units within the council","6502","Agency Homecare (Payments To Independent Units)","91010773","201908",23/11/2018 00:00:00,195.14,"43419","Home Care Services","REDACTED DATA","HAVEN CARE LTD","6762521","http://opencorporates.com/companies/gb/6762521",""
"London Borough of Redbridge","http://opendatacommunities.org/doc/london-borough-council/redbridge","6BADULTSOCIA","Adult Social Care","6COLDINCMENT","Older People (65 or over) incl. Older Mentally Ill","REV","Revenue","R4391","OP Home Care","05-THIRD","Third Party Payments","05A","Independent units within the council","6502","Agency Homecare (Payments To Independent Units)","91010582","201908",14/11/2018 00:00:00,119.14,"53350","Nursing Homes","REDACTED DATA","ELEANOR NURSING & SOCIALCARE LTD","4393038","http://opencorporates.com/companies/gb/4393038",""
"London Borough of Redbridge","http://opendatacommunities.org/doc/london-borough-council/redbridge","6BADULTSOCIA","Adult Social Care","6COLDINCMENT","Older People (65 or over) incl. Older Mentally Ill","REV","Revenue","R4391","OP Home Care","05-THIRD","Third Party Payments","05A","Independent units within the council","6502","Agency Homecare (Payments To Independent Units)","91010717","201908",16/04/2018 00:00:00,33.58,"43419","Home Care Services","REDACTED DATA","HAVEN CARE LTD","6762521","http://opencorporates.com/companies/gb/6762521",""
"London Borough of Redbridge","http://opendatacommunities.org/doc/london-borough-council/redbridge","6BADULTSOCIA","Adult Social Care","6COLDINCMENT","Older People (65 or over) incl. Older Mentally Ill","REV","Revenue","R4391","OP Home Care","05-THIRD","Third Party Payments","05A","Independent units within the council","6502","Agency Homecare (Payments To Independent Units)","91011649","201908",26/11/2018 00:00:00,177.77,"43419","Home Care Services","REDACTED DATA","CAREWATCH CARE SERVICES LTD","2949558","http://opencorporates.com/companies/gb/2949558","927457005"
"London Borough of Redbridge","http://opendatacommunities.org/doc/london-borough-council/redbridge","6BADULTSOCIA","Adult Social Care","6COLDINCMENT","Older People (65 or over) incl. Older Mentally Ill","REV","Revenue","R4391","OP Home Care","05-THIRD","Third Party Payments","05A","Independent units within the council","6502","Agency Homecare (Payments To Independent Units)","91011650","201908",26/11/2018 00:00:00,81.45,"43419","Home Care Services","REDACTED DATA","CAREWATCH CARE SERVICES LTD","2949558","http://opencorporates.com/companies/gb/2949558","927457005"
"London Borough of Redbridge","http://opendatacommunities.org/doc/london-borough-council/redbridge","6BADULTSOCIA","Adult Social Care","6COLDINCMENT","Older People (65 or over) incl. Older Mentally Ill","REV","Revenue","R4391","OP Home Care","05-THIRD","Third Party Payments","05A","Independent units within the council","6502","Agency Homecare (Payments To Independent Units)","91007914","201908",12/11/2018 00:00:00,70.54,"43419","Home Care Services","REDACTED DATA","HAVEN CARE LTD","6762521","http://opencorporates.com/companies/gb/6762521",""
"London Borough of Redbridge","http://opendatacommunities.org/doc/london-borough-council/redbridge","6BADULTSOCIA","Adult Social Care","6COLDINCMENT","Older People (65 or over) incl. Older Mentally Ill","REV","Revenue","R4391","OP Home Care","05-THIRD","Third Party Payments","05A","Independent units within the council","6502","Agency Homecare (Payments To Independent Units)","91007970","201908",12/11/2018 00:00:00,92.09,"43419","Home Care Services","REDACTED DATA","HAVEN CARE LTD","6762521","http://opencorporates.com/companies/gb/6762521",""
"London Borough of Redbridge","http://opendatacommunities.org/doc/london-borough-council/redbridge","6BADULTSOCIA","Adult Social Care","6COLDINCMENT","Older People (65 or over) incl. Older Mentally Ill","REV","Revenue","R4391","OP Home Care","05-THIRD","Third Party Payments","05A","Independent units within the council","6502","Agency Homecare (Payments To Independent Units)","91007971","201908",12/11/2018 00:00:00,48.35,"43419","Home Care Services","REDACTED DATA","HAVEN CARE LTD","6762521","http://opencorporates.com/companies/gb/6762521",""
"London Borough of Redbridge","http://opendatacommunities.org/doc/london-borough-council/redbridge","6BADULTSOCIA","Adult Social Care","6COLDINCMENT","Older People (65 or over) incl. Older Mentally Ill","REV","Revenue","R4391","OP Home Care","05-THIRD","Third Party Payments","05A","Independent units within the council","6502","Agency Homecare (Payments To Independent Units)","91008945","201908",04/06/2018 00:00:00,-49.09,"43419","Home Care Services","REDACTED DATA","HAVEN CARE LTD","6762521","http://opencorporates.com/companies/gb/6762521",""
"London Borough of Redbridge","http://opendatacommunities.org/doc/london-borough-council/redbridge","6BADULTSOCIA","Adult Social Care","6COLDINCMENT","Older People (65 or over) incl. Older Mentally Ill","REV","Revenue","R4391","OP Home Care","05-THIRD","Third Party Payments","05A","Independent units within the council","6502","Agency Homecare (Payments To Independent Units)","91008301","201908",13/11/2018 00:00:00,171.78,"43419","Home Care Services","REDACTED DATA","CAREWATCH CARE SERVICES LTD","2949558","http://opencorporates.com/companies/gb/2949558","927457005"
"London Borough of Redbridge","http://opendatacommunities.org/doc/london-borough-council/redbridge","6BADULTSOCIA","Adult Social Care","6COLDINCMENT","Older People (65 or over) incl. Older Mentally Ill","REV","Revenue","R4391","OP Home Care","05-THIRD","Third Party Payments","05A","Independent units within the council","6502","Agency Homecare (Payments To Independent Units)","91008245","201908",05/11/2018 00:00:00,31.56,"43419","Home Care Services","REDACTED DATA","CAREWATCH CARE SERVICES LTD","2949558","http://opencorporates.com/companies/gb/2949558","927457005"
"London Borough of Redbridge","http://opendatacommunities.org/doc/london-borough-council/redbridge","6BADULTSOCIA","Adult Social Care","6COLDINCMENT","Older People (65 or over) incl. Older Mentally Ill","REV","Revenue","R4391","OP Home Care","05-THIRD","Third Party Payments","05A","Independent units within the council","6502","Agency Homecare (Payments To Independent Units)","91008246","201908",05/11/2018 00:00:00,196.28,"43419","Home Care Services","REDACTED DATA","CAREWATCH CARE SERVICES LTD","2949558","http://opencorporates.com/companies/gb/2949558","927457005"
"London Borough of Redbridge","http://opendatacommunities.org/doc/london-borough-council/redbridge","6BADULTSOCIA","Adult Social Care","6COLDINCMENT","Older People (65 or over) incl. Older Mentally Ill","REV","Revenue","R4391","OP Home Care","05-THIRD","Third Party Payments","05A","Independent units within the council","6502","Agency Homecare (Payments To Independent Units)","91008893","201908",08/12/2017 00:00:00,-40.93,"43419","Home Care Services","REDACTED DATA","HAVEN CARE LTD","6762521","http://opencorporates.com/companies/gb/6762521",""
"London Borough of Redbridge","http://opendatacommunities.org/doc/london-borough-council/redbridge","6BADULTSOCIA","Adult Social Care","6COLDINCMENT","Older People (65 or over) incl. Older Mentally Ill","REV","Revenue","R4391","OP Home Care","05-THIRD","Third Party Payments","05A","Independent units within the council","6502","Agency Homecare (Payments To Independent Units)","91007932","201908",12/11/2018 00:00:00,102.12,"43419","Home Care Services","REDACTED DATA","HAVEN CARE LTD","6762521","http://opencorporates.com/companies/gb/6762521",""
"London Borough of Redbridge","http://opendatacommunities.org/doc/london-borough-council/redbridge","6BADULTSOCIA","Adult Social Care","6COLDINCMENT","Older People (65 or over) incl. Older Mentally Ill","REV","Revenue","R4391","OP Home Care","05-THIRD","Third Party Payments","05A","Independent units within the council","6502","Agency Homecare (Payments To Independent Units)","91007880","201908",12/11/2018 00:00:00,191.02,"43419","Home Care Services","REDACTED DATA","HAVEN CARE LTD","6762521","http://opencorporates.com/companies/gb/6762521",""
"London Borough of Redbridge","http://opendatacommunities.org/doc/london-borough-council/redbridge","6BADULTSOCIA","Adult Social Care","6COLDINCMENT","Older People (65 or over) incl. Older Mentally Ill","REV","Revenue","R4391","OP Home Care","05-THIRD","Third Party Payments","05A","Independent units within the council","6502","Agency Homecare (Payments To Independent Units)","91011501","201908",23/11/2018 00:00:00,101.17,"43419","Home Care Services","REDACTED DATA","HAVEN CARE LTD","6762521","http://opencorporates.com/companies/gb/6762521",""
"London Borough of Redbridge","http://opendatacommunities.org/doc/london-borough-council/redbridge","6BADULTSOCIA","Adult Social Care","6COLDINCMENT","Older People (65 or over) incl. Older Mentally Ill","REV","Revenue","R4391","OP Home Care","05-THIRD","Third Party Payments","05A","Independent units within the council","6502","Agency Homecare (Payments To Independent Units)","91011502","201908",23/11/2018 00:00:00,184.63,"43419","Home Care Services","REDACTED DATA","HAVEN CARE LTD","6762521","http://opencorporates.com/companies/gb/6762521",""
"London Borough of Redbridge","http://opendatacommunities.org/doc/london-borough-council/redbridge","6BADULTSOCIA","Adult Social Care","6COLDINCMENT","Older People (65 or over) incl. Older Mentally Ill","REV","Revenue","R4391","OP Home Care","05-THIRD","Third Party Payments","05A","Independent units within the council","6502","Agency Homecare (Payments To Independent Units)","91010591","201908",14/11/2018 00:00:00,190.61,"53350","Nursing Homes","REDACTED DATA","ELEANOR NURSING & SOCIALCARE LTD","4393038","http://opencorporates.com/companies/gb/4393038",""
"London Borough of Redbridge","http://opendatacommunities.org/doc/london-borough-council/redbridge","6BADULTSOCIA","Adult Social Care","6COLDINCMENT","Older People (65 or over) incl. Older Mentally Ill","REV","Revenue","R4391","OP Home Care","05-THIRD","Third Party Payments","05A","Independent units within the council","6502","Agency Homecare (Payments To Independent Units)","91010592","201908",14/11/2018 00:00:00,51.05,"53350","Nursing Homes","REDACTED DATA","ELEANOR NURSING & SOCIALCARE LTD","4393038","http://opencorporates.com/companies/gb/4393038",""
"London Borough of Redbridge","http://opendatacommunities.org/doc/london-borough-council/redbridge","6BADULTSOCIA","Adult Social Care","6COLDINCMENT","Older People (65 or over) incl. Older Mentally Ill","REV","Revenue","R4391","OP Home Care","05-THIRD","Third Party Payments","05A","Independent units within the council","6502","Agency Homecare (Payments To Independent Units)","91010593","201908",14/11/2018 00:00:00,95.31,"53350","Nursing Homes","REDACTED DATA","ELEANOR NURSING & SOCIALCARE LTD","4393038","http://opencorporates.com/companies/gb/4393038",""
"London Borough of Redbridge","http://opendatacommunities.org/doc/london-borough-council/redbridge","6BADULTSOCIA","Adult Social Care","6COLDINCMENT","Older People (65 or over) incl. Older Mentally Ill","REV","Revenue","R4391","OP Home Care","05-THIRD","Third Party Payments","05A","Independent units within the council","6502","Agency Homecare (Payments To Independent Units)","91007881","201908",12/11/2018 00:00:00,53.55,"43419","Home Care Services","REDACTED DATA","HAVEN CARE LTD","6762521","http://opencorporates.com/companies/gb/6762521",""
"London Borough of Redbridge","http://opendatacommunities.org/doc/london-borough-council/redbridge","6BADULTSOCIA","Adult Social Care","6COLDINCMENT","Older People (65 or over) incl. Older Mentally Ill","REV","Revenue","R4391","OP Home Care","05-THIRD","Third Party Payments","05A","Independent units within the council","6502","Agency Homecare (Payments To Independent Units)","91010829","201908",23/11/2018 00:00:00,13.61,"43419","Home Care Services","REDACTED DATA","HAVEN CARE LTD","6762521","http://opencorporates.com/companies/gb/6762521",""
"London Borough of Redbridge","http://opendatacommunities.org/doc/london-borough-council/redbridge","6BADULTSOCIA","Adult Social Care","6COLDINCMENT","Older People (65 or over) incl. Older Mentally Ill","REV","Revenue","R4391","OP Home Care","05-THIRD","Third Party Payments","05A","Independent units within the council","6502","Agency Homecare (Payments To Independent Units)","91007834","201908",09/11/2018 00:00:00,211.89,"43419","Home Care Services","REDACTED DATA","HAVEN CARE LTD","6762521","http://opencorporates.com/companies/gb/6762521",""
"London Borough of Redbridge","http://opendatacommunities.org/doc/london-borough-council/redbridge","6BADULTSOCIA","Adult Social Care","6COLDINCMENT","Older People (65 or over) incl. Older Mentally Ill","REV","Revenue","R4391","OP Home Care","05-THIRD","Third Party Payments","05A","Independent units within the council","6502","Agency Homecare (Payments To Independent Units)","91007835","201908",09/11/2018 00:00:00,98.26,"43419","Home Care Services","REDACTED DATA","HAVEN CARE LTD","6762521","http://opencorporates.com/companies/gb/6762521",""
"London Borough of Redbridge","http://opendatacommunities.org/doc/london-borough-council/redbridge","6BADULTSOCIA","Adult Social Care","6COLDINCMENT","Older People (65 or over) incl. Older Mentally Ill","REV","Revenue","R4391","OP Home Care","05-THIRD","Third Party Payments","05A","Independent units within the council","6502","Agency Homecare (Payments To Independent Units)","91007836","201908",09/11/2018 00:00:00,96.9,"43419","Home Care Services","REDACTED DATA","HAVEN CARE LTD","6762521","http://opencorporates.com/companies/gb/6762521",""
"London Borough of Redbridge","http://opendatacommunities.org/doc/london-borough-council/redbridge","6BADULTSOCIA","Adult Social Care","6COLDINCMENT","Older People (65 or over) incl. Older Mentally Ill","REV","Revenue","R4391","OP Home Care","05-THIRD","Third Party Payments","05A","Independent units within the council","6502","Agency Homecare (Payments To Independent Units)","91007753","201908",31/10/2018 00:00:00,6.81,"43419","Home Care Services","REDACTED DATA","HAVEN CARE LTD","6762521","http://opencorporates.com/companies/gb/6762521",""
"London Borough of Redbridge","http://opendatacommunities.org/doc/london-borough-council/redbridge","6BADULTSOCIA","Adult Social Care","6COLDINCMENT","Older People (65 or over) incl. Older Mentally Ill","REV","Revenue","R4391","OP Home Care","05-THIRD","Third Party Payments","05A","Independent units within the council","6502","Agency Homecare (Payments To Independent Units)","91008950","201908",25/10/2018 00:00:00,85.05,"43419","Home Care Services","REDACTED DATA","HAVEN CARE LTD","6762521","http://opencorporates.com/companies/gb/6762521",""
"London Borough of Redbridge","http://opendatacommunities.org/doc/london-borough-council/redbridge","6BADULTSOCIA","Adult Social Care","6COLDINCMENT","Older People (65 or over) incl. Older Mentally Ill","REV","Revenue","R4391","OP Home Care","05-THIRD","Third Party Payments","05A","Independent units within the council","6502","Agency Homecare (Payments To Independent Units)","91008951","201908",25/10/2018 00:00:00,-85.05,"43419","Home Care Services","REDACTED DATA","HAVEN CARE LTD","6762521","http://opencorporates.com/companies/gb/6762521",""
"London Borough of Redbridge","http://opendatacommunities.org/doc/london-borough-council/redbridge","6BADULTSOCIA","Adult Social Care","6COLDINCMENT","Older People (65 or over) incl. Older Mentally Ill","REV","Revenue","R4391","OP Home Care","05-THIRD","Third Party Payments","05A","Independent units within the council","6502","Agency Homecare (Payments To Independent Units)","91008894","201908",13/12/2017 00:00:00,80.52,"43419","Home Care Services","REDACTED DATA","HAVEN CARE LTD","6762521","http://opencorporates.com/companies/gb/6762521",""
"London Borough of Redbridge","http://opendatacommunities.org/doc/london-borough-council/redbridge","6BADULTSOCIA","Adult Social Care","6COLDINCMENT","Older People (65 or over) incl. Older Mentally Ill","REV","Revenue","R4391","OP Home Care","05-THIRD","Third Party Payments","05A","Independent units within the council","6502","Agency Homecare (Payments To Independent Units)","91008895","201908",13/12/2017 00:00:00,-80.52,"43419","Home Care Services","REDACTED DATA","HAVEN CARE LTD","6762521","http://opencorporates.com/companies/gb/6762521",""
"London Borough of Redbridge","http://opendatacommunities.org/doc/london-borough-council/redbridge","6BADULTSOCIA","Adult Social Care","6COLDINCMENT","Older People (65 or over) incl. Older Mentally Ill","REV","Revenue","R4391","OP Home Care","05-THIRD","Third Party Payments","05A","Independent units within the council","6502","Agency Homecare (Payments To Independent Units)","91010841","201908",23/11/2018 00:00:00,49.46,"43419","Home Care Services","REDACTED DATA","HAVEN CARE LTD","6762521","http://opencorporates.com/companies/gb/6762521",""
"London Borough of Redbridge","http://opendatacommunities.org/doc/london-borough-council/redbridge","6BADULTSOCIA","Adult Social Care","6COLDINCMENT","Older People (65 or over) incl. Older Mentally Ill","REV","Revenue","R4391","OP Home Care","05-THIRD","Third Party Payments","05A","Independent units within the council","6502","Agency Homecare (Payments To Independent Units)","91008622","201908",31/10/2018 00:00:00,6.81,"43419","Home Care Services","REDACTED DATA","HAVEN CARE LTD","6762521","http://opencorporates.com/companies/gb/6762521",""
"London Borough of Redbridge","http://opendatacommunities.org/doc/london-borough-council/redbridge","6BADULTSOCIA","Adult Social Care","6COLDINCMENT","Older People (65 or over) incl. Older Mentally Ill","REV","Revenue","R4391","OP Home Care","05-THIRD","Third Party Payments","05A","Independent units within the council","6502","Agency Homecare (Payments To Independent Units)","91007635","201908",06/11/2018 00:00:00,13.61,"53350","Nursing Homes","REDACTED DATA","ELEANOR NURSING & SOCIALCARE LTD","4393038","http://opencorporates.com/companies/gb/4393038",""
"London Borough of Redbridge","http://opendatacommunities.org/doc/london-borough-council/redbridge","6BADULTSOCIA","Adult Social Care","6COLDINCMENT","Older People (65 or over) incl. Older Mentally Ill","REV","Revenue","R4391","OP Home Care","05-THIRD","Third Party Payments","05A","Independent units within the council","6502","Agency Homecare (Payments To Independent Units)","91010832","201908",23/11/2018 00:00:00,265.49,"43419","Home Care Services","REDACTED DATA","HAVEN CARE LTD","6762521","http://opencorporates.com/companies/gb/6762521",""
"London Borough of Redbridge","http://opendatacommunities.org/doc/london-borough-council/redbridge","6BADULTSOCIA","Adult Social Care","6COLDINCMENT","Older People (65 or over) incl. Older Mentally Ill","REV","Revenue","R4391","OP Home Care","05-THIRD","Third Party Payments","05A","Independent units within the council","6502","Agency Homecare (Payments To Independent Units)","91010646","201908",23/11/2018 00:00:00,190.61,"53350","Nursing Homes","REDACTED DATA","ELEANOR NURSING & SOCIALCARE LTD","4393038","http://opencorporates.com/companies/gb/4393038",""
"London Borough of Redbridge","http://opendatacommunities.org/doc/london-borough-council/redbridge","6BADULTSOCIA","Adult Social Care","6COLDINCMENT","Older People (65 or over) incl. Older Mentally Ill","REV","Revenue","R4391","OP Home Care","05-THIRD","Third Party Payments","05A","Independent units within the council","6502","Agency Homecare (Payments To Independent Units)","91010901","201908",26/11/2018 00:00:00,98.49,"43419","Home Care Services","REDACTED DATA","HAVEN CARE LTD","6762521","http://opencorporates.com/companies/gb/6762521",""
"London Borough of Redbridge","http://opendatacommunities.org/doc/london-borough-council/redbridge","6BADULTSOCIA","Adult Social Care","6COLDINCMENT","Older People (65 or over) incl. Older Mentally Ill","REV","Revenue","R4391","OP Home Care","05-THIRD","Third Party Payments","05A","Independent units within the council","6502","Agency Homecare (Payments To Independent Units)","91007874","201908",09/11/2018 00:00:00,111.15,"43419","Home Care Services","REDACTED DATA","HAVEN CARE LTD","6762521","http://opencorporates.com/companies/gb/6762521",""
"London Borough of Redbridge","http://opendatacommunities.org/doc/london-borough-council/redbridge","6BADULTSOCIA","Adult Social Care","6COLDINCMENT","Older People (65 or over) incl. Older Mentally Ill","REV","Revenue","R4391","OP Home Care","05-THIRD","Third Party Payments","05A","Independent units within the council","6502","Agency Homecare (Payments To Independent Units)","91007931","201908",12/11/2018 00:00:00,68.96,"43419","Home Care Services","REDACTED DATA","HAVEN CARE LTD","6762521","http://opencorporates.com/companies/gb/6762521",""
"London Borough of Redbridge","http://opendatacommunities.org/doc/london-borough-council/redbridge","6BADULTSOCIA","Adult Social Care","6COLDINCMENT","Older People (65 or over) incl. Older Mentally Ill","REV","Revenue","R4391","OP Home Care","05-THIRD","Third Party Payments","05A","Independent units within the council","6502","Agency Homecare (Payments To Independent Units)","91011447","201908",04/11/2018 00:00:00,144.27,"43419","Home Care Services","REDACTED DATA","HAVEN CARE LTD","6762521","http://opencorporates.com/companies/gb/6762521",""
"London Borough of Redbridge","http://opendatacommunities.org/doc/london-borough-council/redbridge","6BADULTSOCIA","Adult Social Care","6COLDINCMENT","Older People (65 or over) incl. Older Mentally Ill","REV","Revenue","R4391","OP Home Care","05-THIRD","Third Party Payments","05A","Independent units within the council","6502","Agency Homecare (Payments To Independent Units)","91011448","201908",04/11/2018 00:00:00,-144.27,"43419","Home Care Services","REDACTED DATA","HAVEN CARE LTD","6762521","http://opencorporates.com/companies/gb/6762521",""
"London Borough of Redbridge","http://opendatacommunities.org/doc/london-borough-council/redbridge","6BADULTSOCIA","Adult Social Care","6COLDINCMENT","Older People (65 or over) incl. Older Mentally Ill","REV","Revenue","R4391","OP Home Care","05-THIRD","Third Party Payments","05A","Independent units within the council","6502","Agency Homecare (Payments To Independent Units)","91011033","201908",26/11/2018 00:00:00,150.75,"43419","Home Care Services","REDACTED DATA","CAREWATCH CARE SERVICES LTD","2949558","http://opencorporates.com/companies/gb/2949558","927457005"
"London Borough of Redbridge","http://opendatacommunities.org/doc/london-borough-council/redbridge","6BADULTSOCIA","Adult Social Care","6COLDINCMENT","Older People (65 or over) incl. Older Mentally Ill","REV","Revenue","R4391","OP Home Care","05-THIRD","Third Party Payments","05A","Independent units within the council","6502","Agency Homecare (Payments To Independent Units)","91010587","201908",14/11/2018 00:00:00,309.74,"53350","Nursing Homes","REDACTED DATA","ELEANOR NURSING & SOCIALCARE LTD","4393038","http://opencorporates.com/companies/gb/4393038",""
"London Borough of Redbridge","http://opendatacommunities.org/doc/london-borough-council/redbridge","6BADULTSOCIA","Adult Social Care","6COLDINCMENT","Older People (65 or over) incl. Older Mentally Ill","REV","Revenue","R4391","OP Home Care","05-THIRD","Third Party Payments","05A","Independent units within the council","6502","Agency Homecare (Payments To Independent Units)","91011500","201908",23/11/2018 00:00:00,70.1,"43419","Home Care Services","REDACTED DATA","HAVEN CARE LTD","6762521","http://opencorporates.com/companies/gb/6762521",""
"London Borough of Redbridge","http://opendatacommunities.org/doc/london-borough-council/redbridge","6BADULTSOCIA","Adult Social Care","6COLDINCMENT","Older People (65 or over) incl. Older Mentally Ill","REV","Revenue","R4391","OP Home Care","05-THIRD","Third Party Payments","05A","Independent units within the council","6502","Agency Homecare (Payments To Independent Units)","91009020","201908",30/10/2018 00:00:00,248.12,"43419","Home Care Services","REDACTED DATA","CAREWATCH CARE SERVICES LTD","2949558","http://opencorporates.com/companies/gb/2949558","927457005"
"London Borough of Redbridge","http://opendatacommunities.org/doc/london-borough-council/redbridge","6BADULTSOCIA","Adult Social Care","6COLDINCMENT","Older People (65 or over) incl. Older Mentally Ill","REV","Revenue","R4391","OP Home Care","05-THIRD","Third Party Payments","05A","Independent units within the council","6502","Agency Homecare (Payments To Independent Units)","91008369","201908",13/11/2018 00:00:00,56.11,"43419","Home Care Services","REDACTED DATA","CAREWATCH CARE SERVICES LTD","2949558","http://opencorporates.com/companies/gb/2949558","927457005"
"London Borough of Redbridge","http://opendatacommunities.org/doc/london-borough-council/redbridge","6BADULTSOCIA","Adult Social Care","6COLDINCMENT","Older People (65 or over) incl. Older Mentally Ill","REV","Revenue","R4391","OP Home Care","05-THIRD","Third Party Payments","05A","Independent units within the council","6502","Agency Homecare (Payments To Independent Units)","91010663","201908",23/11/2018 00:00:00,183.8,"53350","Nursing Homes","REDACTED DATA","ELEANOR NURSING & SOCIALCARE LTD","4393038","http://opencorporates.com/companies/gb/4393038",""
"London Borough of Redbridge","http://opendatacommunities.org/doc/london-borough-council/redbridge","6BADULTSOCIA","Adult Social Care","6COLDINCMENT","Older People (65 or over) incl. Older Mentally Ill","REV","Revenue","R4391","OP Home Care","05-THIRD","Third Party Payments","05A","Independent units within the council","6502","Agency Homecare (Payments To Independent Units)","91010688","201908",23/11/2018 00:00:00,68.1,"53350","Nursing Homes","REDACTED DATA","ELEANOR NURSING & SOCIALCARE LTD","4393038","http://opencorporates.com/companies/gb/4393038",""
"London Borough of Redbridge","http://opendatacommunities.org/doc/london-borough-council/redbridge","6BADULTSOCIA","Adult Social Care","6COLDINCMENT","Older People (65 or over) incl. Older Mentally Ill","REV","Revenue","R4391","OP Home Care","05-THIRD","Third Party Payments","05A","Independent units within the council","6502","Agency Homecare (Payments To Independent Units)","91010908","201908",26/11/2018 00:00:00,84.38,"43419","Home Care Services","REDACTED DATA","HAVEN CARE LTD","6762521","http://opencorporates.com/companies/gb/6762521",""
"London Borough of Redbridge","http://opendatacommunities.org/doc/london-borough-council/redbridge","6BADULTSOCIA","Adult Social Care","6COLDINCMENT","Older People (65 or over) incl. Older Mentally Ill","REV","Revenue","R4391","OP Home Care","05-THIRD","Third Party Payments","05A","Independent units within the council","6502","Agency Homecare (Payments To Independent Units)","91010604","201908",14/11/2018 00:00:00,27.22,"53350","Nursing Homes","REDACTED DATA","ELEANOR NURSING & SOCIALCARE LTD","4393038","http://opencorporates.com/companies/gb/4393038",""
"London Borough of Redbridge","http://opendatacommunities.org/doc/london-borough-council/redbridge","6BADULTSOCIA","Adult Social Care","6COLDINCMENT","Older People (65 or over) incl. Older Mentally Ill","REV","Revenue","R4391","OP Home Care","05-THIRD","Third Party Payments","05A","Independent units within the council","6502","Agency Homecare (Payments To Independent Units)","91009032","201908",12/11/2018 00:00:00,93.96,"43419","Home Care Services","REDACTED DATA","CAREWATCH CARE SERVICES LTD","2949558","http://opencorporates.com/companies/gb/2949558","927457005"
"London Borough of Redbridge","http://opendatacommunities.org/doc/london-borough-council/redbridge","6BADULTSOCIA","Adult Social Care","6COLDINCMENT","Older People (65 or over) incl. Older Mentally Ill","REV","Revenue","R4391","OP Home Care","05-THIRD","Third Party Payments","05A","Independent units within the council","6502","Agency Homecare (Payments To Independent Units)","91009033","201908",12/11/2018 00:00:00,14.45,"43419","Home Care Services","REDACTED DATA","CAREWATCH CARE SERVICES LTD","2949558","http://opencorporates.com/companies/gb/2949558","927457005"
"London Borough of Redbridge","http://opendatacommunities.org/doc/london-borough-council/redbridge","6BADULTSOCIA","Adult Social Care","6COLDINCMENT","Older People (65 or over) incl. Older Mentally Ill","REV","Revenue","R4391","OP Home Care","05-THIRD","Third Party Payments","05A","Independent units within the council","6502","Agency Homecare (Payments To Independent Units)","91008906","201908",19/01/2018 00:00:00,117.91,"43419","Home Care Services","REDACTED DATA","HAVEN CARE LTD","6762521","http://opencorporates.com/companies/gb/6762521",""
"London Borough of Redbridge","http://opendatacommunities.org/doc/london-borough-council/redbridge","6BADULTSOCIA","Adult Social Care","6COLDINCMENT","Older People (65 or over) incl. Older Mentally Ill","REV","Revenue","R4391","OP Home Care","05-THIRD","Third Party Payments","05A","Independent units within the council","6502","Agency Homecare (Payments To Independent Units)","91008907","201908",19/01/2018 00:00:00,-117.91,"43419","Home Care Services","REDACTED DATA","HAVEN CARE LTD","6762521","http://opencorporates.com/companies/gb/6762521",""
"London Borough of Redbridge","http://opendatacommunities.org/doc/london-borough-council/redbridge","6BADULTSOCIA","Adult Social Care","6COLDINCMENT","Older People (65 or over) incl. Older Mentally Ill","REV","Revenue","R4391","OP Home Care","05-THIRD","Third Party Payments","05A","Independent units within the council","6502","Agency Homecare (Payments To Independent Units)","91007627","201908",06/11/2018 00:00:00,71.47,"53350","Nursing Homes","REDACTED DATA","ELEANOR NURSING & SOCIALCARE LTD","4393038","http://opencorporates.com/companies/gb/4393038",""
"London Borough of Redbridge","http://opendatacommunities.org/doc/london-borough-council/redbridge","6BADULTSOCIA","Adult Social Care","6COLDINCMENT","Older People (65 or over) incl. Older Mentally Ill","REV","Revenue","R4391","OP Home Care","05-THIRD","Third Party Payments","05A","Independent units within the council","6502","Agency Homecare (Payments To Independent Units)","91007628","201908",06/11/2018 00:00:00,54.47,"53350","Nursing Homes","REDACTED DATA","ELEANOR NURSING & SOCIALCARE LTD","4393038","http://opencorporates.com/companies/gb/4393038",""
"London Borough of Redbridge","http://opendatacommunities.org/doc/london-borough-council/redbridge","6BADULTSOCIA","Adult Social Care","6COLDINCMENT","Older People (65 or over) incl. Older Mentally Ill","REV","Revenue","R4391","OP Home Care","05-THIRD","Third Party Payments","05A","Independent units within the council","6502","Agency Homecare (Payments To Independent Units)","91011063","201908",26/11/2018 00:00:00,31.56,"43419","Home Care Services","REDACTED DATA","CAREWATCH CARE SERVICES LTD","2949558","http://opencorporates.com/companies/gb/2949558","927457005"
"London Borough of Redbridge","http://opendatacommunities.org/doc/london-borough-council/redbridge","6BADULTSOCIA","Adult Social Care","6COLDINCMENT","Older People (65 or over) incl. Older Mentally Ill","REV","Revenue","R4391","OP Home Care","05-THIRD","Third Party Payments","05A","Independent units within the council","6502","Agency Homecare (Payments To Independent Units)","91011064","201908",26/11/2018 00:00:00,196.28,"43419","Home Care Services","REDACTED DATA","CAREWATCH CARE SERVICES LTD","2949558","http://opencorporates.com/companies/gb/2949558","927457005"
"London Borough of Redbridge","http://opendatacommunities.org/doc/london-borough-council/redbridge","6BADULTSOCIA","Adult Social Care","6COLDINCMENT","Older People (65 or over) incl. Older Mentally Ill","REV","Revenue","R4391","OP Home Care","05-THIRD","Third Party Payments","05A","Independent units within the council","6502","Agency Homecare (Payments To Independent Units)","91010819","201908",23/11/2018 00:00:00,96.86,"43419","Home Care Services","REDACTED DATA","HAVEN CARE LTD","6762521","http://opencorporates.com/companies/gb/6762521",""
"London Borough of Redbridge","http://opendatacommunities.org/doc/london-borough-council/redbridge","6BADULTSOCIA","Adult Social Care","6COLDINCMENT","Older People (65 or over) incl. Older Mentally Ill","REV","Revenue","R4391","OP Home Care","05-THIRD","Third Party Payments","05A","Independent units within the council","6502","Agency Homecare (Payments To Independent Units)","91010827","201908",23/11/2018 00:00:00,164.9,"43419","Home Care Services","REDACTED DATA","HAVEN CARE LTD","6762521","http://opencorporates.com/companies/gb/6762521",""
"London Borough of Redbridge","http://opendatacommunities.org/doc/london-borough-council/redbridge","6BADULTSOCIA","Adult Social Care","6COLDINCMENT","Older People (65 or over) incl. Older Mentally Ill","REV","Revenue","R4391","OP Home Care","05-THIRD","Third Party Payments","05A","Independent units within the council","6502","Agency Homecare (Payments To Independent Units)","91010828","201908",23/11/2018 00:00:00,97.76,"43419","Home Care Services","REDACTED DATA","HAVEN CARE LTD","6762521","http://opencorporates.com/companies/gb/6762521",""
"London Borough of Redbridge","http://opendatacommunities.org/doc/london-borough-council/redbridge","6BADULTSOCIA","Adult Social Care","6COLDINCMENT","Older People (65 or over) incl. Older Mentally Ill","REV","Revenue","R4391","OP Home Care","05-THIRD","Third Party Payments","05A","Independent units within the council","6502","Agency Homecare (Payments To Independent Units)","91008633","201908",09/11/2018 00:00:00,451.25,"43419","Home Care Services","REDACTED DATA","HAVEN CARE LTD","6762521","http://opencorporates.com/companies/gb/6762521",""
"London Borough of Redbridge","http://opendatacommunities.org/doc/london-borough-council/redbridge","6BADULTSOCIA","Adult Social Care","6COLDINCMENT","Older People (65 or over) incl. Older Mentally Ill","REV","Revenue","R4391","OP Home Care","05-THIRD","Third Party Payments","05A","Independent units within the council","6502","Agency Homecare (Payments To Independent Units)","91007642","201908",06/11/2018 00:00:00,102.1,"53350","Nursing Homes","REDACTED DATA","ELEANOR NURSING & SOCIALCARE LTD","4393038","http://opencorporates.com/companies/gb/4393038",""
"London Borough of Redbridge","http://opendatacommunities.org/doc/london-borough-council/redbridge","6BADULTSOCIA","Adult Social Care","6COLDINCMENT","Older People (65 or over) incl. Older Mentally Ill","REV","Revenue","R4391","OP Home Care","05-THIRD","Third Party Payments","05A","Independent units within the council","6502","Agency Homecare (Payments To Independent Units)","91007699","201908",12/10/2018 00:00:00,72.59,"43419","Home Care Services","REDACTED DATA","HAVEN CARE LTD","6762521","http://opencorporates.com/companies/gb/6762521",""
"London Borough of Redbridge","http://opendatacommunities.org/doc/london-borough-council/redbridge","6BADULTSOCIA","Adult Social Care","6COLDINCMENT","Older People (65 or over) incl. Older Mentally Ill","REV","Revenue","R4391","OP Home Care","05-THIRD","Third Party Payments","05A","Independent units within the council","6502","Agency Homecare (Payments To Independent Units)","91007757","201908",31/10/2018 00:00:00,13.62,"43419","Home Care Services","REDACTED DATA","HAVEN CARE LTD","6762521","http://opencorporates.com/companies/gb/6762521",""
"London Borough of Redbridge","http://opendatacommunities.org/doc/london-borough-council/redbridge","6BADULTSOCIA","Adult Social Care","6COLDINCMENT","Older People (65 or over) incl. Older Mentally Ill","REV","Revenue","R4391","OP Home Care","05-THIRD","Third Party Payments","05A","Independent units within the council","6502","Agency Homecare (Payments To Independent Units)","91010751","201908",23/11/2018 00:00:00,86.41,"43419","Home Care Services","REDACTED DATA","HAVEN CARE LTD","6762521","http://opencorporates.com/companies/gb/6762521",""
"London Borough of Redbridge","http://opendatacommunities.org/doc/london-borough-council/redbridge","1BCENTRALPUB","Central Services to the Public","1CTRADSURDEF","Trading Account Surpluses & Deficits","REV","Revenue","R5754","Income","04-SUPPLIES","Supplies And Services","04H","Grants and subscriptions","5954","Professional Fees","60389794","201908",16/11/2018 00:00:00,7.5,"48582","Loans and Debt - Management","REDACTED DATA","MOORCROFT DEBT RECOVERY LTD","1703704","http://opencorporates.com/companies/gb/1703704","453109273"
"London Borough of Redbridge","http://opendatacommunities.org/doc/london-borough-council/redbridge","1BCENTRALPUB","Central Services to the Public","1CTRADSURDEF","Trading Account Surpluses & Deficits","REV","Revenue","R5770","Income Assessment","04-SUPPLIES","Supplies And Services","04H","Grants and subscriptions","5954","Professional Fees","60389790","201908",16/11/2018 00:00:00,67.5,"48582","Loans and Debt - Management","REDACTED DATA","MOORCROFT DEBT RECOVERY LTD","1703704","http://opencorporates.com/companies/gb/1703704","453109273"
"London Borough of Redbridge","http://opendatacommunities.org/doc/london-borough-council/redbridge","1BCENTRALPUB","Central Services to the Public","1CTRADSURDEF","Trading Account Surpluses & Deficits","REV","Revenue","R6755","Emergency Plan Stratgy","04-SUPPLIES","Supplies And Services","04D","Printing, stationery and general office expenses","5710","Stationery","3530095","201908",17/10/2018 00:00:00,9.96,"53770","Office Stationery Supplies","REDACTED DATA","OFFICE DEPOT UK LTD (EX-GUILBERT UK)","2654682","http://opencorporates.com/companies/gb/2654682","673478594"
"London Borough of Redbridge","http://opendatacommunities.org/doc/london-borough-council/redbridge","1BCENTRALPUB","Central Services to the Public","1CTRADSURDEF","Trading Account Surpluses & Deficits","REV","Revenue","R6755","Emergency Plan Stratgy","04-SUPPLIES","Supplies And Services","04D","Printing, stationery and general office expenses","5710","Stationery","3530095","201908",16/10/2018 00:00:00,-9.96,"53770","Office Stationery Supplies","REDACTED DATA","OFFICE DEPOT UK LTD (EX-GUILBERT UK)","2654682","http://opencorporates.com/companies/gb/2654682","673478594"
"London Borough of Redbridge","http://opendatacommunities.org/doc/london-borough-council/redbridge","1BCORPDEM","Corporate & Democratic Core","1CCORPMGT","Corporate Management","REV","Revenue","R0029","Chief Executive","01-EMPLOYEES","Employees","01B","Indirect employee expenses","2403","External Training","60390764","201908",30/11/2018 00:00:00,3500,"12100","Business and Management Consultants","REDACTED DATA","EQUALITY IN ORGANISATIONS","",,""
"London Borough of Redbridge","http://opendatacommunities.org/doc/london-borough-council/redbridge","1BCORPDEM","Corporate & Democratic Core","1CCORPMGT","Corporate Management","REV","Revenue","R0029","Chief Executive","04-SUPPLIES","Supplies And Services","04B","Catering","5601","Catering Provisions (Food & Drink)","60389879","201908",23/11/2018 00:00:00,143,"16250","Catering Food and Drink Suppliers","REDACTED DATA","COLLINS CATERING","",,""
"London Borough of Redbridge","http://opendatacommunities.org/doc/london-borough-council/redbridge","1BCORPDEM","Corporate & Democratic Core","1CCORPMGT","Corporate Management","REV","Revenue","R0029","Chief Executive","04-SUPPLIES","Supplies And Services","04B","Catering","5602","Refreshments","80031614","201908",25/10/2018 00:00:00,17,"84070","Water Suppliers - Bottled","REDACTED DATA","EDEN SPRINGS (UK) LTD (NATURE SPRING)","4063744","http://opencorporates.com/companies/gb/4063744","232160411"
"London Borough of Redbridge","http://opendatacommunities.org/doc/london-borough-council/redbridge","1BCORPDEM","Corporate & Democratic Core","1CCORPMGT","Corporate Management","REV","Revenue","R0029","Chief Executive","04-SUPPLIES","Supplies And Services","04E","Services","5759","Hire Of Venues","60388437","201908",17/10/2017 00:00:00,146.33,"48583","Local Government","REDACTED DATA","VISION REDBRIDGE CULTURE AND LEISURE","6032714","http://opencorporates.com/companies/gb/6032714","906429031"
"London Borough of Redbridge","http://opendatacommunities.org/doc/london-borough-council/redbridge","1BCORPDEM","Corporate & Democratic Core","1CCORPMGT","Corporate Management","REV","Revenue","R0029","Chief Executive","04-SUPPLIES","Supplies And Services","04E","Services","5759","Hire Of Venues","60389859","201908",13/11/2018 00:00:00,-216.68,"48583","Local Government","REDACTED DATA","VISION REDBRIDGE CULTURE AND LEISURE","6032714","http://opencorporates.com/companies/gb/6032714","906429031"
"London Borough of Redbridge","http://opendatacommunities.org/doc/london-borough-council/redbridge","1BCORPDEM","Corporate & Democratic Core","1CCORPMGT","Corporate Management","REV","Revenue","R0029","Chief Executive","04-SUPPLIES","Supplies And Services","04E","Services","5759","Hire Of Venues","60389860","201908",13/11/2018 00:00:00,-216.68,"48583","Local Government","REDACTED DATA","VISION REDBRIDGE CULTURE AND LEISURE","6032714","http://opencorporates.com/companies/gb/6032714","906429031"
"London Borough of Redbridge","http://opendatacommunities.org/doc/london-borough-council/redbridge","1BCORPDEM","Corporate & Democratic Core","1CCORPMGT","Corporate Management","REV","Revenue","R0029","Chief Executive","04-SUPPLIES","Supplies And Services","04E","Services","5759","Hire Of Venues","60388446","201908",22/03/2018 00:00:00,216.68,"48583","Local Government","REDACTED DATA","VISION REDBRIDGE CULTURE AND LEISURE","6032714","http://opencorporates.com/companies/gb/6032714","906429031"
"London Borough of Redbridge","http://opendatacommunities.org/doc/london-borough-council/redbridge","6BADULTSOCIA","Adult Social Care","6COLDINCMENT","Older People (65 or over) incl. Older Mentally Ill","REV","Revenue","R4391","OP Home Care","05-THIRD","Third Party Payments","05A","Independent units within the council","6502","Agency Homecare (Payments To Independent Units)","91010752","201908",23/11/2018 00:00:00,203.04,"43419","Home Care Services","REDACTED DATA","HAVEN CARE LTD","6762521","http://opencorporates.com/companies/gb/6762521",""
"London Borough of Redbridge","http://opendatacommunities.org/doc/london-borough-council/redbridge","6BADULTSOCIA","Adult Social Care","6COLDINCMENT","Older People (65 or over) incl. Older Mentally Ill","REV","Revenue","R4391","OP Home Care","05-THIRD","Third Party Payments","05A","Independent units within the council","6502","Agency Homecare (Payments To Independent Units)","91007507","201908",23/10/2018 00:00:00,258.7,"53350","Nursing Homes","REDACTED DATA","ELEANOR NURSING & SOCIALCARE LTD","4393038","http://opencorporates.com/companies/gb/4393038",""
"London Borough of Redbridge","http://opendatacommunities.org/doc/london-borough-council/redbridge","6BADULTSOCIA","Adult Social Care","6COLDINCMENT","Older People (65 or over) incl. Older Mentally Ill","REV","Revenue","R4391","OP Home Care","05-THIRD","Third Party Payments","05A","Independent units within the council","6502","Agency Homecare (Payments To Independent Units)","91007564","201908",30/10/2018 00:00:00,91.91,"53350","Nursing Homes","REDACTED DATA","ELEANOR NURSING & SOCIALCARE LTD","4393038","http://opencorporates.com/companies/gb/4393038",""
"London Borough of Redbridge","http://opendatacommunities.org/doc/london-borough-council/redbridge","6BADULTSOCIA","Adult Social Care","6COLDINCMENT","Older People (65 or over) incl. Older Mentally Ill","REV","Revenue","R4391","OP Home Care","05-THIRD","Third Party Payments","05A","Independent units within the council","6502","Agency Homecare (Payments To Independent Units)","91011266","201908",23/11/2018 00:00:00,208.97,"43419","Home Care Services","REDACTED DATA","HAVEN CARE LTD","6762521","http://opencorporates.com/companies/gb/6762521",""
"London Borough of Redbridge","http://opendatacommunities.org/doc/london-borough-council/redbridge","6BADULTSOCIA","Adult Social Care","6COLDINCMENT","Older People (65 or over) incl. Older Mentally Ill","REV","Revenue","R4391","OP Home Care","05-THIRD","Third Party Payments","05A","Independent units within the council","6502","Agency Homecare (Payments To Independent Units)","91010799","201908",23/11/2018 00:00:00,40.84,"43419","Home Care Services","REDACTED DATA","HAVEN CARE LTD","6762521","http://opencorporates.com/companies/gb/6762521",""
"London Borough of Redbridge","http://opendatacommunities.org/doc/london-borough-council/redbridge","6BADULTSOCIA","Adult Social Care","6COLDINCMENT","Older People (65 or over) incl. Older Mentally Ill","REV","Revenue","R4391","OP Home Care","05-THIRD","Third Party Payments","05A","Independent units within the council","6502","Agency Homecare (Payments To Independent Units)","91010779","201908",23/11/2018 00:00:00,353.71,"43419","Home Care Services","REDACTED DATA","HAVEN CARE LTD","6762521","http://opencorporates.com/companies/gb/6762521",""
"London Borough of Redbridge","http://opendatacommunities.org/doc/london-borough-council/redbridge","6BADULTSOCIA","Adult Social Care","6COLDINCMENT","Older People (65 or over) incl. Older Mentally Ill","REV","Revenue","R4391","OP Home Care","05-THIRD","Third Party Payments","05A","Independent units within the council","6502","Agency Homecare (Payments To Independent Units)","91010780","201908",23/11/2018 00:00:00,186.9,"43419","Home Care Services","REDACTED DATA","HAVEN CARE LTD","6762521","http://opencorporates.com/companies/gb/6762521",""
"London Borough of Redbridge","http://opendatacommunities.org/doc/london-borough-council/redbridge","6BADULTSOCIA","Adult Social Care","6COLDINCMENT","Older People (65 or over) incl. Older Mentally Ill","REV","Revenue","R4391","OP Home Care","05-THIRD","Third Party Payments","05A","Independent units within the council","6502","Agency Homecare (Payments To Independent Units)","91010732","201908",11/10/2018 00:00:00,102.09,"43419","Home Care Services","REDACTED DATA","HAVEN CARE LTD","6762521","http://opencorporates.com/companies/gb/6762521",""
"London Borough of Redbridge","http://opendatacommunities.org/doc/london-borough-council/redbridge","6BADULTSOCIA","Adult Social Care","6COLDINCMENT","Older People (65 or over) incl. Older Mentally Ill","REV","Revenue","R4391","OP Home Care","05-THIRD","Third Party Payments","05A","Independent units within the council","6502","Agency Homecare (Payments To Independent Units)","91010744","201908",12/11/2018 00:00:00,126.16,"43419","Home Care Services","REDACTED DATA","HAVEN CARE LTD","6762521","http://opencorporates.com/companies/gb/6762521",""
"London Borough of Redbridge","http://opendatacommunities.org/doc/london-borough-council/redbridge","6BADULTSOCIA","Adult Social Care","6COLDINCMENT","Older People (65 or over) incl. Older Mentally Ill","REV","Revenue","R4391","OP Home Care","05-THIRD","Third Party Payments","05A","Independent units within the council","6502","Agency Homecare (Payments To Independent Units)","91010583","201908",14/11/2018 00:00:00,71.47,"53350","Nursing Homes","REDACTED DATA","ELEANOR NURSING & SOCIALCARE LTD","4393038","http://opencorporates.com/companies/gb/4393038",""
"London Borough of Redbridge","http://opendatacommunities.org/doc/london-borough-council/redbridge","1BCORPDEM","Corporate & Democratic Core","1CCORPMGT","Corporate Management","REV","Revenue","R0029","Chief Executive","04-SUPPLIES","Supplies And Services","04E","Services","5759","Hire Of Venues","60388419","201908",22/03/2018 00:00:00,216.68,"48583","Local Government","REDACTED DATA","VISION REDBRIDGE CULTURE AND LEISURE","6032714","http://opencorporates.com/companies/gb/6032714","906429031"
"London Borough of Redbridge","http://opendatacommunities.org/doc/london-borough-council/redbridge","1BOTHEROPI&E","Other Operating Income & Expenditure","1CELECTIONS","Elections","REV","Revenue","R9362","Electoral Registration","04-SUPPLIES","Supplies And Services","04D","Printing, stationery and general office expenses","5705","Postage","60389321","201908",30/07/2018 00:00:00,218.4,"24510","Delivery Services","REDACTED DATA","ROYAL MAIL GROUP LTD","4138203","http://opencorporates.com/companies/gb/4138203","243170002"
"London Borough of Redbridge","http://opendatacommunities.org/doc/london-borough-council/redbridge","1BOTHEROPI&E","Other Operating Income & Expenditure","1CELECTIONS","Elections","REV","Revenue","R9362","Electoral Registration","04-SUPPLIES","Supplies And Services","04D","Printing, stationery and general office expenses","5705","Postage","60389323","201908",25/06/2018 00:00:00,118.55,"24510","Delivery Services","REDACTED DATA","ROYAL MAIL GROUP LTD","4138203","http://opencorporates.com/companies/gb/4138203","243170002"
"London Borough of Redbridge","http://opendatacommunities.org/doc/london-borough-council/redbridge","1BOTHEROPI&E","Other Operating Income & Expenditure","1CELECTIONS","Elections","REV","Revenue","R9362","Electoral Registration","04-SUPPLIES","Supplies And Services","04D","Printing, stationery and general office expenses","5710","Stationery","3530095","201908",13/10/2018 00:00:00,2.02,"53770","Office Stationery Supplies","REDACTED DATA","OFFICE DEPOT UK LTD (EX-GUILBERT UK)","2654682","http://opencorporates.com/companies/gb/2654682","673478594"
"London Borough of Redbridge","http://opendatacommunities.org/doc/london-borough-council/redbridge","1BOTHEROPI&E","Other Operating Income & Expenditure","1CELECTIONS","Elections","REV","Revenue","R9362","Electoral Registration","04-SUPPLIES","Supplies And Services","04D","Printing, stationery and general office expenses","5710","Stationery","3530095","201908",13/10/2018 00:00:00,38.29,"53770","Office Stationery Supplies","REDACTED DATA","OFFICE DEPOT UK LTD (EX-GUILBERT UK)","2654682","http://opencorporates.com/companies/gb/2654682","673478594"
"London Borough of Redbridge","http://opendatacommunities.org/doc/london-borough-council/redbridge","1BOTHEROPI&E","Other Operating Income & Expenditure","1CELECTIONS","Elections","REV","Revenue","R9362","Electoral Registration","04-SUPPLIES","Supplies And Services","04D","Printing, stationery and general office expenses","5710","Stationery","3530095","201908",13/10/2018 00:00:00,2.46,"53770","Office Stationery Supplies","REDACTED DATA","OFFICE DEPOT UK LTD (EX-GUILBERT UK)","2654682","http://opencorporates.com/companies/gb/2654682","673478594"
"London Borough of Redbridge","http://opendatacommunities.org/doc/london-borough-council/redbridge","1BOTHEROPI&E","Other Operating Income & Expenditure","1CELECTIONS","Elections","REV","Revenue","R9363","Municipal Elections","04-SUPPLIES","Supplies And Services","04D","Printing, stationery and general office expenses","5705","Postage","60390502","201908",12/11/2018 00:00:00,0.96,"24510","Delivery Services","REDACTED DATA","ROYAL MAIL GROUP LTD","4138203","http://opencorporates.com/companies/gb/4138203","243170002"
"London Borough of Redbridge","http://opendatacommunities.org/doc/london-borough-council/redbridge","1BOTHEROPI&E","Other Operating Income & Expenditure","1CTRADSURDEF","Trading Account Surpluses & Deficits","REV","Revenue","R7207","Capital Team Staffing","01-EMPLOYEES","Employees","01A","Direct employee expenses","4","Agency Staff - Pay","60390708","201908",28/11/2018 00:00:00,1165.44,"31230","Employment and Recruitment Agencies","REDACTED DATA","THE OYSTER PARTNERSHIP LTD","5020374","http://opencorporates.com/companies/gb/5020374","832961025"
"London Borough of Redbridge","http://opendatacommunities.org/doc/london-borough-council/redbridge","1BOTHEROPI&E","Other Operating Income & Expenditure","1CTRADSURDEF","Trading Account Surpluses & Deficits","REV","Revenue","R7207","Capital Team Staffing","01-EMPLOYEES","Employees","01A","Direct employee expenses","4","Agency Staff - Pay","60389426","201908",14/11/2018 00:00:00,952,"31230","Employment and Recruitment Agencies","REDACTED DATA","THE OYSTER PARTNERSHIP LTD","5020374","http://opencorporates.com/companies/gb/5020374","832961025"
"London Borough of Redbridge","http://opendatacommunities.org/doc/london-borough-council/redbridge","1BOTHEROPI&E","Other Operating Income & Expenditure","1CTRADSURDEF","Trading Account Surpluses & Deficits","REV","Revenue","R7207","Capital Team Staffing","01-EMPLOYEES","Employees","01A","Direct employee expenses","4","Agency Staff - Pay","60388456","201908",05/11/2018 00:00:00,117.5,"1961","Advertising - Agencies","REDACTED DATA","PENNA PLC (PENNA COMMUNICATIONS)","1912150","http://opencorporates.com/companies/gb/1912150","605849719"
"London Borough of Redbridge","http://opendatacommunities.org/doc/london-borough-council/redbridge","1BOTHEROPI&E","Other Operating Income & Expenditure","1CTRADSURDEF","Trading Account Surpluses & Deficits","REV","Revenue","R7207","Capital Team Staffing","01-EMPLOYEES","Employees","01B","Indirect employee expenses","2403","External Training","60388345","201908",23/10/2018 00:00:00,399,"29380","Educational Training Providers","REDACTED DATA","CONSIDERATE CONSTRUCTORS SCHEME LTD","8724924637","http://opencorporates.com/companies/gb/8724924637","807162935"
"London Borough of Redbridge","http://opendatacommunities.org/doc/london-borough-council/redbridge","6BADULTSOCIA","Adult Social Care","6COLDINCMENT","Older People (65 or over) incl. Older Mentally Ill","REV","Revenue","R4391","OP Home Care","05-THIRD","Third Party Payments","05A","Independent units within the council","6502","Agency Homecare (Payments To Independent Units)","91010851","201908",26/11/2018 00:00:00,211.66,"43419","Home Care Services","REDACTED DATA","HAVEN CARE LTD","6762521","http://opencorporates.com/companies/gb/6762521",""
"London Borough of Redbridge","http://opendatacommunities.org/doc/london-borough-council/redbridge","6BADULTSOCIA","Adult Social Care","6COLDINCMENT","Older People (65 or over) incl. Older Mentally Ill","REV","Revenue","R4391","OP Home Care","05-THIRD","Third Party Payments","05A","Independent units within the council","6502","Agency Homecare (Payments To Independent Units)","91010913","201908",26/11/2018 00:00:00,204.15,"43419","Home Care Services","REDACTED DATA","HAVEN CARE LTD","6762521","http://opencorporates.com/companies/gb/6762521",""
"London Borough of Redbridge","http://opendatacommunities.org/doc/london-borough-council/redbridge","6BADULTSOCIA","Adult Social Care","6COLDINCMENT","Older People (65 or over) incl. Older Mentally Ill","REV","Revenue","R4391","OP Home Care","05-THIRD","Third Party Payments","05A","Independent units within the council","6502","Agency Homecare (Payments To Independent Units)","91010809","201908",23/11/2018 00:00:00,96.4,"43419","Home Care Services","REDACTED DATA","HAVEN CARE LTD","6762521","http://opencorporates.com/companies/gb/6762521",""
"London Borough of Redbridge","http://opendatacommunities.org/doc/london-borough-council/redbridge","6BADULTSOCIA","Adult Social Care","6COLDINCMENT","Older People (65 or over) incl. Older Mentally Ill","REV","Revenue","R4391","OP Home Care","05-THIRD","Third Party Payments","05A","Independent units within the council","6502","Agency Homecare (Payments To Independent Units)","91011027","201908",26/11/2018 00:00:00,21.04,"43419","Home Care Services","REDACTED DATA","CAREWATCH CARE SERVICES LTD","2949558","http://opencorporates.com/companies/gb/2949558","927457005"
"London Borough of Redbridge","http://opendatacommunities.org/doc/london-borough-council/redbridge","6BADULTSOCIA","Adult Social Care","6COLDINCMENT","Older People (65 or over) incl. Older Mentally Ill","REV","Revenue","R4391","OP Home Care","05-THIRD","Third Party Payments","05A","Independent units within the council","6502","Agency Homecare (Payments To Independent Units)","91008890","201908",01/12/2017 00:00:00,10.07,"43419","Home Care Services","REDACTED DATA","HAVEN CARE LTD","6762521","http://opencorporates.com/companies/gb/6762521",""
"London Borough of Redbridge","http://opendatacommunities.org/doc/london-borough-council/redbridge","6BADULTSOCIA","Adult Social Care","6COLDINCMENT","Older People (65 or over) incl. Older Mentally Ill","REV","Revenue","R4391","OP Home Care","05-THIRD","Third Party Payments","05A","Independent units within the council","6502","Agency Homecare (Payments To Independent Units)","91008891","201908",01/12/2017 00:00:00,-10.07,"43419","Home Care Services","REDACTED DATA","HAVEN CARE LTD","6762521","http://opencorporates.com/companies/gb/6762521",""
"London Borough of Redbridge","http://opendatacommunities.org/doc/london-borough-council/redbridge","6BADULTSOCIA","Adult Social Care","6COLDINCMENT","Older People (65 or over) incl. Older Mentally Ill","REV","Revenue","R4391","OP Home Care","05-THIRD","Third Party Payments","05A","Independent units within the council","6502","Agency Homecare (Payments To Independent Units)","91007589","201908",06/11/2018 00:00:00,190.61,"53350","Nursing Homes","REDACTED DATA","ELEANOR NURSING & SOCIALCARE LTD","4393038","http://opencorporates.com/companies/gb/4393038",""
"London Borough of Redbridge","http://opendatacommunities.org/doc/london-borough-council/redbridge","6BADULTSOCIA","Adult Social Care","6COLDINCMENT","Older People (65 or over) incl. Older Mentally Ill","REV","Revenue","R4391","OP Home Care","05-THIRD","Third Party Payments","05A","Independent units within the council","6502","Agency Homecare (Payments To Independent Units)","91008917","201908",02/02/2018 00:00:00,-53.68,"43419","Home Care Services","REDACTED DATA","HAVEN CARE LTD","6762521","http://opencorporates.com/companies/gb/6762521",""
"London Borough of Redbridge","http://opendatacommunities.org/doc/london-borough-council/redbridge","6BADULTSOCIA","Adult Social Care","6COLDINCMENT","Older People (65 or over) incl. Older Mentally Ill","REV","Revenue","R4391","OP Home Care","05-THIRD","Third Party Payments","05A","Independent units within the council","6502","Agency Homecare (Payments To Independent Units)","91008971","201908",04/11/2018 00:00:00,20.13,"43419","Home Care Services","REDACTED DATA","HAVEN CARE LTD","6762521","http://opencorporates.com/companies/gb/6762521",""
"London Borough of Redbridge","http://opendatacommunities.org/doc/london-borough-council/redbridge","6BADULTSOCIA","Adult Social Care","6COLDINCMENT","Older People (65 or over) incl. Older Mentally Ill","REV","Revenue","R4391","OP Home Care","05-THIRD","Third Party Payments","05A","Independent units within the council","6502","Agency Homecare (Payments To Independent Units)","91007933","201908",12/11/2018 00:00:00,224.15,"43419","Home Care Services","REDACTED DATA","HAVEN CARE LTD","6762521","http://opencorporates.com/companies/gb/6762521",""
"London Borough of Redbridge","http://opendatacommunities.org/doc/london-borough-council/redbridge","6BADULTSOCIA","Adult Social Care","6COLDINCMENT","Older People (65 or over) incl. Older Mentally Ill","REV","Revenue","R4391","OP Home Care","05-THIRD","Third Party Payments","05A","Independent units within the council","6502","Agency Homecare (Payments To Independent Units)","91007934","201908",12/11/2018 00:00:00,99.83,"43419","Home Care Services","REDACTED DATA","HAVEN CARE LTD","6762521","http://opencorporates.com/companies/gb/6762521",""
"London Borough of Redbridge","http://opendatacommunities.org/doc/london-borough-council/redbridge","6BADULTSOCIA","Adult Social Care","6COLDINCMENT","Older People (65 or over) incl. Older Mentally Ill","REV","Revenue","R4391","OP Home Care","05-THIRD","Third Party Payments","05A","Independent units within the council","6502","Agency Homecare (Payments To Independent Units)","91007935","201908",12/11/2018 00:00:00,95.56,"43419","Home Care Services","REDACTED DATA","HAVEN CARE LTD","6762521","http://opencorporates.com/companies/gb/6762521",""
"London Borough of Redbridge","http://opendatacommunities.org/doc/london-borough-council/redbridge","6BADULTSOCIA","Adult Social Care","6COLDINCMENT","Older People (65 or over) incl. Older Mentally Ill","REV","Revenue","R4391","OP Home Care","05-THIRD","Third Party Payments","05A","Independent units within the council","6502","Agency Homecare (Payments To Independent Units)","91011426","201908",02/02/2018 00:00:00,13.42,"43419","Home Care Services","REDACTED DATA","HAVEN CARE LTD","6762521","http://opencorporates.com/companies/gb/6762521",""
"London Borough of Redbridge","http://opendatacommunities.org/doc/london-borough-council/redbridge","6BADULTSOCIA","Adult Social Care","6COLDINCMENT","Older People (65 or over) incl. Older Mentally Ill","REV","Revenue","R4391","OP Home Care","05-THIRD","Third Party Payments","05A","Independent units within the council","6502","Agency Homecare (Payments To Independent Units)","91010763","201908",23/11/2018 00:00:00,79.39,"43419","Home Care Services","REDACTED DATA","HAVEN CARE LTD","6762521","http://opencorporates.com/companies/gb/6762521",""
"London Borough of Redbridge","http://opendatacommunities.org/doc/london-borough-council/redbridge","6BADULTSOCIA","Adult Social Care","6COLDINCMENT","Older People (65 or over) incl. Older Mentally Ill","REV","Revenue","R4391","OP Home Care","05-THIRD","Third Party Payments","05A","Independent units within the council","6502","Agency Homecare (Payments To Independent Units)","91009647","201908",19/11/2018 00:00:00,484.54,"43419","Home Care Services","REDACTED DATA","CROWN MEDICAL SERVICES","9478290","http://opencorporates.com/companies/gb/9478290","255072024"
"London Borough of Redbridge","http://opendatacommunities.org/doc/london-borough-council/redbridge","6BADULTSOCIA","Adult Social Care","6COLDINCMENT","Older People (65 or over) incl. Older Mentally Ill","REV","Revenue","R4391","OP Home Care","05-THIRD","Third Party Payments","05A","Independent units within the council","6502","Agency Homecare (Payments To Independent Units)","91011439","201908",02/11/2018 00:00:00,63.09,"43419","Home Care Services","REDACTED DATA","HAVEN CARE LTD","6762521","http://opencorporates.com/companies/gb/6762521",""
"London Borough of Redbridge","http://opendatacommunities.org/doc/london-borough-council/redbridge","6BADULTSOCIA","Adult Social Care","6COLDINCMENT","Older People (65 or over) incl. Older Mentally Ill","REV","Revenue","R4391","OP Home Care","05-THIRD","Third Party Payments","05A","Independent units within the council","6502","Agency Homecare (Payments To Independent Units)","91010622","201908",14/11/2018 00:00:00,68.06,"53350","Nursing Homes","REDACTED DATA","ELEANOR NURSING & SOCIALCARE LTD","4393038","http://opencorporates.com/companies/gb/4393038",""
"London Borough of Redbridge","http://opendatacommunities.org/doc/london-borough-council/redbridge","6BADULTSOCIA","Adult Social Care","6COLDINCMENT","Older People (65 or over) incl. Older Mentally Ill","REV","Revenue","R4391","OP Home Care","05-THIRD","Third Party Payments","05A","Independent units within the council","6502","Agency Homecare (Payments To Independent Units)","91010629","201908",14/11/2018 00:00:00,81.72,"53350","Nursing Homes","REDACTED DATA","ELEANOR NURSING & SOCIALCARE LTD","4393038","http://opencorporates.com/companies/gb/4393038",""
"London Borough of Redbridge","http://opendatacommunities.org/doc/london-borough-council/redbridge","6BADULTSOCIA","Adult Social Care","6COLDINCMENT","Older People (65 or over) incl. Older Mentally Ill","REV","Revenue","R4391","OP Home Care","05-THIRD","Third Party Payments","05A","Independent units within the council","6502","Agency Homecare (Payments To Independent Units)","91011458","201908",06/11/2018 00:00:00,-40.26,"43419","Home Care Services","REDACTED DATA","HAVEN CARE LTD","6762521","http://opencorporates.com/companies/gb/6762521",""
"London Borough of Redbridge","http://opendatacommunities.org/doc/london-borough-council/redbridge","6BADULTSOCIA","Adult Social Care","6COLDINCMENT","Older People (65 or over) incl. Older Mentally Ill","REV","Revenue","R4391","OP Home Care","05-THIRD","Third Party Payments","05A","Independent units within the council","6502","Agency Homecare (Payments To Independent Units)","91007649","201908",06/11/2018 00:00:00,119.14,"53350","Nursing Homes","REDACTED DATA","ELEANOR NURSING & SOCIALCARE LTD","4393038","http://opencorporates.com/companies/gb/4393038",""
"London Borough of Redbridge","http://opendatacommunities.org/doc/london-borough-council/redbridge","6BADULTSOCIA","Adult Social Care","6COLDINCMENT","Older People (65 or over) incl. Older Mentally Ill","REV","Revenue","R4391","OP Home Care","05-THIRD","Third Party Payments","05A","Independent units within the council","6502","Agency Homecare (Payments To Independent Units)","91008851","201908",30/10/2018 00:00:00,196.28,"53350","Nursing Homes","REDACTED DATA","ELEANOR NURSING & SOCIALCARE LTD","4393038","http://opencorporates.com/companies/gb/4393038",""
"London Borough of Redbridge","http://opendatacommunities.org/doc/london-borough-council/redbridge","6BADULTSOCIA","Adult Social Care","6COLDINCMENT","Older People (65 or over) incl. Older Mentally Ill","REV","Revenue","R4391","OP Home Care","05-THIRD","Third Party Payments","05A","Independent units within the council","6502","Agency Homecare (Payments To Independent Units)","91008091","201908",30/10/2018 00:00:00,56.08,"43419","Home Care Services","REDACTED DATA","CAREWATCH CARE SERVICES LTD","2949558","http://opencorporates.com/companies/gb/2949558","927457005"
"London Borough of Redbridge","http://opendatacommunities.org/doc/london-borough-council/redbridge","6BADULTSOCIA","Adult Social Care","6COLDINCMENT","Older People (65 or over) incl. Older Mentally Ill","REV","Revenue","R4391","OP Home Care","05-THIRD","Third Party Payments","05A","Independent units within the council","6502","Agency Homecare (Payments To Independent Units)","91008092","201908",30/10/2018 00:00:00,147.21,"43419","Home Care Services","REDACTED DATA","CAREWATCH CARE SERVICES LTD","2949558","http://opencorporates.com/companies/gb/2949558","927457005"
"London Borough of Redbridge","http://opendatacommunities.org/doc/london-borough-council/redbridge","6BADULTSOCIA","Adult Social Care","6COLDINCMENT","Older People (65 or over) incl. Older Mentally Ill","REV","Revenue","R4391","OP Home Care","05-THIRD","Third Party Payments","05A","Independent units within the council","6502","Agency Homecare (Payments To Independent Units)","91008149","201908",30/10/2018 00:00:00,147.21,"43419","Home Care Services","REDACTED DATA","CAREWATCH CARE SERVICES LTD","2949558","http://opencorporates.com/companies/gb/2949558","927457005"
"London Borough of Redbridge","http://opendatacommunities.org/doc/london-borough-council/redbridge","6BADULTSOCIA","Adult Social Care","6COLDINCMENT","Older People (65 or over) incl. Older Mentally Ill","REV","Revenue","R4391","OP Home Care","05-THIRD","Third Party Payments","05A","Independent units within the council","6502","Agency Homecare (Payments To Independent Units)","91010856","201908",26/11/2018 00:00:00,94.59,"43419","Home Care Services","REDACTED DATA","HAVEN CARE LTD","6762521","http://opencorporates.com/companies/gb/6762521",""
"London Borough of Redbridge","http://opendatacommunities.org/doc/london-borough-council/redbridge","6BADULTSOCIA","Adult Social Care","6COLDINCMENT","Older People (65 or over) incl. Older Mentally Ill","REV","Revenue","R4391","OP Home Care","05-THIRD","Third Party Payments","05A","Independent units within the council","6502","Agency Homecare (Payments To Independent Units)","91010917","201908",26/11/2018 00:00:00,27.22,"43419","Home Care Services","REDACTED DATA","HAVEN CARE LTD","6762521","http://opencorporates.com/companies/gb/6762521",""
"London Borough of Redbridge","http://opendatacommunities.org/doc/london-borough-council/redbridge","6BADULTSOCIA","Adult Social Care","6COLDINCMENT","Older People (65 or over) incl. Older Mentally Ill","REV","Revenue","R4391","OP Home Care","05-THIRD","Third Party Payments","05A","Independent units within the council","6502","Agency Homecare (Payments To Independent Units)","91011267","201908",23/11/2018 00:00:00,440.19,"43419","Home Care Services","REDACTED DATA","HAVEN CARE LTD","6762521","http://opencorporates.com/companies/gb/6762521",""
"London Borough of Redbridge","http://opendatacommunities.org/doc/london-borough-council/redbridge","6BADULTSOCIA","Adult Social Care","6COLDINCMENT","Older People (65 or over) incl. Older Mentally Ill","REV","Revenue","R4391","OP Home Care","05-THIRD","Third Party Payments","05A","Independent units within the council","6502","Agency Homecare (Payments To Independent Units)","91010861","201908",26/11/2018 00:00:00,81.66,"43419","Home Care Services","REDACTED DATA","HAVEN CARE LTD","6762521","http://opencorporates.com/companies/gb/6762521",""
"London Borough of Redbridge","http://opendatacommunities.org/doc/london-borough-council/redbridge","6BADULTSOCIA","Adult Social Care","6COLDINCMENT","Older People (65 or over) incl. Older Mentally Ill","REV","Revenue","R4391","OP Home Care","05-THIRD","Third Party Payments","05A","Independent units within the council","6502","Agency Homecare (Payments To Independent Units)","91010921","201908",26/11/2018 00:00:00,143.82,"43419","Home Care Services","REDACTED DATA","HAVEN CARE LTD","6762521","http://opencorporates.com/companies/gb/6762521",""
"London Borough of Redbridge","http://opendatacommunities.org/doc/london-borough-council/redbridge","6BADULTSOCIA","Adult Social Care","6COLDINCMENT","Older People (65 or over) incl. Older Mentally Ill","REV","Revenue","R4391","OP Home Care","05-THIRD","Third Party Payments","05A","Independent units within the council","6502","Agency Homecare (Payments To Independent Units)","91011035","201908",26/11/2018 00:00:00,105.15,"43419","Home Care Services","REDACTED DATA","CAREWATCH CARE SERVICES LTD","2949558","http://opencorporates.com/companies/gb/2949558","927457005"
"London Borough of Redbridge","http://opendatacommunities.org/doc/london-borough-council/redbridge","6BADULTSOCIA","Adult Social Care","6COLDINCMENT","Older People (65 or over) incl. Older Mentally Ill","REV","Revenue","R4391","OP Home Care","05-THIRD","Third Party Payments","05A","Independent units within the council","6502","Agency Homecare (Payments To Independent Units)","91011036","201908",26/11/2018 00:00:00,185.8,"43419","Home Care Services","REDACTED DATA","CAREWATCH CARE SERVICES LTD","2949558","http://opencorporates.com/companies/gb/2949558","927457005"
"London Borough of Redbridge","http://opendatacommunities.org/doc/london-borough-council/redbridge","6BADULTSOCIA","Adult Social Care","6COLDINCMENT","Older People (65 or over) incl. Older Mentally Ill","REV","Revenue","R4391","OP Home Care","05-THIRD","Third Party Payments","05A","Independent units within the council","6502","Agency Homecare (Payments To Independent Units)","91010879","201908",26/11/2018 00:00:00,70.77,"43419","Home Care Services","REDACTED DATA","HAVEN CARE LTD","6762521","http://opencorporates.com/companies/gb/6762521",""
"London Borough of Redbridge","http://opendatacommunities.org/doc/london-borough-council/redbridge","6BADULTSOCIA","Adult Social Care","6COLDINCMENT","Older People (65 or over) incl. Older Mentally Ill","REV","Revenue","R4391","OP Home Care","05-THIRD","Third Party Payments","05A","Independent units within the council","6502","Agency Homecare (Payments To Independent Units)","91010774","201908",23/11/2018 00:00:00,120.24,"43419","Home Care Services","REDACTED DATA","HAVEN CARE LTD","6762521","http://opencorporates.com/companies/gb/6762521",""
"London Borough of Redbridge","http://opendatacommunities.org/doc/london-borough-council/redbridge","6BADULTSOCIA","Adult Social Care","6COLDINCMENT","Older People (65 or over) incl. Older Mentally Ill","REV","Revenue","R4391","OP Home Care","05-THIRD","Third Party Payments","05A","Independent units within the council","6502","Agency Homecare (Payments To Independent Units)","91011645","201908",26/11/2018 00:00:00,103.67,"43419","Home Care Services","REDACTED DATA","CAREWATCH CARE SERVICES LTD","2949558","http://opencorporates.com/companies/gb/2949558","927457005"
"London Borough of Redbridge","http://opendatacommunities.org/doc/london-borough-council/redbridge","6BADULTSOCIA","Adult Social Care","6COLDINCMENT","Older People (65 or over) incl. Older Mentally Ill","REV","Revenue","R4391","OP Home Care","05-THIRD","Third Party Payments","05A","Independent units within the council","6502","Agency Homecare (Payments To Independent Units)","91011646","201908",26/11/2018 00:00:00,129.64,"43419","Home Care Services","REDACTED DATA","CAREWATCH CARE SERVICES LTD","2949558","http://opencorporates.com/companies/gb/2949558","927457005"
"London Borough of Redbridge","http://opendatacommunities.org/doc/london-borough-council/redbridge","6BADULTSOCIA","Adult Social Care","6COLDINCMENT","Older People (65 or over) incl. Older Mentally Ill","REV","Revenue","R4391","OP Home Care","05-THIRD","Third Party Payments","05A","Independent units within the council","6502","Agency Homecare (Payments To Independent Units)","91010918","201908",26/11/2018 00:00:00,95.5,"43419","Home Care Services","REDACTED DATA","HAVEN CARE LTD","6762521","http://opencorporates.com/companies/gb/6762521",""
"London Borough of Redbridge","http://opendatacommunities.org/doc/london-borough-council/redbridge","6BADULTSOCIA","Adult Social Care","6COLDINCMENT","Older People (65 or over) incl. Older Mentally Ill","REV","Revenue","R4391","OP Home Care","05-THIRD","Third Party Payments","05A","Independent units within the council","6502","Agency Homecare (Payments To Independent Units)","91011262","201908",23/11/2018 00:00:00,103.87,"43419","Home Care Services","REDACTED DATA","HAVEN CARE LTD","6762521","http://opencorporates.com/companies/gb/6762521",""
"London Borough of Redbridge","http://opendatacommunities.org/doc/london-borough-council/redbridge","6BADULTSOCIA","Adult Social Care","6COLDINCMENT","Older People (65 or over) incl. Older Mentally Ill","REV","Revenue","R4391","OP Home Care","05-THIRD","Third Party Payments","05A","Independent units within the council","6502","Agency Homecare (Payments To Independent Units)","91010643","201908",23/11/2018 00:00:00,143.01,"53350","Nursing Homes","REDACTED DATA","ELEANOR NURSING & SOCIALCARE LTD","4393038","http://opencorporates.com/companies/gb/4393038",""
"London Borough of Redbridge","http://opendatacommunities.org/doc/london-borough-council/redbridge","6BADULTSOCIA","Adult Social Care","6COLDINCMENT","Older People (65 or over) incl. Older Mentally Ill","REV","Revenue","R4391","OP Home Care","05-THIRD","Third Party Payments","05A","Independent units within the council","6502","Agency Homecare (Payments To Independent Units)","91011220","201908",13/11/2018 00:00:00,280.4,"53350","Nursing Homes","REDACTED DATA","ELEANOR NURSING & SOCIALCARE LTD","4393038","http://opencorporates.com/companies/gb/4393038",""
"London Borough of Redbridge","http://opendatacommunities.org/doc/london-borough-council/redbridge","6BADULTSOCIA","Adult Social Care","6COLDINCMENT","Older People (65 or over) incl. Older Mentally Ill","REV","Revenue","R4391","OP Home Care","05-THIRD","Third Party Payments","05A","Independent units within the council","6502","Agency Homecare (Payments To Independent Units)","91010898","201908",26/11/2018 00:00:00,40.84,"43419","Home Care Services","REDACTED DATA","HAVEN CARE LTD","6762521","http://opencorporates.com/companies/gb/6762521",""
"London Borough of Redbridge","http://opendatacommunities.org/doc/london-borough-council/redbridge","6BADULTSOCIA","Adult Social Care","6COLDINCMENT","Older People (65 or over) incl. Older Mentally Ill","REV","Revenue","R4391","OP Home Care","05-THIRD","Third Party Payments","05A","Independent units within the council","6502","Agency Homecare (Payments To Independent Units)","91010807","201908",23/11/2018 00:00:00,210.79,"43419","Home Care Services","REDACTED DATA","HAVEN CARE LTD","6762521","http://opencorporates.com/companies/gb/6762521",""
"London Borough of Redbridge","http://opendatacommunities.org/doc/london-borough-council/redbridge","6BADULTSOCIA","Adult Social Care","6COLDINCMENT","Older People (65 or over) incl. Older Mentally Ill","REV","Revenue","R4391","OP Home Care","05-THIRD","Third Party Payments","05A","Independent units within the council","6502","Agency Homecare (Payments To Independent Units)","91009019","201908",30/10/2018 00:00:00,126.18,"43419","Home Care Services","REDACTED DATA","CAREWATCH CARE SERVICES LTD","2949558","http://opencorporates.com/companies/gb/2949558","927457005"
"London Borough of Redbridge","http://opendatacommunities.org/doc/london-borough-council/redbridge","6BADULTSOCIA","Adult Social Care","6COLDINCMENT","Older People (65 or over) incl. Older Mentally Ill","REV","Revenue","R4391","OP Home Care","05-THIRD","Third Party Payments","05A","Independent units within the council","6502","Agency Homecare (Payments To Independent Units)","91007524","201908",30/10/2018 00:00:00,54.44,"53350","Nursing Homes","REDACTED DATA","ELEANOR NURSING & SOCIALCARE LTD","4393038","http://opencorporates.com/companies/gb/4393038",""
"London Borough of Redbridge","http://opendatacommunities.org/doc/london-borough-council/redbridge","6BADULTSOCIA","Adult Social Care","6COLDINCMENT","Older People (65 or over) incl. Older Mentally Ill","REV","Revenue","R4391","OP Home Care","05-THIRD","Third Party Payments","05A","Independent units within the council","6502","Agency Homecare (Payments To Independent Units)","91007922","201908",12/11/2018 00:00:00,166.71,"43419","Home Care Services","REDACTED DATA","HAVEN CARE LTD","6762521","http://opencorporates.com/companies/gb/6762521",""
"London Borough of Redbridge","http://opendatacommunities.org/doc/london-borough-council/redbridge","6BADULTSOCIA","Adult Social Care","6COLDINCMENT","Older People (65 or over) incl. Older Mentally Ill","REV","Revenue","R4391","OP Home Care","05-THIRD","Third Party Payments","05A","Independent units within the council","6502","Agency Homecare (Payments To Independent Units)","91007530","201908",30/10/2018 00:00:00,119.14,"53350","Nursing Homes","REDACTED DATA","ELEANOR NURSING & SOCIALCARE LTD","4393038","http://opencorporates.com/companies/gb/4393038",""
"London Borough of Redbridge","http://opendatacommunities.org/doc/london-borough-council/redbridge","6BADULTSOCIA","Adult Social Care","6COLDINCMENT","Older People (65 or over) incl. Older Mentally Ill","REV","Revenue","R4391","OP Home Care","05-THIRD","Third Party Payments","05A","Independent units within the council","6502","Agency Homecare (Payments To Independent Units)","91008194","201908",30/10/2018 00:00:00,245.42,"43419","Home Care Services","REDACTED DATA","CAREWATCH CARE SERVICES LTD","2949558","http://opencorporates.com/companies/gb/2949558","927457005"
"London Borough of Redbridge","http://opendatacommunities.org/doc/london-borough-council/redbridge","6BADULTSOCIA","Adult Social Care","6COLDINCMENT","Older People (65 or over) incl. Older Mentally Ill","REV","Revenue","R4391","OP Home Care","05-THIRD","Third Party Payments","05A","Independent units within the council","6502","Agency Homecare (Payments To Independent Units)","91010863","201908",26/11/2018 00:00:00,108.89,"43419","Home Care Services","REDACTED DATA","HAVEN CARE LTD","6762521","http://opencorporates.com/companies/gb/6762521",""
"London Borough of Redbridge","http://opendatacommunities.org/doc/london-borough-council/redbridge","6BADULTSOCIA","Adult Social Care","6COLDINCMENT","Older People (65 or over) incl. Older Mentally Ill","REV","Revenue","R4391","OP Home Care","05-THIRD","Third Party Payments","05A","Independent units within the council","6502","Agency Homecare (Payments To Independent Units)","91010689","201908",23/11/2018 00:00:00,142.94,"53350","Nursing Homes","REDACTED DATA","ELEANOR NURSING & SOCIALCARE LTD","4393038","http://opencorporates.com/companies/gb/4393038",""
